Verifikationsnummer;Leverantör;Konto;Konto beskrivning;Fakturans bruttobelopp;Ankomstdatum;Fakturadatum;Kostnadsställe;Kostnadsställe beskrivning;Fakturanummer
21650541;1 3 Synoptik Sweden AB;58700;Glasögonbidrag, patient;787,5;2022-09-14;2022-09-01;22600;Ögonsjukvård Gem;62589144
21657201;1 3 Synoptik Sweden AB;58700;Glasögonbidrag, patient;900;2022-09-23;2022-09-02;22600;Ögonsjukvård Gem;62591971
21657175;1 3 Synoptik Sweden AB;58700;Glasögonbidrag, patient;250;2022-09-23;2022-09-02;22600;Ögonsjukvård Gem;62592082
21647914;1 3 Synoptik Sweden AB;58700;Glasögonbidrag, patient;900;2022-09-09;2022-09-02;22600;Ögonsjukvård Gem;62592119
21650499;1 3 Synoptik Sweden AB;58700;Glasögonbidrag, patient;900;2022-09-14;2022-09-03;22600;Ögonsjukvård Gem;62593607
21650636;1 3 Synoptik Sweden AB;58700;Glasögonbidrag, patient;900;2022-09-14;2022-09-03;22600;Ögonsjukvård Gem;62593608
21650597;1 3 Synoptik Sweden AB;58700;Glasögonbidrag, patient;550;2022-09-14;2022-09-05;22600;Ögonsjukvård Gem;62597203
21657168;1 3 Synoptik Sweden AB;58700;Glasögonbidrag, patient;550;2022-09-23;2022-09-07;22600;Ögonsjukvård Gem;62602534
21652806;1 3 Synoptik Sweden AB;58700;Glasögonbidrag, patient;787,5;2022-09-16;2022-09-08;22600;Ögonsjukvård Gem;62605201
21652813;1 3 Synoptik Sweden AB;58700;Glasögonbidrag, patient;787,5;2022-09-16;2022-09-08;22600;Ögonsjukvård Gem;62605204
21652811;1 3 Synoptik Sweden AB;58700;Glasögonbidrag, patient;900;2022-09-16;2022-09-09;22600;Ögonsjukvård Gem;62608044
21653895;1 3 Synoptik Sweden AB;58700;Glasögonbidrag, patient;550;2022-09-17;2022-09-10;22600;Ögonsjukvård Gem;62609574
21657155;1 3 Synoptik Sweden AB;58700;Glasögonbidrag, patient;600;2022-09-23;2022-09-12;22600;Ögonsjukvård Gem;62612849
21655707;1 3 Synoptik Sweden AB;58700;Glasögonbidrag, patient;2520;2022-09-21;2022-09-13;22720;Ögonmott Hsand;62615566
21657177;1 3 Synoptik Sweden AB;58700;Glasögonbidrag, patient;900;2022-09-23;2022-09-13;22600;Ögonsjukvård Gem;62615576
21657179;1 3 Synoptik Sweden AB;58700;Glasögonbidrag, patient;900;2022-09-23;2022-09-13;22600;Ögonsjukvård Gem;62615611
21657188;1 3 Synoptik Sweden AB;58700;Glasögonbidrag, patient;900;2022-09-23;2022-09-14;22600;Ögonsjukvård Gem;62618233
21657224;1 3 Synoptik Sweden AB;58700;Glasögonbidrag, patient;900;2022-09-23;2022-09-15;22600;Ögonsjukvård Gem;62620795
21657208;1 3 Synoptik Sweden AB;58700;Glasögonbidrag, patient;900;2022-09-23;2022-09-16;22600;Ögonsjukvård Gem;62623975
21657174;1 3 Synoptik Sweden AB;58700;Glasögonbidrag, patient;900;2022-09-23;2022-09-17;22600;Ögonsjukvård Gem;62625624
21658431;1 3 Synoptik Sweden AB;58700;Glasögonbidrag, patient;900;2022-09-27;2022-09-19;22600;Ögonsjukvård Gem;62629348
21660416;1 3 Synoptik Sweden AB;58700;Glasögonbidrag, patient;900;2022-09-29;2022-09-20;22600;Ögonsjukvård Gem;62632590
21660391;1 3 Synoptik Sweden AB;58700;Glasögonbidrag, patient;900;2022-09-29;2022-09-20;22600;Ögonsjukvård Gem;62632592
21656759;1 3 Synoptik Sweden AB;46230;Terminalglasögon;2334,1;2022-09-22;2022-09-21;81580;Controllerenheten RLF, RU;62635594
21660381;1 3 Synoptik Sweden AB;58700;Glasögonbidrag, patient;900;2022-09-29;2022-09-21;22600;Ögonsjukvård Gem;62635638
21660418;1 3 Synoptik Sweden AB;58700;Glasögonbidrag, patient;900;2022-09-29;2022-09-21;22600;Ögonsjukvård Gem;62635643
21660379;1 3 Synoptik Sweden AB;58700;Glasögonbidrag, patient;900;2022-09-29;2022-09-22;22600;Ögonsjukvård Gem;62638593
21662129;1 3 Synoptik Sweden AB;58700;Glasögonbidrag, patient;900;2022-10-01;2022-09-22;22600;Ögonsjukvård Gem;62638598
21666829;1 3 Synoptik Sweden AB;58700;Glasögonbidrag, patient;5240;2022-10-05;2022-09-23;22720;Ögonmott Hsand;62641912
21662105;1 3 Synoptik Sweden AB;58700;Glasögonbidrag, patient;900;2022-10-01;2022-09-23;22600;Ögonsjukvård Gem;62641917
21661243;1 3 Synoptik Sweden AB;58700;Glasögonbidrag, patient;900;2022-09-30;2022-09-23;22600;Ögonsjukvård Gem;62641968
21661296;1 3 Synoptik Sweden AB;58700;Glasögonbidrag, patient;900;2022-09-30;2022-09-23;22600;Ögonsjukvård Gem;62641969
21667927;1 3 Synoptik Sweden AB;58700;Glasögonbidrag, patient;4192;2022-10-06;2022-09-26;41210;Ögonmott Övik;62646987
21662107;1 3 Synoptik Sweden AB;58700;Glasögonbidrag, patient;2100;2022-10-01;2022-09-27;30102;Ögonmott Slå;62650119
21666860;1 3 Synoptik Sweden AB;58700;Glasögonbidrag, patient;900;2022-10-05;2022-09-27;22600;Ögonsjukvård Gem;62650164
21671471;1 3 Synoptik Sweden AB;58700;Glasögonbidrag, patient;600;2022-10-12;2022-09-29;22600;Ögonsjukvård Gem;62656032
21684742;1 3 Synoptik Sweden AB;58700;Glasögonbidrag, patient;900;2022-11-01;2022-09-29;22600;Ögonsjukvård Gem;62656042
21667914;1 3 Synoptik Sweden AB;58700;Glasögonbidrag, patient;900;2022-10-06;2022-09-29;22600;Ögonsjukvård Gem;62656144
21668692;1 3 Synoptik Sweden AB;58700;Glasögonbidrag, patient;787,5;2022-10-07;2022-09-29;22600;Ögonsjukvård Gem;62656146
21694614;1 3 Synoptik Sweden AB;58700;Glasögonbidrag, patient;7448;2022-11-11;2022-09-30;41210;Ögonmott Övik;62659351
21673890;1 3 Synoptik Sweden AB;58700;Glasögonbidrag, patient;900;2022-10-15;2022-09-30;22600;Ögonsjukvård Gem;62659484
21673894;1 3 Synoptik Sweden AB;57100;Tekniska hjälpmedel;3040;2022-10-15;2022-09-30;12722;Ögonrehabiliteringsmott Gem;62659485
21651430;1 4 Optik Smarteyes AB;58700;Glasögonbidrag, patient;900;2022-09-15;2022-09-01;22600;Ögonsjukvård Gem;1178518
21651433;1 4 Optik Smarteyes AB;58700;Glasögonbidrag, patient;900;2022-09-15;2022-09-01;22600;Ögonsjukvård Gem;1178519
21651420;1 4 Optik Smarteyes AB;58700;Glasögonbidrag, patient;900;2022-09-15;2022-09-01;22600;Ögonsjukvård Gem;1178520
21651515;1 4 Optik Smarteyes AB;58700;Glasögonbidrag, patient;900;2022-09-15;2022-09-02;22600;Ögonsjukvård Gem;1178674
21651432;1 4 Optik Smarteyes AB;58700;Glasögonbidrag, patient;900;2022-09-15;2022-09-02;22600;Ögonsjukvård Gem;1178676
21651425;1 4 Optik Smarteyes AB;58700;Glasögonbidrag, patient;900;2022-09-15;2022-09-02;22600;Ögonsjukvård Gem;1178677
21651418;1 4 Optik Smarteyes AB;58700;Glasögonbidrag, patient;900;2022-09-15;2022-09-02;22600;Ögonsjukvård Gem;1178678
21651456;1 4 Optik Smarteyes AB;58700;Glasögonbidrag, patient;900;2022-09-15;2022-09-03;22600;Ögonsjukvård Gem;1178679
21652857;1 4 Optik Smarteyes AB;58700;Glasögonbidrag, patient;880;2022-09-16;2022-09-05;22600;Ögonsjukvård Gem;1178769
21652856;1 4 Optik Smarteyes AB;58700;Glasögonbidrag, patient;900;2022-09-16;2022-09-05;22600;Ögonsjukvård Gem;1178770
21652855;1 4 Optik Smarteyes AB;58700;Glasögonbidrag, patient;900;2022-09-16;2022-09-08;22600;Ögonsjukvård Gem;1186091
21655700;1 4 Optik Smarteyes AB;58700;Glasögonbidrag, patient;900;2022-09-21;2022-09-08;22600;Ögonsjukvård Gem;1186105
21655675;1 4 Optik Smarteyes AB;58700;Glasögonbidrag, patient;900;2022-09-21;2022-09-08;22600;Ögonsjukvård Gem;1186107
21655685;1 4 Optik Smarteyes AB;58700;Glasögonbidrag, patient;900;2022-09-21;2022-09-08;22600;Ögonsjukvård Gem;1186108
21655686;1 4 Optik Smarteyes AB;58700;Glasögonbidrag, patient;900;2022-09-21;2022-09-08;22600;Ögonsjukvård Gem;1186109
21657766;1 4 Optik Smarteyes AB;58700;Glasögonbidrag, patient;900;2022-09-24;2022-09-09;22600;Ögonsjukvård Gem;1186272
21657790;1 4 Optik Smarteyes AB;58700;Glasögonbidrag, patient;900;2022-09-24;2022-09-09;22600;Ögonsjukvård Gem;1186273
21657923;1 4 Optik Smarteyes AB;58700;Glasögonbidrag, patient;900;2022-09-24;2022-09-10;22600;Ögonsjukvård Gem;1186274
21688316;1 4 Optik Smarteyes AB;58700;Glasögonbidrag, patient;900;2022-11-02;2022-09-10;22600;Ögonsjukvård Gem;1186345a
21655710;1 4 Optik Smarteyes AB;58700;Glasögonbidrag, patient;900;2022-09-21;2022-09-10;22600;Ögonsjukvård Gem;1186346
21655709;1 4 Optik Smarteyes AB;58700;Glasögonbidrag, patient;900;2022-09-21;2022-09-10;22600;Ögonsjukvård Gem;1186347
21655708;1 4 Optik Smarteyes AB;58700;Glasögonbidrag, patient;900;2022-09-21;2022-09-11;22600;Ögonsjukvård Gem;1186348
21655705;1 4 Optik Smarteyes AB;58700;Glasögonbidrag, patient;900;2022-09-21;2022-09-11;22600;Ögonsjukvård Gem;1186349
21657789;1 4 Optik Smarteyes AB;58700;Glasögonbidrag, patient;900;2022-09-24;2022-09-12;22600;Ögonsjukvård Gem;1186464
21656449;1 4 Optik Smarteyes AB;58700;Glasögonbidrag, patient;900;2022-09-22;2022-09-12;22600;Ögonsjukvård Gem;1186487
21656443;1 4 Optik Smarteyes AB;58700;Glasögonbidrag, patient;900;2022-09-22;2022-09-12;22600;Ögonsjukvård Gem;1186488
21657925;1 4 Optik Smarteyes AB;58700;Glasögonbidrag, patient;900;2022-09-24;2022-09-14;22600;Ögonsjukvård Gem;1186643
21657924;1 4 Optik Smarteyes AB;58700;Glasögonbidrag, patient;900;2022-09-24;2022-09-14;22600;Ögonsjukvård Gem;1186644
21658445;1 4 Optik Smarteyes AB;58700;Glasögonbidrag, patient;900;2022-09-27;2022-09-14;22600;Ögonsjukvård Gem;1186662
21657771;1 4 Optik Smarteyes AB;58700;Glasögonbidrag, patient;900;2022-09-24;2022-09-17;22600;Ögonsjukvård Gem;1186901
21658425;1 4 Optik Smarteyes AB;58700;Glasögonbidrag, patient;900;2022-09-27;2022-09-16;22600;Ögonsjukvård Gem;1186954
21658436;1 4 Optik Smarteyes AB;58700;Glasögonbidrag, patient;900;2022-09-27;2022-09-16;22600;Ögonsjukvård Gem;1186955
21658449;1 4 Optik Smarteyes AB;58700;Glasögonbidrag, patient;900;2022-09-27;2022-09-16;22600;Ögonsjukvård Gem;1186956
21658434;1 4 Optik Smarteyes AB;58700;Glasögonbidrag, patient;900;2022-09-27;2022-09-16;22600;Ögonsjukvård Gem;1186957
21667938;1 4 Optik Smarteyes AB;58700;Glasögonbidrag, patient;900;2022-10-06;2022-09-19;22600;Ögonsjukvård Gem;1187066
21666864;1 4 Optik Smarteyes AB;58700;Glasögonbidrag, patient;900;2022-10-05;2022-09-19;22600;Ögonsjukvård Gem;1187103
21667960;1 4 Optik Smarteyes AB;58700;Glasögonbidrag, patient;900;2022-10-06;2022-09-20;22600;Ögonsjukvård Gem;1187205
21666861;1 4 Optik Smarteyes AB;58700;Glasögonbidrag, patient;900;2022-10-05;2022-09-21;22600;Ögonsjukvård Gem;1187347
21667044;1 4 Optik Smarteyes AB;58700;Glasögonbidrag, patient;900;2022-10-05;2022-09-21;22600;Ögonsjukvård Gem;1187348
21666865;1 4 Optik Smarteyes AB;58700;Glasögonbidrag, patient;900;2022-10-05;2022-09-21;22600;Ögonsjukvård Gem;1187349
21667955;1 4 Optik Smarteyes AB;58700;Glasögonbidrag, patient;900;2022-10-06;2022-09-22;22600;Ögonsjukvård Gem;1187423
21667959;1 4 Optik Smarteyes AB;58700;Glasögonbidrag, patient;900;2022-10-06;2022-09-22;22600;Ögonsjukvård Gem;1187424
21667956;1 4 Optik Smarteyes AB;58700;Glasögonbidrag, patient;900;2022-10-06;2022-09-22;22600;Ögonsjukvård Gem;1187425
21666845;1 4 Optik Smarteyes AB;58700;Glasögonbidrag, patient;900;2022-10-05;2022-09-23;22600;Ögonsjukvård Gem;1187641
21666853;1 4 Optik Smarteyes AB;58700;Glasögonbidrag, patient;900;2022-10-05;2022-09-23;22600;Ögonsjukvård Gem;1187642
21666838;1 4 Optik Smarteyes AB;58700;Glasögonbidrag, patient;900;2022-10-05;2022-09-23;22600;Ögonsjukvård Gem;1187643
21666824;1 4 Optik Smarteyes AB;58700;Glasögonbidrag, patient;900;2022-10-05;2022-09-24;22600;Ögonsjukvård Gem;1187644
21666836;1 4 Optik Smarteyes AB;58700;Glasögonbidrag, patient;900;2022-10-05;2022-09-24;22600;Ögonsjukvård Gem;1187645
21667958;1 4 Optik Smarteyes AB;58700;Glasögonbidrag, patient;900;2022-10-06;2022-09-26;22600;Ögonsjukvård Gem;1187757
21667957;1 4 Optik Smarteyes AB;58700;Glasögonbidrag, patient;900;2022-10-06;2022-09-27;22600;Ögonsjukvård Gem;1187852
21667915;1 4 Optik Smarteyes AB;58700;Glasögonbidrag, patient;900;2022-10-06;2022-09-27;22600;Ögonsjukvård Gem;1187853
21672279;1 4 Optik Smarteyes AB;58700;Glasögonbidrag, patient;900;2022-10-13;2022-09-27;22600;Ögonsjukvård Gem;1187873
21672283;1 4 Optik Smarteyes AB;58700;Glasögonbidrag, patient;900;2022-10-13;2022-09-27;22600;Ögonsjukvård Gem;1187874
21672358;1 4 Optik Smarteyes AB;58700;Glasögonbidrag, patient;900;2022-10-13;2022-09-28;22600;Ögonsjukvård Gem;1187948
21672275;1 4 Optik Smarteyes AB;58700;Glasögonbidrag, patient;900;2022-10-13;2022-09-28;22600;Ögonsjukvård Gem;1187949
21672349;1 4 Optik Smarteyes AB;58700;Glasögonbidrag, patient;900;2022-10-13;2022-09-28;22600;Ögonsjukvård Gem;1187950
21673082;1 4 Optik Smarteyes AB;58700;Glasögonbidrag, patient;900;2022-10-14;2022-09-29;22600;Ögonsjukvård Gem;1188038
21673258;1 4 Optik Smarteyes AB;58700;Glasögonbidrag, patient;900;2022-10-14;2022-09-30;22600;Ögonsjukvård Gem;1188219
21673257;1 4 Optik Smarteyes AB;58700;Glasögonbidrag, patient;900;2022-10-14;2022-09-30;22600;Ögonsjukvård Gem;1188220
21659788;1 Aoptik Sundsvall AB/Fortnox;58700;Glasögonbidrag, patient;5375;2022-09-28;2022-09-27;12720;Ögonmott Svall;7154
21659798;1 Aoptik Sundsvall AB/Fortnox;58700;Glasögonbidrag, patient;9010;2022-09-28;2022-09-27;12720;Ögonmott Svall;7155
21659793;1 Aoptik Sundsvall AB/Fortnox;58700;Glasögonbidrag, patient;4125;2022-09-28;2022-09-27;12720;Ögonmott Svall;7156
21667921;1 Aoptik Sundsvall AB/Fortnox;58700;Glasögonbidrag, patient;900;2022-10-06;2022-09-27;22600;Ögonsjukvård Gem;7157
21667925;1 Aoptik Sundsvall AB/Fortnox;58700;Glasögonbidrag, patient;900;2022-10-06;2022-09-27;22600;Ögonsjukvård Gem;7158
21667909;1 Aoptik Sundsvall AB/Fortnox;58700;Glasögonbidrag, patient;900;2022-10-06;2022-09-27;22600;Ögonsjukvård Gem;7159
21667916;1 Aoptik Sundsvall AB/Fortnox;58700;Glasögonbidrag, patient;900;2022-10-06;2022-09-27;22600;Ögonsjukvård Gem;7160
21659791;1 Aoptik Sundsvall AB/Fortnox;46230;Terminalglasögon;1773;2022-09-28;2022-09-27;67110;MTA Länssjukhuset;7161
21659790;1 Aoptik Sundsvall AB/Fortnox;46230;Terminalglasögon;1773;2022-09-28;2022-09-27;86483;Gemensamma kostnader,Gilleberg;7163
21659784;1 Aoptik Sundsvall AB/Fortnox;46230;Terminalglasögon;1773;2022-09-28;2022-09-27;12102;Kir avd 15;7164
21659785;1 Aoptik Sundsvall AB/Fortnox;46230;Terminalglasögon;1773;2022-09-28;2022-09-27;12001;Operationsavd A Svall;7165
21659801;1 Aoptik Sundsvall AB/Fortnox;76990;Diverse övriga kostnader;1773;2022-09-28;2022-09-27;14104;BUM avd 45 Svall;7166
21659786;1 Aoptik Sundsvall AB/Fortnox;46230;Terminalglasögon;1773;2022-09-28;2022-09-27;82560;IT- Övergripande;7167
21659787;1 Aoptik Sundsvall AB/Fortnox;46230;Terminalglasögon;1773;2022-09-28;2022-09-27;11322;Lungavd 23A Svall;7168
21659789;1 Aoptik Sundsvall AB/Fortnox;46230;Terminalglasögon;1773;2022-09-28;2022-09-27;17300;Arbetsterapimott Svall Hsand;7169
21659792;1 Aoptik Sundsvall AB/Fortnox;46230;Terminalglasögon;1773;2022-09-28;2022-09-27;15122;Psykiatrisk bedömningsmott Sva;7170
21659781;1 Aoptik Sundsvall AB/Fortnox;46230;Terminalglasögon;1773;2022-09-28;2022-09-27;51090;ROK;7171
21659781;1 Aoptik Sundsvall AB/Fortnox;57930;Öresutjämning;1773;2022-09-28;2022-09-27;51090;ROK;7171
21659783;1 Aoptik Sundsvall AB/Fortnox;46230;Terminalglasögon;1773;2022-09-28;2022-09-27;14321;SpecMVC Ultraljudsmott Svall;7172
21659797;1 Aoptik Sundsvall AB/Fortnox;46230;Terminalglasögon;1773;2022-09-28;2022-09-27;14305;BB Förlossning Gynavd Svall;7173
21659795;1 Aoptik Sundsvall AB/Fortnox;46230;Terminalglasögon;1773;2022-09-28;2022-09-27;17181;Röntgenmott Svall;7174
21659809;1 Aoptik Sundsvall AB/Fortnox;46230;Terminalglasögon;1773;2022-09-28;2022-09-27;17151;Pat Cyto Histopato enh Svall;7175
21659800;1 Aoptik Sundsvall AB/Fortnox;46230;Terminalglasögon;1773;2022-09-28;2022-09-27;14321;SpecMVC Ultraljudsmott Svall;7176
21659794;1 Aoptik Sundsvall AB/Fortnox;46230;Terminalglasögon;1773;2022-09-28;2022-09-27;65010;Regionhälsan;7177
21659782;1 Aoptik Sundsvall AB/Fortnox;46230;Terminalglasögon;1773;2022-09-28;2022-09-27;12204;Onkologmott Svall;7178
21659796;1 Aoptik Sundsvall AB/Fortnox;46230;Terminalglasögon;1773;2022-09-28;2022-09-27;67830;Ekonomiservice Sundsvall;7179
21659799;1 Aoptik Sundsvall AB/Fortnox;46230;Terminalglasögon;1773;2022-09-28;2022-09-27;22100;Kvinnosjukvård Gem;7180
21648684;1 MCO Optik AB;58700;Glasögonbidrag, patient;795;2022-09-10;2022-09-01;22600;Ögonsjukvård Gem;F119/16280
21648650;1 MCO Optik AB;58700;Glasögonbidrag, patient;795;2022-09-10;2022-09-02;22600;Ögonsjukvård Gem;F119/16281
21647926;1 MCO Optik AB;58700;Glasögonbidrag, patient;795;2022-09-09;2022-09-02;22600;Ögonsjukvård Gem;F119/16282
21647916;1 MCO Optik AB;58700;Glasögonbidrag, patient;900;2022-09-09;2022-09-02;22600;Ögonsjukvård Gem;F119/16284
21647892;1 MCO Optik AB;58700;Glasögonbidrag, patient;900;2022-09-09;2022-09-03;22600;Ögonsjukvård Gem;F119/16286
21647938;1 MCO Optik AB;58700;Glasögonbidrag, patient;900;2022-09-09;2022-09-03;22600;Ögonsjukvård Gem;F119/16287
21647931;1 MCO Optik AB;58700;Glasögonbidrag, patient;900;2022-09-09;2022-09-03;22600;Ögonsjukvård Gem;F119/16289
21656452;1 MCO Optik AB;58700;Glasögonbidrag, patient;900;2022-09-22;2022-09-03;22600;Ögonsjukvård Gem;F119/16290
21656395;1 MCO Optik AB;58700;Glasögonbidrag, patient;900;2022-09-22;2022-09-04;22600;Ögonsjukvård Gem;F119/16291
21656427;1 MCO Optik AB;58700;Glasögonbidrag, patient;900;2022-09-22;2022-09-04;22600;Ögonsjukvård Gem;F119/16292
21656394;1 MCO Optik AB;58700;Glasögonbidrag, patient;595;2022-09-22;2022-09-06;22600;Ögonsjukvård Gem;F119/16294
21651489;1 MCO Optik AB;58700;Glasögonbidrag, patient;900;2022-09-15;2022-09-06;22600;Ögonsjukvård Gem;F119/16295
21651508;1 MCO Optik AB;58700;Glasögonbidrag, patient;900;2022-09-15;2022-09-08;22600;Ögonsjukvård Gem;F119/16296
21653868;1 MCO Optik AB;58700;Glasögonbidrag, patient;900;2022-09-17;2022-09-09;22600;Ögonsjukvård Gem;F119/16297
21653869;1 MCO Optik AB;58700;Glasögonbidrag, patient;900;2022-09-17;2022-09-09;22600;Ögonsjukvård Gem;F119/16298
21653911;1 MCO Optik AB;58700;Glasögonbidrag, patient;795;2022-09-17;2022-09-11;22600;Ögonsjukvård Gem;F119/16300
21653872;1 MCO Optik AB;58700;Glasögonbidrag, patient;795;2022-09-17;2022-09-11;22600;Ögonsjukvård Gem;F119/16301
21653874;1 MCO Optik AB;58700;Glasögonbidrag, patient;900;2022-09-17;2022-09-12;22600;Ögonsjukvård Gem;F119/16302
21654453;1 MCO Optik AB;58700;Glasögonbidrag, patient;900;2022-09-20;2022-09-13;22600;Ögonsjukvård Gem;F119/16306
21655706;1 MCO Optik AB;58700;Glasögonbidrag, patient;900;2022-09-21;2022-09-13;22600;Ögonsjukvård Gem;F119/16309
21655723;1 MCO Optik AB;58700;Glasögonbidrag, patient;900;2022-09-21;2022-09-13;22600;Ögonsjukvård Gem;F119/16310
21657808;1 MCO Optik AB;58700;Glasögonbidrag, patient;795;2022-09-24;2022-09-14;22600;Ögonsjukvård Gem;F119/16312
21657824;1 MCO Optik AB;58700;Glasögonbidrag, patient;900;2022-09-24;2022-09-14;22600;Ögonsjukvård Gem;F119/16313
21657826;1 MCO Optik AB;58700;Glasögonbidrag, patient;795;2022-09-24;2022-09-14;22600;Ögonsjukvård Gem;F119/16314
21657821;1 MCO Optik AB;58700;Glasögonbidrag, patient;900;2022-09-24;2022-09-14;22600;Ögonsjukvård Gem;F119/16315
21657837;1 MCO Optik AB;58700;Glasögonbidrag, patient;795;2022-09-24;2022-09-14;22600;Ögonsjukvård Gem;F119/16316
21657850;1 MCO Optik AB;58700;Glasögonbidrag, patient;795;2022-09-24;2022-09-14;22600;Ögonsjukvård Gem;F119/16317
21657799;1 MCO Optik AB;58700;Glasögonbidrag, patient;795;2022-09-24;2022-09-15;22600;Ögonsjukvård Gem;F119/16318
21657833;1 MCO Optik AB;58700;Glasögonbidrag, patient;900;2022-09-24;2022-09-15;22600;Ögonsjukvård Gem;F119/16319
21657809;1 MCO Optik AB;58700;Glasögonbidrag, patient;900;2022-09-24;2022-09-16;22600;Ögonsjukvård Gem;F119/16320
21657827;1 MCO Optik AB;58700;Glasögonbidrag, patient;795;2022-09-24;2022-09-17;22600;Ögonsjukvård Gem;F119/16321
21657851;1 MCO Optik AB;58700;Glasögonbidrag, patient;900;2022-09-24;2022-09-18;22600;Ögonsjukvård Gem;F119/16322
21657811;1 MCO Optik AB;58700;Glasögonbidrag, patient;695;2022-09-24;2022-09-18;22600;Ögonsjukvård Gem;F119/16323
21657836;1 MCO Optik AB;58700;Glasögonbidrag, patient;900;2022-09-24;2022-09-18;22600;Ögonsjukvård Gem;F119/16324
21657835;1 MCO Optik AB;58700;Glasögonbidrag, patient;795;2022-09-24;2022-09-19;22600;Ögonsjukvård Gem;F119/16325
21664441;1 MCO Optik AB;58700;Glasögonbidrag, patient;795;2022-10-04;2022-09-19;22600;Ögonsjukvård Gem;F119/16327
21665760;1 MCO Optik AB;58700;Glasögonbidrag, patient;795;2022-10-04;2022-09-19;22600;Ögonsjukvård Gem;F119/16328
21664398;1 MCO Optik AB;58700;Glasögonbidrag, patient;900;2022-10-04;2022-09-19;22600;Ögonsjukvård Gem;F119/16329
21665757;1 MCO Optik AB;58700;Glasögonbidrag, patient;900;2022-10-04;2022-09-20;22600;Ögonsjukvård Gem;F119/16330
21664391;1 MCO Optik AB;58700;Glasögonbidrag, patient;900;2022-10-04;2022-09-20;22600;Ögonsjukvård Gem;F119/16331
21664402;1 MCO Optik AB;58700;Glasögonbidrag, patient;900;2022-10-04;2022-09-22;22600;Ögonsjukvård Gem;F119/16332
21664429;1 MCO Optik AB;58700;Glasögonbidrag, patient;795;2022-10-04;2022-09-22;22600;Ögonsjukvård Gem;F119/16334
21664407;1 MCO Optik AB;58700;Glasögonbidrag, patient;900;2022-10-04;2022-09-22;22600;Ögonsjukvård Gem;F119/16335
21664414;1 MCO Optik AB;58700;Glasögonbidrag, patient;795;2022-10-04;2022-09-23;22600;Ögonsjukvård Gem;F119/16337
21664422;1 MCO Optik AB;58700;Glasögonbidrag, patient;595;2022-10-04;2022-09-23;22600;Ögonsjukvård Gem;F119/16338
21664443;1 MCO Optik AB;58700;Glasögonbidrag, patient;900;2022-10-04;2022-09-23;22600;Ögonsjukvård Gem;F119/16339
21664439;1 MCO Optik AB;58700;Glasögonbidrag, patient;554;2022-10-04;2022-09-23;22600;Ögonsjukvård Gem;F119/16340
21664423;1 MCO Optik AB;58700;Glasögonbidrag, patient;900;2022-10-04;2022-09-24;22600;Ögonsjukvård Gem;F119/16341
21664442;1 MCO Optik AB;58700;Glasögonbidrag, patient;900;2022-10-04;2022-09-24;22600;Ögonsjukvård Gem;F119/16342
21664438;1 MCO Optik AB;58700;Glasögonbidrag, patient;900;2022-10-04;2022-09-24;22600;Ögonsjukvård Gem;F119/16343
21664400;1 MCO Optik AB;58700;Glasögonbidrag, patient;795;2022-10-04;2022-09-24;22600;Ögonsjukvård Gem;F119/16344
21664416;1 MCO Optik AB;58700;Glasögonbidrag, patient;900;2022-10-04;2022-09-24;22600;Ögonsjukvård Gem;F119/16345
21664421;1 MCO Optik AB;58700;Glasögonbidrag, patient;795;2022-10-04;2022-09-24;22600;Ögonsjukvård Gem;F119/16346
21664399;1 MCO Optik AB;58700;Glasögonbidrag, patient;795;2022-10-04;2022-09-24;22600;Ögonsjukvård Gem;F119/16347
21664386;1 MCO Optik AB;58700;Glasögonbidrag, patient;795;2022-10-04;2022-09-25;22600;Ögonsjukvård Gem;F119/16348
21664410;1 MCO Optik AB;58700;Glasögonbidrag, patient;900;2022-10-04;2022-09-25;22600;Ögonsjukvård Gem;F119/16349
21667923;1 MCO Optik AB;58700;Glasögonbidrag, patient;900;2022-10-06;2022-09-26;22600;Ögonsjukvård Gem;F119/16350
21667913;1 MCO Optik AB;58700;Glasögonbidrag, patient;900;2022-10-06;2022-09-27;22600;Ögonsjukvård Gem;F119/16351
21667933;1 MCO Optik AB;58700;Glasögonbidrag, patient;795;2022-10-06;2022-09-27;22600;Ögonsjukvård Gem;F119/16352
21667917;1 MCO Optik AB;58700;Glasögonbidrag, patient;900;2022-10-06;2022-09-28;22600;Ögonsjukvård Gem;F119/16353
21667918;1 MCO Optik AB;58700;Glasögonbidrag, patient;795;2022-10-06;2022-09-28;22600;Ögonsjukvård Gem;F119/16354
21667926;1 MCO Optik AB;58700;Glasögonbidrag, patient;795;2022-10-06;2022-09-29;22600;Ögonsjukvård Gem;F119/16356
21668672;1 MCO Optik AB;58700;Glasögonbidrag, patient;795;2022-10-07;2022-09-29;22600;Ögonsjukvård Gem;F119/16358
21668673;1 MCO Optik AB;58700;Glasögonbidrag, patient;900;2022-10-07;2022-09-29;22600;Ögonsjukvård Gem;F119/16360
21668676;1 MCO Optik AB;58700;Glasögonbidrag, patient;900;2022-10-07;2022-09-29;22600;Ögonsjukvård Gem;F119/16362
21668684;1 MCO Optik AB;58700;Glasögonbidrag, patient;900;2022-10-07;2022-09-29;22600;Ögonsjukvård Gem;F119/16363
21668664;1 MCO Optik AB;58700;Glasögonbidrag, patient;795;2022-10-07;2022-09-30;22600;Ögonsjukvård Gem;F119/16364
21668679;1 MCO Optik AB;58700;Glasögonbidrag, patient;900;2022-10-07;2022-09-30;22600;Ögonsjukvård Gem;F119/16365
21647157;1 Specsavers Optik;58700;Glasögonbidrag, patient;795;2022-09-08;2022-09-01;22600;Ögonsjukvård Gem;FS58/17924
21647922;1 Specsavers Optik;58700;Glasögonbidrag, patient;795;2022-09-09;2022-09-01;22600;Ögonsjukvård Gem;FS58/17926
21647927;1 Specsavers Optik;58700;Glasögonbidrag, patient;795;2022-09-09;2022-09-01;22600;Ögonsjukvård Gem;FS58/17927
21647918;1 Specsavers Optik;58700;Glasögonbidrag, patient;795;2022-09-09;2022-09-02;22600;Ögonsjukvård Gem;FS58/17931
21647915;1 Specsavers Optik;58700;Glasögonbidrag, patient;795;2022-09-09;2022-09-02;22600;Ögonsjukvård Gem;FS58/17932
21647909;1 Specsavers Optik;58700;Glasögonbidrag, patient;795;2022-09-09;2022-09-03;22600;Ögonsjukvård Gem;FS58/17933
21647906;1 Specsavers Optik;58700;Glasögonbidrag, patient;795;2022-09-09;2022-09-03;22600;Ögonsjukvård Gem;FS58/17934
21653870;1 Specsavers Optik;58700;Glasögonbidrag, patient;795;2022-09-17;2022-09-05;22600;Ögonsjukvård Gem;FS58/17937
21653898;1 Specsavers Optik;58700;Glasögonbidrag, patient;795;2022-09-17;2022-09-06;22600;Ögonsjukvård Gem;FS58/17939
21653883;1 Specsavers Optik;58700;Glasögonbidrag, patient;795;2022-09-17;2022-09-08;22600;Ögonsjukvård Gem;FS58/17943
21653893;1 Specsavers Optik;58700;Glasögonbidrag, patient;795;2022-09-17;2022-09-08;22600;Ögonsjukvård Gem;FS58/17944
21653890;1 Specsavers Optik;58700;Glasögonbidrag, patient;795;2022-09-17;2022-09-08;22600;Ögonsjukvård Gem;FS58/17945
21653889;1 Specsavers Optik;58700;Glasögonbidrag, patient;900;2022-09-17;2022-09-09;22600;Ögonsjukvård Gem;FS58/17947
21661232;1 Specsavers Optik;58700;Glasögonbidrag, patient;795;2022-09-30;2022-09-10;22600;Ögonsjukvård Gem;FS58/17949
21661226;1 Specsavers Optik;58700;Glasögonbidrag, patient;795;2022-09-30;2022-09-12;22600;Ögonsjukvård Gem;FS58/17950
21656402;1 Specsavers Optik;58700;Glasögonbidrag, patient;795;2022-09-22;2022-09-14;22600;Ögonsjukvård Gem;FS58/17954
21656414;1 Specsavers Optik;58700;Glasögonbidrag, patient;795;2022-09-22;2022-09-14;22600;Ögonsjukvård Gem;FS58/17955
21656407;1 Specsavers Optik;58700;Glasögonbidrag, patient;795;2022-09-22;2022-09-15;22600;Ögonsjukvård Gem;FS58/17956
21656456;1 Specsavers Optik;58700;Glasögonbidrag, patient;795;2022-09-22;2022-09-15;22600;Ögonsjukvård Gem;FS58/17957
21656408;1 Specsavers Optik;58700;Glasögonbidrag, patient;900;2022-09-22;2022-09-15;22600;Ögonsjukvård Gem;FS58/17958
21659707;1 Specsavers Optik;58700;Glasögonbidrag, patient;900;2022-09-28;2022-09-16;22600;Ögonsjukvård Gem;FS58/17959
21659700;1 Specsavers Optik;58700;Glasögonbidrag, patient;795;2022-09-28;2022-09-16;22600;Ögonsjukvård Gem;FS58/17960
21659709;1 Specsavers Optik;58700;Glasögonbidrag, patient;795;2022-09-28;2022-09-16;22600;Ögonsjukvård Gem;FS58/17961
21659708;1 Specsavers Optik;58700;Glasögonbidrag, patient;900;2022-09-28;2022-09-17;22600;Ögonsjukvård Gem;FS58/17962
21659706;1 Specsavers Optik;58700;Glasögonbidrag, patient;795;2022-09-28;2022-09-19;22600;Ögonsjukvård Gem;FS58/17963
21659714;1 Specsavers Optik;58700;Glasögonbidrag, patient;795;2022-09-28;2022-09-19;22600;Ögonsjukvård Gem;FS58/17964
21659717;1 Specsavers Optik;58700;Glasögonbidrag, patient;795;2022-09-28;2022-09-20;22600;Ögonsjukvård Gem;FS58/17965
21659703;1 Specsavers Optik;58700;Glasögonbidrag, patient;795;2022-09-28;2022-09-20;22600;Ögonsjukvård Gem;FS58/17967
21661218;1 Specsavers Optik;58700;Glasögonbidrag, patient;900;2022-09-30;2022-09-22;22600;Ögonsjukvård Gem;FS58/17969
21661217;1 Specsavers Optik;58700;Glasögonbidrag, patient;900;2022-09-30;2022-09-22;22600;Ögonsjukvård Gem;FS58/17970
21661219;1 Specsavers Optik;58700;Glasögonbidrag, patient;795;2022-09-30;2022-09-23;22600;Ögonsjukvård Gem;FS58/17972
21661224;1 Specsavers Optik;58700;Glasögonbidrag, patient;795;2022-09-30;2022-09-24;22600;Ögonsjukvård Gem;FS58/17974
21661298;1 Specsavers Optik;58700;Glasögonbidrag, patient;795;2022-09-30;2022-09-24;22600;Ögonsjukvård Gem;FS58/17975
21661210;1 Specsavers Optik;58700;Glasögonbidrag, patient;900;2022-09-30;2022-09-26;22600;Ögonsjukvård Gem;FS58/17977
21661206;1 Specsavers Optik;58700;Glasögonbidrag, patient;795;2022-09-30;2022-09-26;22600;Ögonsjukvård Gem;FS58/17979
21666818;1 Specsavers Optik;58700;Glasögonbidrag, patient;900;2022-10-05;2022-09-27;22600;Ögonsjukvård Gem;FS58/17981
21666807;1 Specsavers Optik;58700;Glasögonbidrag, patient;900;2022-10-05;2022-09-28;22600;Ögonsjukvård Gem;FS58/17983
21651437;1 TC Optik AB;58700;Glasögonbidrag, patient;900;2022-09-15;2022-09-06;22600;Ögonsjukvård Gem;20377
21651428;1 TC Optik AB;58700;Glasögonbidrag, patient;900;2022-09-15;2022-09-06;22600;Ögonsjukvård Gem;20378
21651421;1 TC Optik AB;58700;Glasögonbidrag, patient;595;2022-09-15;2022-09-06;22600;Ögonsjukvård Gem;20379
21655724;1 TC Optik AB;58700;Glasögonbidrag, patient;900;2022-09-21;2022-09-15;22600;Ögonsjukvård Gem;20385
21655704;1 TC Optik AB;58700;Glasögonbidrag, patient;900;2022-09-21;2022-09-15;22600;Ögonsjukvård Gem;20386
21655691;1 TC Optik AB;58700;Glasögonbidrag, patient;900;2022-09-21;2022-09-15;22600;Ögonsjukvård Gem;20387
21655694;1 TC Optik AB;58700;Glasögonbidrag, patient;900;2022-09-21;2022-09-15;22600;Ögonsjukvård Gem;20388
21655719;1 TC Optik AB;58700;Glasögonbidrag, patient;900;2022-09-21;2022-09-15;22600;Ögonsjukvård Gem;20389
21655722;1 TC Optik AB;58700;Glasögonbidrag, patient;900;2022-09-21;2022-09-15;22600;Ögonsjukvård Gem;20390
21655711;1 TC Optik AB;58700;Glasögonbidrag, patient;900;2022-09-21;2022-09-15;22600;Ögonsjukvård Gem;20391
21655729;1 TC Optik AB;58700;Glasögonbidrag, patient;900;2022-09-21;2022-09-15;22600;Ögonsjukvård Gem;20397
21655721;1 TC Optik AB;58700;Glasögonbidrag, patient;900;2022-09-21;2022-09-15;22600;Ögonsjukvård Gem;20398
21662149;1 TC Optik AB;58700;Glasögonbidrag, patient;900;2022-10-01;2022-09-27;22600;Ögonsjukvård Gem;20399
21662159;1 TC Optik AB;58700;Glasögonbidrag, patient;900;2022-10-01;2022-09-27;22600;Ögonsjukvård Gem;20400
21662132;1 TC Optik AB;58700;Glasögonbidrag, patient;795;2022-10-01;2022-09-27;22600;Ögonsjukvård Gem;20401
21662152;1 TC Optik AB;58700;Glasögonbidrag, patient;795;2022-10-01;2022-09-27;22600;Ögonsjukvård Gem;20402
21662125;1 TC Optik AB;58700;Glasögonbidrag, patient;900;2022-10-01;2022-09-27;22600;Ögonsjukvård Gem;20403
21662095;1 TC Optik AB;58700;Glasögonbidrag, patient;900;2022-10-01;2022-09-27;22600;Ögonsjukvård Gem;20404
21662131;1 TC Optik AB;58700;Glasögonbidrag, patient;900;2022-10-01;2022-09-27;22600;Ögonsjukvård Gem;20405
21662115;1 TC Optik AB;58700;Glasögonbidrag, patient;900;2022-10-01;2022-09-27;22600;Ögonsjukvård Gem;20406
21662135;1 TC Optik AB;58700;Glasögonbidrag, patient;900;2022-10-01;2022-09-27;22600;Ögonsjukvård Gem;20408
21662112;1 TC Optik AB;58700;Glasögonbidrag, patient;900;2022-10-01;2022-09-27;22600;Ögonsjukvård Gem;20409
21662120;1 TC Optik AB;58700;Glasögonbidrag, patient;795;2022-10-01;2022-09-27;22600;Ögonsjukvård Gem;20410
21662157;1 TC Optik AB;58700;Glasögonbidrag, patient;900;2022-10-01;2022-09-27;22600;Ögonsjukvård Gem;20411
21662096;1 TC Optik AB;58700;Glasögonbidrag, patient;900;2022-10-01;2022-09-27;22600;Ögonsjukvård Gem;20412
21662151;1 TC Optik AB;58700;Glasögonbidrag, patient;900;2022-10-01;2022-09-27;22600;Ögonsjukvård Gem;20413
21662138;1 TC Optik AB;58700;Glasögonbidrag, patient;900;2022-10-01;2022-09-27;22600;Ögonsjukvård Gem;20414
21659813;123sonography GmbH;46100;Kurs/konferensavgift;1739;2022-09-28;2022-09-22;11030;Läkarenh Kardiologi Svall;2022-09-0406
21651550;3 Bergmans Optik;58700;Glasögonbidrag, patient;900;2022-09-15;2022-09-06;22600;Ögonsjukvård Gem;458
21657921;3 Bergmans Optik;58700;Glasögonbidrag, patient;900;2022-09-24;2022-09-19;22600;Ögonsjukvård Gem;459
21657918;3 Bergmans Optik;58700;Glasögonbidrag, patient;900;2022-09-24;2022-09-19;22600;Ögonsjukvård Gem;460
21658470;3 Bergmans Optik;58700;Glasögonbidrag, patient;900;2022-09-27;2022-09-20;22600;Ögonsjukvård Gem;461
21656437;3 Nipoptik Sollefteå AB;58700;Glasögonbidrag, patient;900;2022-09-22;2022-09-16;22600;Ögonsjukvård Gem;20003
21656424;3 Nipoptik Sollefteå AB;58700;Glasögonbidrag, patient;900;2022-09-22;2022-09-16;22600;Ögonsjukvård Gem;20004
21656434;3 Nipoptik Sollefteå AB;58700;Glasögonbidrag, patient;900;2022-09-22;2022-09-16;22600;Ögonsjukvård Gem;20005
21656422;3 Nipoptik Sollefteå AB;58700;Glasögonbidrag, patient;900;2022-09-22;2022-09-16;22600;Ögonsjukvård Gem;20007
21653593;3 Nipoptik Sollefteå AB;46230;Terminalglasögon;600;2022-09-16;2022-09-16;87475;Gemensamt Västra HC;20008
21653647;3 Nipoptik Sollefteå AB;46230;Terminalglasögon;600;2022-09-16;2022-09-16;30101;Specialistvårdsmott Slå;20011
21657810;3 Nipoptik Sollefteå AB;58700;Glasögonbidrag, patient;900;2022-09-24;2022-09-19;22600;Ögonsjukvård Gem;20021
21654118;3 Nipoptik Sollefteå AB;46230;Terminalglasögon;600;2022-09-19;2022-09-19;31013;Läkarenh BUM Slå;20025
21664396;3 Nipoptik Sollefteå AB;58700;Glasögonbidrag, patient;900;2022-10-04;2022-09-27;22600;Ögonsjukvård Gem;20033
21664419;3 Nipoptik Sollefteå AB;58700;Glasögonbidrag, patient;900;2022-10-04;2022-09-27;22600;Ögonsjukvård Gem;20034
21664444;3 Nipoptik Sollefteå AB;58700;Glasögonbidrag, patient;900;2022-10-04;2022-09-27;22600;Ögonsjukvård Gem;20035
21664394;3 Nipoptik Sollefteå AB;58700;Glasögonbidrag, patient;900;2022-10-04;2022-09-27;22600;Ögonsjukvård Gem;20036
21664431;3 Nipoptik Sollefteå AB;58700;Glasögonbidrag, patient;900;2022-10-04;2022-09-27;22600;Ögonsjukvård Gem;20037
21664403;3 Nipoptik Sollefteå AB;58700;Glasögonbidrag, patient;8350;2022-10-04;2022-09-27;30102;Ögonmott Slå;20040
21658609;3 Nipoptik Sollefteå AB;46230;Terminalglasögon;600;2022-09-27;2022-09-27;36100;NO Västra gem;20045
21658608;3 Nipoptik Sollefteå AB;46230;Terminalglasögon;600;2022-09-27;2022-09-27;70320;Hola Organisationsbidrag;20047
21658607;3 Nipoptik Sollefteå AB;46230;Terminalglasögon;600;2022-09-27;2022-09-27;37061;Röntgenmott Slå;20048
21658606;3 Nipoptik Sollefteå AB;46230;Terminalglasögon;600;2022-09-27;2022-09-27;53010;Ftv Sollefteå;20051
21658605;3 Nipoptik Sollefteå AB;46230;Terminalglasögon;600;2022-09-27;2022-09-27;30102;Ögonmott Slå;20057
21653873;3 Optikern i Kramfors AB;58700;Glasögonbidrag, patient;900;2022-09-17;2022-09-06;22600;Ögonsjukvård Gem;2444
21653901;3 Optikern i Kramfors AB;58700;Glasögonbidrag, patient;900;2022-09-17;2022-09-08;22600;Ögonsjukvård Gem;2447
21653912;3 Optikern i Kramfors AB;58700;Glasögonbidrag, patient;900;2022-09-17;2022-09-08;22600;Ögonsjukvård Gem;2448
21661302;3 Optikern i Kramfors AB;58700;Glasögonbidrag, patient;900;2022-09-30;2022-09-14;22600;Ögonsjukvård Gem;2449
21661285;3 Optikern i Kramfors AB;58700;Glasögonbidrag, patient;900;2022-09-30;2022-09-23;22600;Ögonsjukvård Gem;2452
21644573;365id AB;75400;IT-tjänst löpande drift;4350;2022-09-05;2022-09-05;82577;OBS;8151
21644573;365id AB;75400;IT-tjänst löpande drift;4350;2022-09-05;2022-09-05;82577;OBS;8151
21644573;365id AB;75400;IT-tjänst löpande drift;4350;2022-09-05;2022-09-05;82577;OBS;8151
21655659;3M Svenska AB;56390;Sjukvårdsartiklar övriga;10613,25;2022-09-21;2022-09-20;41420;Operationsavd Övik;9692901701
21657734;3M Svenska AB;56390;Sjukvårdsartiklar övriga;1721,25;2022-09-24;2022-09-23;12001;Operationsavd A Svall;9692903038
21706059;3M Svenska AB Unitek;56360;Tandvårdsmaterial;446,88;2022-11-28;2022-09-29;54040;Ortodonti Örnsköldsvik;50778
21706059;3M Svenska AB Unitek;56360;Tandvårdsmaterial;446,88;2022-11-28;2022-09-29;54040;Ortodonti Örnsköldsvik;50778
21649468;4 CS Optik AB;58700;Glasögonbidrag, patient;900;2022-09-13;2022-09-06;22600;Ögonsjukvård Gem;34278
21649469;4 CS Optik AB;58700;Glasögonbidrag, patient;900;2022-09-13;2022-09-06;22600;Ögonsjukvård Gem;34279
21654493;4 CS Optik AB;58700;Glasögonbidrag, patient;900;2022-09-20;2022-09-13;22600;Ögonsjukvård Gem;34284
21658468;4 CS Optik AB;58700;Glasögonbidrag, patient;900;2022-09-27;2022-09-20;22600;Ögonsjukvård Gem;34287
21658469;4 CS Optik AB;58700;Glasögonbidrag, patient;900;2022-09-27;2022-09-20;22600;Ögonsjukvård Gem;34288
21664622;4 CS Optik AB;58700;Glasögonbidrag, patient;900;2022-10-04;2022-09-27;22600;Ögonsjukvård Gem;34290
21664623;4 CS Optik AB;58700;Glasögonbidrag, patient;900;2022-10-04;2022-09-27;22600;Ögonsjukvård Gem;34291
21659474;4 Synsam Örnsköldsvik;58700;Glasögonbidrag, patient;897;2022-09-27;2022-09-27;22600;Ögonsjukvård Gem;13777
21659475;4 Synsam Örnsköldsvik;58700;Glasögonbidrag, patient;900;2022-09-27;2022-09-27;22600;Ögonsjukvård Gem;13778
21659476;4 Synsam Örnsköldsvik;58700;Glasögonbidrag, patient;900;2022-09-27;2022-09-27;22600;Ögonsjukvård Gem;13779
21659477;4 Synsam Örnsköldsvik;58700;Glasögonbidrag, patient;900;2022-09-27;2022-09-27;22600;Ögonsjukvård Gem;13780
21659478;4 Synsam Örnsköldsvik;58700;Glasögonbidrag, patient;900;2022-09-27;2022-09-27;22600;Ögonsjukvård Gem;13781
21659481;4 Synsam Örnsköldsvik;58700;Glasögonbidrag, patient;900;2022-09-27;2022-09-27;22600;Ögonsjukvård Gem;13782
21659480;4 Synsam Örnsköldsvik;58700;Glasögonbidrag, patient;900;2022-09-27;2022-09-27;22600;Ögonsjukvård Gem;13783
21659482;4 Synsam Örnsköldsvik;58700;Glasögonbidrag, patient;900;2022-09-27;2022-09-27;22600;Ögonsjukvård Gem;13784
21659484;4 Synsam Örnsköldsvik;58700;Glasögonbidrag, patient;900;2022-09-27;2022-09-27;22600;Ögonsjukvård Gem;13785
21659483;4 Synsam Örnsköldsvik;58700;Glasögonbidrag, patient;900;2022-09-27;2022-09-27;22600;Ögonsjukvård Gem;13786
21659485;4 Synsam Örnsköldsvik;58700;Glasögonbidrag, patient;900;2022-09-27;2022-09-27;22600;Ögonsjukvård Gem;13787
21659486;4 Synsam Örnsköldsvik;58700;Glasögonbidrag, patient;900;2022-09-27;2022-09-27;22600;Ögonsjukvård Gem;13788
21659487;4 Synsam Örnsköldsvik;58700;Glasögonbidrag, patient;900;2022-09-27;2022-09-27;22600;Ögonsjukvård Gem;13789
21659489;4 Synsam Örnsköldsvik;58700;Glasögonbidrag, patient;900;2022-09-27;2022-09-27;22600;Ögonsjukvård Gem;13790
21659488;4 Synsam Örnsköldsvik;58700;Glasögonbidrag, patient;900;2022-09-27;2022-09-27;22600;Ögonsjukvård Gem;13791
21659490;4 Synsam Örnsköldsvik;58700;Glasögonbidrag, patient;900;2022-09-27;2022-09-27;22600;Ögonsjukvård Gem;13792
21659493;4 Synsam Örnsköldsvik;58700;Glasögonbidrag, patient;900;2022-09-27;2022-09-27;22600;Ögonsjukvård Gem;13793
21659492;4 Synsam Örnsköldsvik;58700;Glasögonbidrag, patient;900;2022-09-27;2022-09-27;22600;Ögonsjukvård Gem;13794
21659494;4 Synsam Örnsköldsvik;58700;Glasögonbidrag, patient;900;2022-09-27;2022-09-27;22600;Ögonsjukvård Gem;13795
21659495;4 Synsam Örnsköldsvik;58700;Glasögonbidrag, patient;900;2022-09-27;2022-09-27;22600;Ögonsjukvård Gem;13796
21659496;4 Synsam Örnsköldsvik;58700;Glasögonbidrag, patient;900;2022-09-27;2022-09-27;22600;Ögonsjukvård Gem;13797
21659497;4 Synsam Örnsköldsvik;58700;Glasögonbidrag, patient;900;2022-09-27;2022-09-27;22600;Ögonsjukvård Gem;13798
21659498;4 Synsam Örnsköldsvik;58700;Glasögonbidrag, patient;900;2022-09-27;2022-09-27;22600;Ögonsjukvård Gem;13799
21659499;4 Synsam Örnsköldsvik;58700;Glasögonbidrag, patient;900;2022-09-27;2022-09-27;22600;Ögonsjukvård Gem;13800
21659500;4 Synsam Örnsköldsvik;58700;Glasögonbidrag, patient;900;2022-09-27;2022-09-27;22600;Ögonsjukvård Gem;13801
21659503;4 Synsam Örnsköldsvik;58700;Glasögonbidrag, patient;900;2022-09-27;2022-09-27;22600;Ögonsjukvård Gem;13802
21659504;4 Synsam Örnsköldsvik;58700;Glasögonbidrag, patient;900;2022-09-27;2022-09-27;22600;Ögonsjukvård Gem;13803
21659505;4 Synsam Örnsköldsvik;58700;Glasögonbidrag, patient;900;2022-09-27;2022-09-27;22600;Ögonsjukvård Gem;13804
21659506;4 Synsam Örnsköldsvik;58700;Glasögonbidrag, patient;900;2022-09-27;2022-09-27;22600;Ögonsjukvård Gem;13805
21659507;4 Synsam Örnsköldsvik;58700;Glasögonbidrag, patient;900;2022-09-27;2022-09-27;22600;Ögonsjukvård Gem;13806
21659510;4 Synsam Örnsköldsvik;58700;Glasögonbidrag, patient;900;2022-09-27;2022-09-27;22600;Ögonsjukvård Gem;13807
21659509;4 Synsam Örnsköldsvik;58700;Glasögonbidrag, patient;900;2022-09-27;2022-09-27;22600;Ögonsjukvård Gem;13808
21660110;4 Synsam Örnsköldsvik;58700;Glasögonbidrag, patient;900;2022-09-28;2022-09-28;22600;Ögonsjukvård Gem;13809
21660020;4 Synsam Örnsköldsvik;58700;Glasögonbidrag, patient;900;2022-09-28;2022-09-28;22600;Ögonsjukvård Gem;13810
21660023;4 Synsam Örnsköldsvik;58700;Glasögonbidrag, patient;900;2022-09-28;2022-09-28;22600;Ögonsjukvård Gem;13811
21660021;4 Synsam Örnsköldsvik;58700;Glasögonbidrag, patient;900;2022-09-28;2022-09-28;22600;Ögonsjukvård Gem;13812
21660022;4 Synsam Örnsköldsvik;58700;Glasögonbidrag, patient;900;2022-09-28;2022-09-28;22600;Ögonsjukvård Gem;13813
21660034;4 Synsam Örnsköldsvik;58700;Glasögonbidrag, patient;900;2022-09-28;2022-09-28;22600;Ögonsjukvård Gem;13814
21660032;4 Synsam Örnsköldsvik;58700;Glasögonbidrag, patient;900;2022-09-28;2022-09-28;22600;Ögonsjukvård Gem;13815
21660033;4 Synsam Örnsköldsvik;58700;Glasögonbidrag, patient;900;2022-09-28;2022-09-28;22600;Ögonsjukvård Gem;13816
21660183;4 Synsam Örnsköldsvik;58700;Glasögonbidrag, patient;900;2022-09-28;2022-09-28;22600;Ögonsjukvård Gem;13817
21660181;4 Synsam Örnsköldsvik;58700;Glasögonbidrag, patient;900;2022-09-28;2022-09-28;22600;Ögonsjukvård Gem;13818
21660184;4 Synsam Örnsköldsvik;58700;Glasögonbidrag, patient;900;2022-09-28;2022-09-28;22600;Ögonsjukvård Gem;13819
21660186;4 Synsam Örnsköldsvik;58700;Glasögonbidrag, patient;900;2022-09-28;2022-09-28;22600;Ögonsjukvård Gem;13820
21660584;4 Synsam Örnsköldsvik;58700;Glasögonbidrag, patient;900;2022-09-28;2022-09-28;22600;Ögonsjukvård Gem;13821
21660187;4 Synsam Örnsköldsvik;58700;Glasögonbidrag, patient;900;2022-09-28;2022-09-28;22600;Ögonsjukvård Gem;13822
21660190;4 Synsam Örnsköldsvik;58700;Glasögonbidrag, patient;900;2022-09-28;2022-09-28;22600;Ögonsjukvård Gem;13823
21660191;4 Synsam Örnsköldsvik;58700;Glasögonbidrag, patient;900;2022-09-28;2022-09-28;22600;Ögonsjukvård Gem;13824
21660192;4 Synsam Örnsköldsvik;58700;Glasögonbidrag, patient;900;2022-09-28;2022-09-28;22600;Ögonsjukvård Gem;13825
21660193;4 Synsam Örnsköldsvik;58700;Glasögonbidrag, patient;900;2022-09-28;2022-09-28;22600;Ögonsjukvård Gem;13826
21660194;4 Synsam Örnsköldsvik;58700;Glasögonbidrag, patient;900;2022-09-28;2022-09-28;22600;Ögonsjukvård Gem;13827
21660195;4 Synsam Örnsköldsvik;58700;Glasögonbidrag, patient;900;2022-09-28;2022-09-28;22600;Ögonsjukvård Gem;13828
21660210;4 Synsam Örnsköldsvik;58700;Glasögonbidrag, patient;900;2022-09-28;2022-09-28;22600;Ögonsjukvård Gem;13829
21660206;4 Synsam Örnsköldsvik;58700;Glasögonbidrag, patient;900;2022-09-28;2022-09-28;22600;Ögonsjukvård Gem;13830
21660207;4 Synsam Örnsköldsvik;58700;Glasögonbidrag, patient;900;2022-09-28;2022-09-28;22600;Ögonsjukvård Gem;13831
21660205;4 Synsam Örnsköldsvik;58700;Glasögonbidrag, patient;900;2022-09-28;2022-09-28;22600;Ögonsjukvård Gem;13832
21660208;4 Synsam Örnsköldsvik;58700;Glasögonbidrag, patient;900;2022-09-28;2022-09-28;22600;Ögonsjukvård Gem;13833
21660211;4 Synsam Örnsköldsvik;58700;Glasögonbidrag, patient;900;2022-09-28;2022-09-28;22600;Ögonsjukvård Gem;13834
21660209;4 Synsam Örnsköldsvik;58700;Glasögonbidrag, patient;900;2022-09-28;2022-09-28;22600;Ögonsjukvård Gem;13835
21660212;4 Synsam Örnsköldsvik;58700;Glasögonbidrag, patient;900;2022-09-28;2022-09-28;22600;Ögonsjukvård Gem;13836
21660215;4 Synsam Örnsköldsvik;58700;Glasögonbidrag, patient;900;2022-09-28;2022-09-28;22600;Ögonsjukvård Gem;13837
21660213;4 Synsam Örnsköldsvik;58700;Glasögonbidrag, patient;900;2022-09-28;2022-09-28;22600;Ögonsjukvård Gem;13838
21660216;4 Synsam Örnsköldsvik;58700;Glasögonbidrag, patient;900;2022-09-28;2022-09-28;22600;Ögonsjukvård Gem;13839
21660217;4 Synsam Örnsköldsvik;58700;Glasögonbidrag, patient;900;2022-09-28;2022-09-28;22600;Ögonsjukvård Gem;13840
21660218;4 Synsam Örnsköldsvik;58700;Glasögonbidrag, patient;900;2022-09-28;2022-09-28;22600;Ögonsjukvård Gem;13841
21660220;4 Synsam Örnsköldsvik;58700;Glasögonbidrag, patient;900;2022-09-28;2022-09-28;22600;Ögonsjukvård Gem;13842
21660219;4 Synsam Örnsköldsvik;58700;Glasögonbidrag, patient;900;2022-09-28;2022-09-28;22600;Ögonsjukvård Gem;13843
21660221;4 Synsam Örnsköldsvik;58700;Glasögonbidrag, patient;900;2022-09-28;2022-09-28;22600;Ögonsjukvård Gem;13844
21660223;4 Synsam Örnsköldsvik;58700;Glasögonbidrag, patient;900;2022-09-28;2022-09-28;22600;Ögonsjukvård Gem;13845
21660222;4 Synsam Örnsköldsvik;58700;Glasögonbidrag, patient;900;2022-09-28;2022-09-28;22600;Ögonsjukvård Gem;13846
21660225;4 Synsam Örnsköldsvik;58700;Glasögonbidrag, patient;900;2022-09-28;2022-09-28;22600;Ögonsjukvård Gem;13847
21660224;4 Synsam Örnsköldsvik;58700;Glasögonbidrag, patient;900;2022-09-28;2022-09-28;22600;Ögonsjukvård Gem;13848
21660970;4 Synsam Örnsköldsvik;46230;Terminalglasögon;49;2022-09-29;2022-09-29;87583;Gemensamma kostn Ankaret;13849
21660978;4 Synsam Örnsköldsvik;46230;Terminalglasögon;546,5;2022-09-29;2022-09-29;67920;Löneservice Ö-vik;13850
21660977;4 Synsam Örnsköldsvik;57990;Material/varor övrigt;546,5;2022-09-29;2022-09-29;54040;Ortodonti Örnsköldsvik;13851
21660979;4 Synsam Örnsköldsvik;46230;Terminalglasögon;296,5;2022-09-29;2022-09-29;41302;BUM mott Övik;13852
21660980;4 Synsam Örnsköldsvik;46230;Terminalglasögon;546,5;2022-09-29;2022-09-29;41107;Klinisk fysiologi Övik;13853
21660983;4 Synsam Örnsköldsvik;46230;Terminalglasögon;546,5;2022-09-29;2022-09-29;41520;BUP mott Övik;13854
21660987;4 Synsam Örnsköldsvik;46230;Terminalglasögon;296,5;2022-09-29;2022-09-29;41520;BUP mott Övik;13855
21660988;4 Synsam Örnsköldsvik;46230;Terminalglasögon;546,5;2022-09-29;2022-09-29;41103;Med Dagvård Övik;13856
21660989;4 Synsam Örnsköldsvik;46230;Terminalglasögon;546,5;2022-09-29;2022-09-29;69513;Konsulenter;13857
21660990;4 Synsam Örnsköldsvik;46230;Terminalglasögon;296,5;2022-09-29;2022-09-29;87549;ST-läkare Bjästa;13858
21660992;4 Synsam Örnsköldsvik;46230;Terminalglasögon;49;2022-09-29;2022-09-29;84427;Arbetsmiljö;13859
21660994;4 Synsam Örnsköldsvik;46230;Terminalglasögon;546,5;2022-09-29;2022-09-29;41223;Sekreterarenh Kirurgi Övik;13860
21661310;4 Synsam Örnsköldsvik;46230;Terminalglasögon;546,5;2022-09-29;2022-09-29;87561;Läkare Ankaret HC;13861
21660997;4 Synsam Örnsköldsvik;46230;Terminalglasögon;546,5;2022-09-29;2022-09-29;41420;Operationsavd Övik;13862
21661309;4 Synsam Örnsköldsvik;46230;Terminalglasögon;546,5;2022-09-29;2022-09-29;87703;Gemensamma kostn Husum/T;13863
21661000;4 Synsam Örnsköldsvik;46230;Terminalglasögon;296,5;2022-09-29;2022-09-29;86963;MVC Ö-vik;13864
21661001;4 Synsam Örnsköldsvik;64800;Arbets/skyddskläd/skyddsmat;546,5;2022-09-29;2022-09-29;54030;Ftv Örnsköldsvik;13865
21661024;4 Synsam Örnsköldsvik;46230;Terminalglasögon;546,5;2022-09-29;2022-09-29;41111;Medicinmott Övik;13866
21661027;4 Synsam Örnsköldsvik;46230;Terminalglasögon;546,5;2022-09-29;2022-09-29;86975;Ungdomsmott, Sundsvall;13867
21661031;4 Synsam Örnsköldsvik;46230;Terminalglasögon;546,5;2022-09-29;2022-09-29;41105;Dialysmott Övik;13868
21661041;4 Synsam Örnsköldsvik;46210;Hälsokontroller;296,5;2022-09-29;2022-09-29;41114;Sjukgymnastikmott Övik;13869
21661042;4 Synsam Örnsköldsvik;46230;Terminalglasögon;546,5;2022-09-29;2022-09-29;69600;Kök gem L-ting Västernorrland;13870
21661044;4 Synsam Örnsköldsvik;46230;Terminalglasögon;546,5;2022-09-29;2022-09-29;87569;Distriktssjukgymnastik Ankaret;13871
21661052;4 Synsam Örnsköldsvik;46230;Terminalglasögon;546,5;2022-09-29;2022-09-29;41620;Röntgenmott Övik;13872
21661053;4 Synsam Örnsköldsvik;46230;Terminalglasögon;546,5;2022-09-29;2022-09-29;41310;Läkarenh Kvinnosjukvård Övik;13873
21662941;4 Synsam Örnsköldsvik;46230;Terminalglasögon;546,5;2022-10-01;2022-09-30;41126;Sekreterarenh Medicin Övik;13874
21662942;4 Synsam Örnsköldsvik;46230;Terminalglasögon;546,5;2022-10-01;2022-09-30;41102;Medicinavd 2 Övik;13875
21662943;4 Synsam Örnsköldsvik;46230;Terminalglasögon;546,5;2022-10-01;2022-09-30;66300;Sterilteknik Örnsköldsvik;13876
21662944;4 Synsam Örnsköldsvik;58700;Glasögonbidrag, patient;900;2022-10-01;2022-09-30;22600;Ögonsjukvård Gem;13877
21662945;4 Synsam Örnsköldsvik;58700;Glasögonbidrag, patient;900;2022-10-01;2022-09-30;22600;Ögonsjukvård Gem;13878
21662946;4 Synsam Örnsköldsvik;58700;Glasögonbidrag, patient;900;2022-10-01;2022-09-30;22600;Ögonsjukvård Gem;13879
21662947;4 Synsam Örnsköldsvik;58700;Glasögonbidrag, patient;900;2022-10-01;2022-09-30;22600;Ögonsjukvård Gem;13880
21662948;4 Synsam Örnsköldsvik;58700;Glasögonbidrag, patient;900;2022-10-01;2022-09-30;22600;Ögonsjukvård Gem;13881
21662949;4 Synsam Örnsköldsvik;58700;Glasögonbidrag, patient;900;2022-10-01;2022-09-30;22600;Ögonsjukvård Gem;13882
21664620;4 Synsam Örnsköldsvik;58700;Glasögonbidrag, patient;900;2022-10-04;2022-09-30;22600;Ögonsjukvård Gem;13932
21678898;4 Ögrens Optik;58700;Glasögonbidrag, patient;900;2022-10-21;2022-09-28;22600;Ögonsjukvård Gem;5169
21678861;4 Ögrens Optik;58700;Glasögonbidrag, patient;900;2022-10-21;2022-09-28;22600;Ögonsjukvård Gem;5170
21678860;4 Ögrens Optik;58700;Glasögonbidrag, patient;900;2022-10-21;2022-09-28;22600;Ögonsjukvård Gem;5171
21678859;4 Ögrens Optik;58700;Glasögonbidrag, patient;900;2022-10-21;2022-09-28;22600;Ögonsjukvård Gem;5172
21679499;4 Ögrens Optik;58700;Glasögonbidrag, patient;900;2022-10-22;2022-09-28;22600;Ögonsjukvård Gem;5173
21679447;4 Ögrens Optik;58700;Glasögonbidrag, patient;900;2022-10-22;2022-09-28;22600;Ögonsjukvård Gem;5174
21679515;4 Ögrens Optik;58700;Glasögonbidrag, patient;900;2022-10-22;2022-09-28;22600;Ögonsjukvård Gem;5175
21679422;4 Ögrens Optik;58700;Glasögonbidrag, patient;900;2022-10-22;2022-09-28;22600;Ögonsjukvård Gem;5176
21679420;4 Ögrens Optik;58700;Glasögonbidrag, patient;900;2022-10-22;2022-09-28;22600;Ögonsjukvård Gem;5177
21660984;4050143 Sundsvalls Sjh/Pressbyrån;46330;Uppvaktning present t personal;1860;2022-09-29;2022-09-29;84120;Laboratoriemedicin Sundsvall;3232800138
21660985;4050143 Sundsvalls Sjh/Pressbyrån;46330;Uppvaktning present t personal;1085;2022-09-29;2022-09-29;84310;Laboratoriemedicin Sollefteå;3232800139
21660985;4050143 Sundsvalls Sjh/Pressbyrån;46330;Uppvaktning present t personal;1085;2022-09-29;2022-09-29;84410;Laboratoriemedicin Ö-vik;3232800139
21656946;A.D.-man International AB;75900;Administrativa servicetjänst;2483;2022-09-22;2022-09-22;58704;Särskilda rekryteringsinsatser;3547
21654113;A.L Uthyrning AB;66400;Hyra/leasing transportmedel;3000;2022-09-19;2022-09-15;51010;Ftv Ånge;22220
21663206;A.L Uthyrning AB;66400;Hyra/leasing transportmedel;2427;2022-10-03;2022-09-30;51010;Ftv Ånge;22231
21654461;AB Berner och Co;66900;Kostn bilar/transportm övr;13416;2022-09-20;2022-09-08;82292;Civilt försvar;21843
21648640;AB Berner och Co;66300;Underhåll/material transpm;4271;2022-09-10;2022-09-02;69723;Leasingbilar Härnösand;26326582
21650610;AB Berner och Co;66300;Underhåll/material transpm;3286;2022-09-14;2022-09-06;69723;Leasingbilar Härnösand;26326606
21654484;AB Berner och Co;66300;Underhåll/material transpm;5271;2022-09-20;2022-09-09;69723;Leasingbilar Härnösand;26326656
21654466;AB Berner och Co;66300;Underhåll/material transpm;5192;2022-09-20;2022-09-12;69723;Leasingbilar Härnösand;26326664
21657308;AB Berner och Co;66300;Underhåll/material transpm;5116;2022-09-23;2022-09-15;69723;Leasingbilar Härnösand;26326681
21660378;AB Berner och Co;66300;Underhåll/material transpm;1548;2022-09-29;2022-09-20;58000;Folktandvårdens Kansli;26326698
21660360;AB Berner och Co;66300;Underhåll/material transpm;5192;2022-09-29;2022-09-20;69723;Leasingbilar Härnösand;26326703
21648654;AB Berner och Co;73220;Självrisk fordonsskada;14143;2022-09-10;2022-09-01;69711;Transport team 1 Sundsvall;363012291
21648654;AB Berner och Co;66300;Underhåll/material transpm;14143;2022-09-10;2022-09-01;69711;Transport team 1 Sundsvall;363012291
21652818;AB Berner och Co;66300;Underhåll/material transpm;3582;2022-09-16;2022-09-07;69711;Transport team 1 Sundsvall;363012391
21654102;AB Berner och Co;66900;Kostn bilar/transportm övr;1401;2022-09-16;2022-09-16;13700;SSIH;363012610
21659325;AB Berner och Co;66900;Kostn bilar/transportm övr;16748;2022-09-27;2022-09-27;15107;Psykiatrisk avd 51 Svall;363012801B
21650758;AB Berner och Co;66900;Kostn bilar/transportm övr;1360;2022-09-13;2022-09-13;69512;Teknisk service;85301844
21642940;AB Berner och Co;66300;Underhåll/material transpm;16846;2022-09-01;2022-09-01;69512;Teknisk service;86315193B
21646532;AB Berner och Co;66900;Kostn bilar/transportm övr;3500;2022-09-06;2022-09-06;69512;Teknisk service;86315235
21660361;AB Berner och Co;66300;Underhåll/material transpm;8813;2022-09-29;2022-09-19;69711;Transport team 1 Sundsvall;86315342
21669375;AB Berner och Co;66300;Underhåll/material transpm;4090;2022-10-08;2022-09-28;69512;Teknisk service;86315453
21671312;AB Berner och Co;66300;Underhåll/material transpm;5261;2022-10-12;2022-09-30;69711;Transport team 1 Sundsvall;86315483
21642431;AB Byggbeslag Lås o Säkerhet;60740;Nytillv hyresgäst/kund;45;2022-09-01;2022-09-01;63801;Sundsvall ombyggnad verksamhet;619109664
21652823;AB Byggbeslag Lås o Säkerhet;57990;Material/varor övrigt;2375;2022-09-16;2022-09-07;70370;Ålsta Svall Org.bidrag;619110184
21646631;AB Byggbeslag Lås o Säkerhet;60740;Nytillv hyresgäst/kund;448;2022-09-07;2022-09-07;63801;Sundsvall ombyggnad verksamhet;619110240
21654258;AB Byggbeslag Lås o Säkerhet;60740;Nytillv hyresgäst/kund;7236;2022-09-19;2022-09-19;63801;Sundsvall ombyggnad verksamhet;619112366
21657443;AB Byggbeslag Lås o Säkerhet;57990;Material/varor övrigt;2042;2022-09-23;2022-09-23;70360;Ålsta Fränsta Org.bidrag;619113475
21657444;AB Byggbeslag Lås o Säkerhet;64190;Inventarier <48,3 tkr övr;123;2022-09-23;2022-09-23;63060;Sundsvalls driftområde;619113556
21662141;AB Byggbeslag Lås o Säkerhet;60690;Fastighetsservice övrig;4604;2022-10-01;2022-09-23;78300;RPK gemensamt;619113681
21657669;AB Byggbeslag Lås o Säkerhet;60740;Nytillv hyresgäst/kund;5029;2022-09-23;2022-09-23;63801;Sundsvall ombyggnad verksamhet;619113685
21666813;AB Byggbeslag Lås o Säkerhet;57990;Material/varor övrigt;7983;2022-10-05;2022-09-26;70370;Ålsta Svall Org.bidrag;619113750
21669666;AB Byggbeslag Lås o Säkerhet;60690;Fastighetsservice övrig;22373;2022-10-08;2022-09-29;78304;RPK Avd 94;619115030
21669423;AB Byggbeslag Lås o Säkerhet;60690;Fastighetsservice övrig;8581;2022-10-08;2022-09-29;78300;RPK gemensamt;619115031
21669665;AB Byggbeslag Lås o Säkerhet;60690;Fastighetsservice övrig;2150;2022-10-08;2022-09-29;78300;RPK gemensamt;619115032
21660825;AB Byggbeslag Lås o Säkerhet;60740;Nytillv hyresgäst/kund;9006;2022-09-29;2022-09-29;63801;Sundsvall ombyggnad verksamhet;619115040
21660826;AB Byggbeslag Lås o Säkerhet;60740;Nytillv hyresgäst/kund;9006;2022-09-29;2022-09-29;63801;Sundsvall ombyggnad verksamhet;619115041
21660823;AB Byggbeslag Lås o Säkerhet;65500;Underhåll/material inventarier;9006;2022-09-29;2022-09-29;78308;RPK Avd 98;619115042
21660824;AB Byggbeslag Lås o Säkerhet;60679;Skadegörelse fastighet;1300;2022-09-29;2022-09-29;63200;Sundsvalls sjukhus;619115043
21660827;AB Byggbeslag Lås o Säkerhet;60740;Nytillv hyresgäst/kund;5326;2022-09-29;2022-09-29;63801;Sundsvall ombyggnad verksamhet;619115044
21660822;AB Byggbeslag Lås o Säkerhet;60740;Nytillv hyresgäst/kund;4662;2022-09-29;2022-09-29;63801;Sundsvall ombyggnad verksamhet;619115045
21660821;AB Byggbeslag Lås o Säkerhet;60740;Nytillv hyresgäst/kund;2150;2022-09-29;2022-09-29;63801;Sundsvall ombyggnad verksamhet;619115046
21660828;AB Byggbeslag Lås o Säkerhet;60740;Nytillv hyresgäst/kund;17597;2022-09-29;2022-09-29;63801;Sundsvall ombyggnad verksamhet;619115047
21669418;AB Byggbeslag Lås o Säkerhet;60690;Fastighetsservice övrig;7250;2022-10-08;2022-09-29;78300;RPK gemensamt;619115291
21660950;AB Byggbeslag Lås o Säkerhet;60701;Material akutunderhåll;2438;2022-09-29;2022-09-29;63200;Sundsvalls sjukhus;619115323
21660935;AB Byggbeslag Lås o Säkerhet;60740;Nytillv hyresgäst/kund;484;2022-09-29;2022-09-29;63801;Sundsvall ombyggnad verksamhet;619115324
21661526;AB Byggbeslag Lås o Säkerhet;60701;Material akutunderhåll;496;2022-09-30;2022-09-30;63200;Sundsvalls sjukhus;619115621
21645972;AB Gema;57990;Material/varor övrigt;2234;2022-09-06;2022-09-06;12001;Operationsavd A Svall;125421
21645972;AB Gema;57990;Material/varor övrigt;2234;2022-09-06;2022-09-06;12001;Operationsavd A Svall;125421
21647586;AB Hanngrens Sadelmakeri;60700;Felavhjälpande underhåll;8500;2022-09-08;2022-09-08;63201;Snökyla;1941 /2022
21656138;AB Hanngrens Sadelmakeri;64800;Arbets/skyddskläd/skyddsmat;2000;2022-09-21;2022-09-21;17410;Ambulansen Svall;1950
21646262;AB Härnösandshus;60100;Lokalhyra;318123;2022-09-07;2022-09-01;17430;Ambulansen Hsand;30003894
21669752;AB JSEC / Fortnox;60720;Planerat underhåll;4936;2022-10-08;2022-09-30;86975;Ungdomsmott, Sundsvall;48
21649147;AB K Waldemar Larsson;57990;Material/varor övrigt;131150;2022-09-12;2022-09-12;11500;AT-Läkarutbildning Svall;7453
21649421;AB Kvällstidningen Expressen/PayEx;76710;Tidningar/tidskrifter;1821;2022-09-13;2022-09-05;69632;Cafe Ett Sollefteå;80-2739202
21651450;AB Ludvig Svensson;64600;Förbrmatr ej städ/kontor/IT;6435;2022-09-15;2022-09-07;69751;Städ team 1 Sundsvall;182211
21648071;AB Sjögrendo Konsult;55595;Inhyrda tandläkare;30735;2022-09-09;2022-09-01;51160;BEPP;202208
21648008;AB Svenska Bilprovning;66900;Kostn bilar/transportm övr;5459;2022-09-09;2022-09-09;69714;Leasingbilar Sundsvall;3,10003E+11
21648008;AB Svenska Bilprovning;66900;Kostn bilar/transportm övr;5459;2022-09-09;2022-09-09;69714;Leasingbilar Sundsvall;3,10003E+11
21648008;AB Svenska Bilprovning;66900;Kostn bilar/transportm övr;5459;2022-09-09;2022-09-09;78312;RPK Avd 99;3,10003E+11
21648008;AB Svenska Bilprovning;66900;Kostn bilar/transportm övr;5459;2022-09-09;2022-09-09;69512;Teknisk service;3,10003E+11
21648008;AB Svenska Bilprovning;66900;Kostn bilar/transportm övr;5459;2022-09-09;2022-09-09;70360;Ålsta Fränsta Org.bidrag;3,10003E+11
21648008;AB Svenska Bilprovning;66900;Kostn bilar/transportm övr;5459;2022-09-09;2022-09-09;15107;Psykiatrisk avd 51 Svall;3,10003E+11
21648687;AB Svenska Bilprovning;66900;Kostn bilar/transportm övr;619;2022-09-10;2022-09-09;69714;Leasingbilar Sundsvall;3,10003E+11
21671262;AB Timråbo;60100;Lokalhyra;25000;2022-10-12;2022-09-12;86010;Vaccination Söder;1002106878
21651444;AB Tingstad Papper;57700;Undervisningsmaterial;837;2022-09-15;2022-09-08;70321;Hola Verksamhetsbidrag;60522066
21654340;AB Transistor Sweden;57100;Tekniska hjälpmedel;39450;2022-09-19;2022-09-19;19430;Tekniska hörselvårdsenheten;103572
21656983;AB Transistor Sweden;57100;Tekniska hjälpmedel;6625;2022-09-22;2022-09-22;19430;Tekniska hörselvårdsenheten;103796
21643376;AB Widex;57100;Tekniska hjälpmedel;42806;2022-09-02;2022-09-02;19430;Tekniska hörselvårdsenheten;2681922
21643377;AB Widex;57100;Tekniska hjälpmedel;2480;2022-09-02;2022-09-02;19430;Tekniska hörselvårdsenheten;2682015
21648478;AB Widex;57100;Tekniska hjälpmedel;4696;2022-09-09;2022-09-09;19430;Tekniska hörselvårdsenheten;2682300
21648476;AB Widex;57100;Tekniska hjälpmedel;5600;2022-09-09;2022-09-09;19430;Tekniska hörselvårdsenheten;2682326
21648477;AB Widex;57100;Tekniska hjälpmedel;14335;2022-09-09;2022-09-09;19430;Tekniska hörselvårdsenheten;2682387
21653728;AB Widex;57100;Tekniska hjälpmedel;250;2022-09-16;2022-09-13;19430;Tekniska hörselvårdsenheten;2682489
21653729;AB Widex;57100;Tekniska hjälpmedel;7473;2022-09-16;2022-09-16;19430;Tekniska hörselvårdsenheten;2682704
21653734;AB Widex;57100;Tekniska hjälpmedel;1750;2022-09-16;2022-09-19;19430;Tekniska hörselvårdsenheten;2682723
21653730;AB Widex;57100;Tekniska hjälpmedel;9031;2022-09-16;2022-09-19;19430;Tekniska hörselvårdsenheten;2682729
21657618;AB Widex;57100;Tekniska hjälpmedel;4363;2022-09-23;2022-09-23;19430;Tekniska hörselvårdsenheten;2683002
21657619;AB Widex;57100;Tekniska hjälpmedel;3198;2022-09-23;2022-09-23;19430;Tekniska hörselvårdsenheten;2683059
21661787;AB Widex;57100;Tekniska hjälpmedel;825;2022-09-30;2022-09-26;19430;Tekniska hörselvårdsenheten;2683103
21661785;AB Widex;57100;Tekniska hjälpmedel;1500;2022-09-30;2022-09-26;19430;Tekniska hörselvårdsenheten;2683111
21661781;AB Widex;57100;Tekniska hjälpmedel;17788;2022-09-30;2022-09-28;19430;Tekniska hörselvårdsenheten;2683237
21661779;AB Widex;57100;Tekniska hjälpmedel;900;2022-09-30;2022-09-28;19430;Tekniska hörselvårdsenheten;2683255
21661789;AB Widex;57100;Tekniska hjälpmedel;3719;2022-09-30;2022-09-29;19430;Tekniska hörselvårdsenheten;2683369
21661788;AB Widex;57100;Tekniska hjälpmedel;5828;2022-09-30;2022-09-30;19430;Tekniska hörselvårdsenheten;2683440
21661778;AB Widex;57100;Tekniska hjälpmedel;835;2022-09-30;2022-09-30;19430;Tekniska hörselvårdsenheten;2683452
21660096;AB Åkerikonsult;76810;Medlems-/föreningsavg övr;938;2022-09-28;2022-09-19;63040;Fastighetsenheten;1152583
21655720;AB Övikshem;60671;Serviceavtal fastigheter;2606;2022-09-21;2022-09-09;63750;Bredbyns hälsocentral;2,6637E+16
21655695;AB Övikshem;60100;Lokalhyra;55416;2022-09-21;2022-09-09;70380;Övik Organisationsbidrag;3,6807E+16
21641700;Aba Skol AB;64600;Förbrmatr ej städ/kontor/IT;1537;2022-09-01;2022-09-01;17300;Arbetsterapimott Svall Hsand;FF1031319
21646769;Aba Skol AB;64500;Kontorsmaterial;7893;2022-09-07;2022-09-07;30103;BUM mott Slå;FF1033912
21648460;Aba Skol AB;57990;Material/varor övrigt;405;2022-09-09;2022-09-09;51180;Ftv Timrå;FF1035091
21648460;Aba Skol AB;57990;Material/varor övrigt;405;2022-09-09;2022-09-09;51180;Ftv Timrå;FF1035091
21648460;Aba Skol AB;67900;Transporter/frakter övr ej pat;405;2022-09-09;2022-09-09;51180;Ftv Timrå;FF1035091
21649663;Aba Skol AB;64600;Förbrmatr ej städ/kontor/IT;1963;2022-09-13;2022-09-13;12120;Kirurgisk mott Svall;FF1036181
21649663;Aba Skol AB;64600;Förbrmatr ej städ/kontor/IT;1963;2022-09-13;2022-09-13;12120;Kirurgisk mott Svall;FF1036181
21651059;Aba Skol AB;56360;Tandvårdsmaterial;307;2022-09-14;2022-09-14;54070;Ftv Domsjö;FF1037025
21651059;Aba Skol AB;57930;Öresutjämning;307;2022-09-14;2022-09-14;54070;Ftv Domsjö;FF1037025
21657395;Aba Skol AB;64500;Kontorsmaterial;135;2022-09-23;2022-09-23;87173;Gemensamt Kramfors HC;FF1040223
21657395;Aba Skol AB;67900;Transporter/frakter övr ej pat;135;2022-09-23;2022-09-23;87173;Gemensamt Kramfors HC;FF1040223
21660848;Aba Skol AB;64600;Förbrmatr ej städ/kontor/IT;394;2022-09-29;2022-09-29;12720;Ögonmott Svall;FF1043162
21660848;Aba Skol AB;64600;Förbrmatr ej städ/kontor/IT;394;2022-09-29;2022-09-29;12720;Ögonmott Svall;FF1043162
21660973;Aba Skol AB;64500;Kontorsmaterial;95;2022-09-29;2022-09-29;27182;Röntgenmott Hsand;FF1043588
21660973;Aba Skol AB;64500;Kontorsmaterial;95;2022-09-29;2022-09-29;27182;Röntgenmott Hsand;FF1043588
21661642;Aba Skol AB;64500;Kontorsmaterial;175;2022-09-30;2022-09-30;41108;Kardiologi avd 1 Övik;FF1043907
21661642;Aba Skol AB;64500;Kontorsmaterial;175;2022-09-30;2022-09-30;41108;Kardiologi avd 1 Övik;FF1043907
21661723;Aba Skol AB;64500;Kontorsmaterial;185;2022-09-30;2022-09-30;12420;Ortopedmott Svall;FF1044118
21661723;Aba Skol AB;64500;Kontorsmaterial;185;2022-09-30;2022-09-30;12420;Ortopedmott Svall;FF1044118
21655841;Aba Skol AB;57990;Material/varor övrigt;-1111;2022-09-20;2022-09-20;17300;Arbetsterapimott Svall Hsand;FK0127599
21655840;ABAK;60740;Nytillv hyresgäst/kund;3412;2022-09-21;2022-09-22;63801;Sundsvall ombyggnad verksamhet;65469
21661434;ABAK;60770;Verksamhetsanknutet underhåll;33723;2022-09-30;2022-09-29;86109;Sjukgymnastik, Ånge;65472
21661401;ABAK;60700;Felavhjälpande underhåll;10806;2022-09-30;2022-09-30;63200;Sundsvalls sjukhus;65490
21661400;ABAK;60700;Felavhjälpande underhåll;7903;2022-09-30;2022-09-30;63200;Sundsvalls sjukhus;65493
21641797;Abbott Medical Sweden AB;57100;Tekniska hjälpmedel;7812,5;2022-09-01;2022-09-01;11007;Kardiologi mott Svall;7620010355
21642841;Abbott Medical Sweden AB;56390;Sjukvårdsartiklar övriga;11945;2022-09-01;2022-09-01;11009;Krankärls mott Svall;7620010370
21644980;Abbott Medical Sweden AB;56390;Sjukvårdsartiklar övriga;500;2022-09-05;2022-09-05;12100;Kirurgi Gem Svall;7620010487
21644982;Abbott Medical Sweden AB;56350;Sjukvårdsimplantat;4625;2022-09-05;2022-09-05;12100;Kirurgi Gem Svall;7620010501
21645947;Abbott Medical Sweden AB;56350;Sjukvårdsimplantat;4625;2022-09-06;2022-09-06;12100;Kirurgi Gem Svall;7620010538
21645998;Abbott Medical Sweden AB;56390;Sjukvårdsartiklar övriga;2812,5;2022-09-06;2022-09-06;11009;Krankärls mott Svall;7620010553
21646981;Abbott Medical Sweden AB;57100;Tekniska hjälpmedel;81312,5;2022-09-07;2022-09-07;11007;Kardiologi mott Svall;7620010630
21646980;Abbott Medical Sweden AB;56390;Sjukvårdsartiklar övriga;5500;2022-09-07;2022-09-07;12100;Kirurgi Gem Svall;7620010631
21648546;Abbott Medical Sweden AB;57100;Tekniska hjälpmedel;3437,5;2022-09-09;2022-09-09;11007;Kardiologi mott Svall;7620010769
21648547;Abbott Medical Sweden AB;56390;Sjukvårdsartiklar övriga;14900;2022-09-09;2022-09-09;11009;Krankärls mott Svall;7620010781
21649218;Abbott Medical Sweden AB;57100;Tekniska hjälpmedel;7500;2022-09-12;2022-09-12;11007;Kardiologi mott Svall;7620010848
21649219;Abbott Medical Sweden AB;56390;Sjukvårdsartiklar övriga;217500;2022-09-12;2022-09-12;11009;Krankärls mott Svall;7620010849
21653711;Abbott Medical Sweden AB;57100;Tekniska hjälpmedel;20625;2022-09-16;2022-09-16;41107;Klinisk fysiologi Övik;7620011071
21654509;Abbott Medical Sweden AB;56390;Sjukvårdsartiklar övriga;2353,75;2022-09-19;2022-09-19;11009;Krankärls mott Svall;7620011198
21655466;Abbott Medical Sweden AB;56390;Sjukvårdsartiklar övriga;6437,5;2022-09-20;2022-09-20;12100;Kirurgi Gem Svall;7620011240
21655555;Abbott Medical Sweden AB;56390;Sjukvårdsartiklar övriga;5625;2022-09-20;2022-09-20;11009;Krankärls mott Svall;7620011264
21656157;Abbott Medical Sweden AB;56390;Sjukvårdsartiklar övriga;10625;2022-09-21;2022-09-21;11009;Krankärls mott Svall;7620011301
21656241;Abbott Medical Sweden AB;56390;Sjukvårdsartiklar övriga;500;2022-09-21;2022-09-21;12100;Kirurgi Gem Svall;7620011329
21658276;Abbott Medical Sweden AB;57100;Tekniska hjälpmedel;51343,75;2022-09-26;2022-09-26;11007;Kardiologi mott Svall;7620011578
21658781;Abbott Medical Sweden AB;57100;Tekniska hjälpmedel;11250;2022-09-27;2022-09-27;11007;Kardiologi mott Svall;7620011630
21660024;Abbott Medical Sweden AB;57100;Tekniska hjälpmedel;14937,5;2022-09-28;2022-09-28;11007;Kardiologi mott Svall;7620011689
21660117;Abbott Medical Sweden AB;57100;Tekniska hjälpmedel;55687,5;2022-09-28;2022-09-28;41107;Klinisk fysiologi Övik;7620011694
21660118;Abbott Medical Sweden AB;56350;Sjukvårdsimplantat;10625;2022-09-28;2022-09-28;12100;Kirurgi Gem Svall;7620011706
21660116;Abbott Medical Sweden AB;56350;Sjukvårdsimplantat;10625;2022-09-28;2022-09-28;12100;Kirurgi Gem Svall;7620011707
21660204;Abbott Medical Sweden AB;57100;Tekniska hjälpmedel;750;2022-09-28;2022-09-28;11007;Kardiologi mott Svall;7620011761
21661925;Abbott Medical Sweden AB;57100;Tekniska hjälpmedel;10000;2022-09-30;2022-09-30;11007;Kardiologi mott Svall;7620011887
21661936;Abbott Medical Sweden AB;56390;Sjukvårdsartiklar övriga;153325;2022-09-30;2022-09-30;11009;Krankärls mott Svall;7620011913
21663775;Abbott Medical Sweden AB;56390;Sjukvårdsartiklar övriga;8326,25;2022-09-30;2022-09-30;11009;Krankärls mott Svall;7620011914
21651853;Abbott Scandinavia AB;56390;Sjukvårdsartiklar övriga;11395,59;2022-09-15;2022-09-14;84121;Kemi;467339
21654620;Abbott Scandinavia AB;67900;Transporter/frakter övr ej pat;637,5;2022-09-20;2022-09-16;84121;Kemi;467353
21656212;Abbott Scandinavia AB;56390;Sjukvårdsartiklar övriga;96000;2022-09-21;2022-09-20;84121;Kemi;467370
21656220;Abbott Scandinavia AB;57100;Tekniska hjälpmedel;4593,75;2022-09-21;2022-09-20;11320;Lungmott Svall;467394
21658051;Abbott Scandinavia AB;67900;Transporter/frakter övr ej pat;637,5;2022-09-26;2022-09-22;84121;Kemi;467419
21649168;ABC Doctor AB;55510;Inhyrda läkare;95181;2022-09-12;2022-09-09;86801;Läkare, Södra sundet HC;12652
21654243;ABC Doctor AB;55510;Inhyrda läkare;59813;2022-09-19;2022-09-16;86801;Läkare, Södra sundet HC;12677
21661643;A-C Larsson Reflektere AB;75990;Främmande tjänster övriga;13057,5;2022-09-30;2022-09-23;86383;Gemensamma kostnader, Centrum;2022:24:00
21667922;A-C Larsson Reflektere AB;46120;Föreläsararvode personalutbild;16000;2022-10-06;2022-09-29;36531;Kuratorsmott Slå;2022:25:00
21667922;A-C Larsson Reflektere AB;46120;Föreläsararvode personalutbild;16000;2022-10-06;2022-09-29;87267;Socionom Nyland HC;2022:25:00
21667922;A-C Larsson Reflektere AB;46120;Föreläsararvode personalutbild;16000;2022-10-06;2022-09-29;87317;Socionom Sollefteå HC;2022:25:00
21667922;A-C Larsson Reflektere AB;46120;Föreläsararvode personalutbild;16000;2022-10-06;2022-09-29;87167;Socionom Kramfors HC;2022:25:00
21648914;Acacia Blommor;57990;Material/varor övrigt;300;2022-09-10;2022-09-10;19452;Hörcentral Härnösand;3016
21655842;Acacia Blommor;46330;Uppvaktning present t personal;309;2022-09-20;2022-09-20;70000;RU:s kansli;3020
21655564;Ace Dental Sweden AB;57300;Städ/tvätt/rengöringsmat;5550;2022-09-20;2022-09-20;54030;Ftv Örnsköldsvik;8090205479
21657271;Ace Dental Sweden AB;65200;Matr akut underh med tekn utr;40000;2022-09-22;2022-09-22;51040;Ftv Matfors;8090205539
21661064;Ace Dental Sweden AB;57300;Städ/tvätt/rengöringsmat;9250;2022-09-29;2022-09-29;51100;Ftv Nacksta;8090205790
21658064;Actera AB;69400;Utställningar/mässor;21188;2022-09-24;2022-09-16;58704;Särskilda rekryteringsinsatser;107103
21661268;Activae Vitae AB;75400;IT-tjänst löpande drift;20295;2022-09-30;2022-09-26;12019;Läkarenh Anestesi Svall;2,02209E+13
21648930;AdatoCare AB;55520;Inhyrda sjuksköterskor;16716;2022-09-09;2022-09-09;87303;Sjuksköterskevård Sollefteå HC;706
21664921;AdatoCare AB;55520;Inhyrda sjuksköterskor;129519;2022-10-03;2022-09-30;12403;Ortopedavd 14 Svall;710
21664919;AdatoCare AB;55520;Inhyrda sjuksköterskor;122658;2022-10-03;2022-09-30;12403;Ortopedavd 14 Svall;711
21655292;AdatoCare AB;55520;Inhyrda sjuksköterskor;-206078;2022-09-20;2022-09-20;87303;Sjuksköterskevård Sollefteå HC;719
21663705;AdatoCare AB;55520;Inhyrda sjuksköterskor;169683;2022-10-02;2022-09-30;17030;Akutmott Svall;720
21668448;AdatoCare AB;55520;Inhyrda sjuksköterskor;109133;2022-10-06;2022-09-30;87303;Sjuksköterskevård Sollefteå HC;721
21668409;AdatoCare AB;55520;Inhyrda sjuksköterskor;160128;2022-10-06;2022-09-30;87303;Sjuksköterskevård Sollefteå HC;722
21664916;AdatoCare AB;55520;Inhyrda sjuksköterskor;89549;2022-10-04;2022-09-30;31008;Stroke, rehabavd 17 Slå;731
21668455;AdatoCare AB;55520;Inhyrda sjuksköterskor;94911;2022-10-06;2022-09-30;11002;Hematologiavd 2 Svall;734
21658430;ADC Media AB;69100;Annonsering ej rekrytering;44369;2022-09-27;2022-09-20;70700;Folkhälsa;23963
21646808;Adcare AB;56350;Sjukvårdsimplantat;28125;2022-09-07;2022-09-07;12600;Urologi Gem Svall;26442
21651256;Adcare AB;56390;Sjukvårdsartiklar övriga;81250;2022-09-14;2022-09-14;12600;Urologi Gem Svall;26492
21651255;Adcare AB;56390;Sjukvårdsartiklar övriga;8125;2022-09-14;2022-09-14;12120;Kirurgisk mott Svall;26496
21655491;Adcare AB;56390;Sjukvårdsartiklar övriga;62500;2022-09-20;2022-09-20;12600;Urologi Gem Svall;26536
21658782;Adcare AB;56350;Sjukvårdsimplantat;3063;2022-09-27;2022-09-27;12600;Urologi Gem Svall;26599
21661646;Adcare AB;56390;Sjukvårdsartiklar övriga;16250;2022-09-30;2022-09-30;12120;Kirurgisk mott Svall;26638
21658254;ADDvise Tillquist AB;76990;Diverse övriga kostnader;5625;2022-09-26;2022-09-26;12001;Operationsavd A Svall;498808
21641771;Adlibris AB / Svea Bank AB;57700;Undervisningsmaterial;388,28;2022-09-01;2022-09-01;70321;Hola Verksamhetsbidrag;61318
21644962;Adlibris AB / Svea Bank AB;57990;Material/varor övrigt;354,25;2022-09-05;2022-09-05;70053;Språkutbildning;62345
21644962;Adlibris AB / Svea Bank AB;57990;Material/varor övrigt;354,25;2022-09-05;2022-09-05;70053;Språkutbildning;62345
21645955;Adlibris AB / Svea Bank AB;76700;Böcker;4904,62;2022-09-06;2022-09-06;14103;BUM avd 44 Svall;62832
21646947;Adlibris AB / Svea Bank AB;57990;Material/varor övrigt;869,84;2022-09-07;2022-09-07;30105;Habiliteringsmott Slå;63232
21646947;Adlibris AB / Svea Bank AB;57990;Material/varor övrigt;869,84;2022-09-07;2022-09-07;30105;Habiliteringsmott Slå;63232
21647422;Adlibris AB / Svea Bank AB;57990;Material/varor övrigt;965,73;2022-09-08;2022-09-08;17340;Logopedmott Svall Hsand;63413
21647617;Adlibris AB / Svea Bank AB;76700;Böcker;2263,07;2022-09-08;2022-09-08;81831;Medicinska bibliotek Sundsvall;63645
21647617;Adlibris AB / Svea Bank AB;76700;Böcker;2263,07;2022-09-08;2022-09-08;81831;Medicinska bibliotek Sundsvall;63645
21647617;Adlibris AB / Svea Bank AB;76700;Böcker;2263,07;2022-09-08;2022-09-08;81831;Medicinska bibliotek Sundsvall;63645
21647617;Adlibris AB / Svea Bank AB;76700;Böcker;2263,07;2022-09-08;2022-09-08;81833;Medicinska bibliotek Sollefteå;63645
21647617;Adlibris AB / Svea Bank AB;76700;Böcker;2263,07;2022-09-08;2022-09-08;81834;Medicinska bibliotek Ö-vik;63645
21647617;Adlibris AB / Svea Bank AB;76700;Böcker;2263,07;2022-09-08;2022-09-08;81831;Medicinska bibliotek Sundsvall;63645
21647617;Adlibris AB / Svea Bank AB;76700;Böcker;2263,07;2022-09-08;2022-09-08;81831;Medicinska bibliotek Sundsvall;63645
21648228;Adlibris AB / Svea Bank AB;57990;Material/varor övrigt;2238,72;2022-09-09;2022-09-09;81550;Områdesdirektör- OEP;63944
21648320;Adlibris AB / Svea Bank AB;57700;Undervisningsmaterial;440,54;2022-09-09;2022-09-09;70321;Hola Verksamhetsbidrag;64027
21648320;Adlibris AB / Svea Bank AB;57700;Undervisningsmaterial;440,54;2022-09-09;2022-09-09;70321;Hola Verksamhetsbidrag;64027
21648320;Adlibris AB / Svea Bank AB;57700;Undervisningsmaterial;440,54;2022-09-09;2022-09-09;70321;Hola Verksamhetsbidrag;64027
21648320;Adlibris AB / Svea Bank AB;57700;Undervisningsmaterial;440,54;2022-09-09;2022-09-09;70321;Hola Verksamhetsbidrag;64027
21648379;Adlibris AB / Svea Bank AB;57990;Material/varor övrigt;2884,68;2022-09-09;2022-09-09;17330;Kuratorsmott Svall Hsand;64054
21648379;Adlibris AB / Svea Bank AB;57990;Material/varor övrigt;2884,68;2022-09-09;2022-09-09;17330;Kuratorsmott Svall Hsand;64054
21648379;Adlibris AB / Svea Bank AB;57990;Material/varor övrigt;2884,68;2022-09-09;2022-09-09;17330;Kuratorsmott Svall Hsand;64054
21648379;Adlibris AB / Svea Bank AB;57990;Material/varor övrigt;2884,68;2022-09-09;2022-09-09;17330;Kuratorsmott Svall Hsand;64054
21648379;Adlibris AB / Svea Bank AB;57990;Material/varor övrigt;2884,68;2022-09-09;2022-09-09;17330;Kuratorsmott Svall Hsand;64054
21648414;Adlibris AB / Svea Bank AB;57990;Material/varor övrigt;1480,82;2022-09-09;2022-09-09;11827;Dietistmott Svall NO Södra;64056
21648414;Adlibris AB / Svea Bank AB;57990;Material/varor övrigt;1480,82;2022-09-09;2022-09-09;11827;Dietistmott Svall NO Södra;64056
21648428;Adlibris AB / Svea Bank AB;57990;Material/varor övrigt;775,39;2022-09-09;2022-09-09;41116;Kuratorsmott Övik;64088
21648428;Adlibris AB / Svea Bank AB;57990;Material/varor övrigt;775,39;2022-09-09;2022-09-09;41116;Kuratorsmott Övik;64088
21648428;Adlibris AB / Svea Bank AB;57990;Material/varor övrigt;775,39;2022-09-09;2022-09-09;41116;Kuratorsmott Övik;64088
21648852;Adlibris AB / Svea Bank AB;57900;Inventeringsdifferens;5538,5;2022-09-12;2022-09-12;70384;Övik Yrkeskurser;64338
21648852;Adlibris AB / Svea Bank AB;57700;Undervisningsmaterial;5538,5;2022-09-12;2022-09-12;70381;Övik Verksamhetsbidrag;64338
21648938;Adlibris AB / Svea Bank AB;57700;Undervisningsmaterial;1743,17;2022-09-12;2022-09-12;70321;Hola Verksamhetsbidrag;64406
21648938;Adlibris AB / Svea Bank AB;57700;Undervisningsmaterial;1743,17;2022-09-12;2022-09-12;70321;Hola Verksamhetsbidrag;64406
21648938;Adlibris AB / Svea Bank AB;57700;Undervisningsmaterial;1743,17;2022-09-12;2022-09-12;70321;Hola Verksamhetsbidrag;64406
21648938;Adlibris AB / Svea Bank AB;57700;Undervisningsmaterial;1743,17;2022-09-12;2022-09-12;70321;Hola Verksamhetsbidrag;64406
21648938;Adlibris AB / Svea Bank AB;57700;Undervisningsmaterial;1743,17;2022-09-12;2022-09-12;70321;Hola Verksamhetsbidrag;64406
21648938;Adlibris AB / Svea Bank AB;57700;Undervisningsmaterial;1743,17;2022-09-12;2022-09-12;70321;Hola Verksamhetsbidrag;64406
21648970;Adlibris AB / Svea Bank AB;76700;Böcker;874,5;2022-09-12;2022-09-12;11500;AT-Läkarutbildning Svall;64474
21648985;Adlibris AB / Svea Bank AB;37600;Förs läroböcker/undervmtr;308,78;2022-09-12;2022-09-12;15103;Psykiatrisk akutmott Svall;64491
21648985;Adlibris AB / Svea Bank AB;37600;Förs läroböcker/undervmtr;308,78;2022-09-12;2022-09-12;15103;Psykiatrisk akutmott Svall;64491
21649125;Adlibris AB / Svea Bank AB;57990;Material/varor övrigt;1863,27;2022-09-12;2022-09-12;86203;Sjuksköterskevård, Stöde;64586
21649125;Adlibris AB / Svea Bank AB;57990;Material/varor övrigt;1863,27;2022-09-12;2022-09-12;86203;Sjuksköterskevård, Stöde;64586
21649125;Adlibris AB / Svea Bank AB;57990;Material/varor övrigt;1863,27;2022-09-12;2022-09-12;86203;Sjuksköterskevård, Stöde;64586
21649125;Adlibris AB / Svea Bank AB;57990;Material/varor övrigt;1863,27;2022-09-12;2022-09-12;86203;Sjuksköterskevård, Stöde;64586
21649125;Adlibris AB / Svea Bank AB;57990;Material/varor övrigt;1863,27;2022-09-12;2022-09-12;86203;Sjuksköterskevård, Stöde;64586
21649131;Adlibris AB / Svea Bank AB;57990;Material/varor övrigt;1366,38;2022-09-12;2022-09-12;81907;Projektkostnadsställe;64587
21649131;Adlibris AB / Svea Bank AB;57990;Material/varor övrigt;1366,38;2022-09-12;2022-09-12;81907;Projektkostnadsställe;64587
21649135;Adlibris AB / Svea Bank AB;57900;Inventeringsdifferens;1944,89;2022-09-12;2022-09-12;70384;Övik Yrkeskurser;64614
21649135;Adlibris AB / Svea Bank AB;57700;Undervisningsmaterial;1944,89;2022-09-12;2022-09-12;70381;Övik Verksamhetsbidrag;64614
21649176;Adlibris AB / Svea Bank AB;76700;Böcker;2781,01;2022-09-12;2022-09-12;81831;Medicinska bibliotek Sundsvall;64736
21649176;Adlibris AB / Svea Bank AB;76700;Böcker;2781,01;2022-09-12;2022-09-12;81831;Medicinska bibliotek Sundsvall;64736
21649176;Adlibris AB / Svea Bank AB;76700;Böcker;2781,01;2022-09-12;2022-09-12;81833;Medicinska bibliotek Sollefteå;64736
21649176;Adlibris AB / Svea Bank AB;76700;Böcker;2781,01;2022-09-12;2022-09-12;81834;Medicinska bibliotek Ö-vik;64736
21649176;Adlibris AB / Svea Bank AB;76700;Böcker;2781,01;2022-09-12;2022-09-12;81831;Medicinska bibliotek Sundsvall;64736
21649698;Adlibris AB / Svea Bank AB;57700;Undervisningsmaterial;1179,99;2022-09-13;2022-09-13;70381;Övik Verksamhetsbidrag;65126
21649698;Adlibris AB / Svea Bank AB;57700;Undervisningsmaterial;1179,99;2022-09-13;2022-09-13;70381;Övik Verksamhetsbidrag;65126
21649734;Adlibris AB / Svea Bank AB;57990;Material/varor övrigt;1696,53;2022-09-13;2022-09-13;70053;Språkutbildning;65180
21649734;Adlibris AB / Svea Bank AB;57990;Material/varor övrigt;1696,53;2022-09-13;2022-09-13;70053;Språkutbildning;65180
21649734;Adlibris AB / Svea Bank AB;57990;Material/varor övrigt;1696,53;2022-09-13;2022-09-13;70053;Språkutbildning;65180
21649753;Adlibris AB / Svea Bank AB;76700;Böcker;258,64;2022-09-13;2022-09-13;41520;BUP mott Övik;65217
21649753;Adlibris AB / Svea Bank AB;76700;Böcker;258,64;2022-09-13;2022-09-13;41520;BUP mott Övik;65217
21649809;Adlibris AB / Svea Bank AB;76700;Böcker;1704,48;2022-09-13;2022-09-13;41520;BUP mott Övik;65309
21650874;Adlibris AB / Svea Bank AB;57990;Material/varor övrigt;291,29;2022-09-14;2022-09-14;15127;Psykiatrisk mottagning C;65433
21650874;Adlibris AB / Svea Bank AB;57990;Material/varor övrigt;291,29;2022-09-14;2022-09-14;15127;Psykiatrisk mottagning C;65433
21650960;Adlibris AB / Svea Bank AB;76700;Böcker;1270,94;2022-09-14;2022-09-14;31026;SPOT;65490
21650960;Adlibris AB / Svea Bank AB;76700;Böcker;1270,94;2022-09-14;2022-09-14;31026;SPOT;65490
21650960;Adlibris AB / Svea Bank AB;76700;Böcker;1270,94;2022-09-14;2022-09-14;31026;SPOT;65490
21650960;Adlibris AB / Svea Bank AB;76700;Böcker;1270,94;2022-09-14;2022-09-14;31026;SPOT;65490
21651225;Adlibris AB / Svea Bank AB;57790;Utbildningsmaterial övrigt;3396,79;2022-09-14;2022-09-14;12108;Kir avd KAVA;65729
21651225;Adlibris AB / Svea Bank AB;57790;Utbildningsmaterial övrigt;3396,79;2022-09-14;2022-09-14;12108;Kir avd KAVA;65729
21651225;Adlibris AB / Svea Bank AB;57790;Utbildningsmaterial övrigt;3396,79;2022-09-14;2022-09-14;12108;Kir avd KAVA;65729
21651225;Adlibris AB / Svea Bank AB;57790;Utbildningsmaterial övrigt;3396,79;2022-09-14;2022-09-14;12108;Kir avd KAVA;65729
21651225;Adlibris AB / Svea Bank AB;57790;Utbildningsmaterial övrigt;3396,79;2022-09-14;2022-09-14;12108;Kir avd KAVA;65729
21651225;Adlibris AB / Svea Bank AB;57790;Utbildningsmaterial övrigt;3396,79;2022-09-14;2022-09-14;12108;Kir avd KAVA;65729
21651225;Adlibris AB / Svea Bank AB;57790;Utbildningsmaterial övrigt;3396,79;2022-09-14;2022-09-14;12108;Kir avd KAVA;65729
21651983;Adlibris AB / Svea Bank AB;76700;Böcker;243,84;2022-09-15;2022-09-15;81831;Medicinska bibliotek Sundsvall;66019
21651999;Adlibris AB / Svea Bank AB;76700;Böcker;5267,62;2022-09-15;2022-09-15;81831;Medicinska bibliotek Sundsvall;66087
21651999;Adlibris AB / Svea Bank AB;76700;Böcker;5267,62;2022-09-15;2022-09-15;81833;Medicinska bibliotek Sollefteå;66087
21651999;Adlibris AB / Svea Bank AB;76700;Böcker;5267,62;2022-09-15;2022-09-15;81834;Medicinska bibliotek Ö-vik;66087
21651999;Adlibris AB / Svea Bank AB;76700;Böcker;5267,62;2022-09-15;2022-09-15;81831;Medicinska bibliotek Sundsvall;66087
21651999;Adlibris AB / Svea Bank AB;76700;Böcker;5267,62;2022-09-15;2022-09-15;81831;Medicinska bibliotek Sundsvall;66087
21651999;Adlibris AB / Svea Bank AB;76700;Böcker;5267,62;2022-09-15;2022-09-15;81831;Medicinska bibliotek Sundsvall;66087
21651999;Adlibris AB / Svea Bank AB;76700;Böcker;5267,62;2022-09-15;2022-09-15;81831;Medicinska bibliotek Sundsvall;66087
21651999;Adlibris AB / Svea Bank AB;76700;Böcker;5267,62;2022-09-15;2022-09-15;81833;Medicinska bibliotek Sollefteå;66087
21651999;Adlibris AB / Svea Bank AB;76700;Böcker;5267,62;2022-09-15;2022-09-15;81834;Medicinska bibliotek Ö-vik;66087
21653721;Adlibris AB / Svea Bank AB;57700;Undervisningsmaterial;565,3;2022-09-16;2022-09-16;70321;Hola Verksamhetsbidrag;66681
21653721;Adlibris AB / Svea Bank AB;57700;Undervisningsmaterial;565,3;2022-09-16;2022-09-16;70321;Hola Verksamhetsbidrag;66681
21653721;Adlibris AB / Svea Bank AB;57700;Undervisningsmaterial;565,3;2022-09-16;2022-09-16;70321;Hola Verksamhetsbidrag;66681
21654103;Adlibris AB / Svea Bank AB;57700;Undervisningsmaterial;2533,71;2022-09-19;2022-09-19;70321;Hola Verksamhetsbidrag;66871
21654103;Adlibris AB / Svea Bank AB;57700;Undervisningsmaterial;2533,71;2022-09-19;2022-09-19;70321;Hola Verksamhetsbidrag;66871
21654103;Adlibris AB / Svea Bank AB;57700;Undervisningsmaterial;2533,71;2022-09-19;2022-09-19;70321;Hola Verksamhetsbidrag;66871
21654103;Adlibris AB / Svea Bank AB;57700;Undervisningsmaterial;2533,71;2022-09-19;2022-09-19;70321;Hola Verksamhetsbidrag;66871
21654103;Adlibris AB / Svea Bank AB;57700;Undervisningsmaterial;2533,71;2022-09-19;2022-09-19;70321;Hola Verksamhetsbidrag;66871
21654103;Adlibris AB / Svea Bank AB;57700;Undervisningsmaterial;2533,71;2022-09-19;2022-09-19;70321;Hola Verksamhetsbidrag;66871
21654103;Adlibris AB / Svea Bank AB;57700;Undervisningsmaterial;2533,71;2022-09-19;2022-09-19;70321;Hola Verksamhetsbidrag;66871
21654103;Adlibris AB / Svea Bank AB;57700;Undervisningsmaterial;2533,71;2022-09-19;2022-09-19;70321;Hola Verksamhetsbidrag;66871
21654103;Adlibris AB / Svea Bank AB;57700;Undervisningsmaterial;2533,71;2022-09-19;2022-09-19;70321;Hola Verksamhetsbidrag;66871
21654103;Adlibris AB / Svea Bank AB;57700;Undervisningsmaterial;2533,71;2022-09-19;2022-09-19;70321;Hola Verksamhetsbidrag;66871
21654103;Adlibris AB / Svea Bank AB;57700;Undervisningsmaterial;2533,71;2022-09-19;2022-09-19;70321;Hola Verksamhetsbidrag;66871
21654103;Adlibris AB / Svea Bank AB;57700;Undervisningsmaterial;2533,71;2022-09-19;2022-09-19;70321;Hola Verksamhetsbidrag;66871
21654103;Adlibris AB / Svea Bank AB;57700;Undervisningsmaterial;2533,71;2022-09-19;2022-09-19;70321;Hola Verksamhetsbidrag;66871
21654134;Adlibris AB / Svea Bank AB;57700;Undervisningsmaterial;3068,91;2022-09-19;2022-09-19;70321;Hola Verksamhetsbidrag;66907
21654161;Adlibris AB / Svea Bank AB;57710;Läroböcker;3650,06;2022-09-19;2022-09-19;58702;ST-utb, uppdragsutbildning;66999
21654161;Adlibris AB / Svea Bank AB;57710;Läroböcker;3650,06;2022-09-19;2022-09-19;58702;ST-utb, uppdragsutbildning;66999
21654232;Adlibris AB / Svea Bank AB;57990;Material/varor övrigt;857,48;2022-09-19;2022-09-19;41117;Logopedmott Övik;67065
21654232;Adlibris AB / Svea Bank AB;57990;Material/varor övrigt;857,48;2022-09-19;2022-09-19;41117;Logopedmott Övik;67065
21654232;Adlibris AB / Svea Bank AB;57990;Material/varor övrigt;857,48;2022-09-19;2022-09-19;41117;Logopedmott Övik;67065
21654241;Adlibris AB / Svea Bank AB;76700;Böcker;1623,69;2022-09-19;2022-09-19;81831;Medicinska bibliotek Sundsvall;67091
21654241;Adlibris AB / Svea Bank AB;76700;Böcker;1623,69;2022-09-19;2022-09-19;81831;Medicinska bibliotek Sundsvall;67091
21654241;Adlibris AB / Svea Bank AB;76700;Böcker;1623,69;2022-09-19;2022-09-19;81831;Medicinska bibliotek Sundsvall;67091
21654241;Adlibris AB / Svea Bank AB;76700;Böcker;1623,69;2022-09-19;2022-09-19;81831;Medicinska bibliotek Sundsvall;67091
21654242;Adlibris AB / Svea Bank AB;57990;Material/varor övrigt;4661,2;2022-09-19;2022-09-19;41511;Psykiatrisk mott Övik;67131
21654242;Adlibris AB / Svea Bank AB;57990;Material/varor övrigt;4661,2;2022-09-19;2022-09-19;41511;Psykiatrisk mott Övik;67131
21654242;Adlibris AB / Svea Bank AB;57990;Material/varor övrigt;4661,2;2022-09-19;2022-09-19;41511;Psykiatrisk mott Övik;67131
21654242;Adlibris AB / Svea Bank AB;57990;Material/varor övrigt;4661,2;2022-09-19;2022-09-19;41511;Psykiatrisk mott Övik;67131
21654311;Adlibris AB / Svea Bank AB;57990;Material/varor övrigt;1275,6;2022-09-19;2022-09-19;41213;Ortopedavd Övik;67326
21654311;Adlibris AB / Svea Bank AB;57990;Material/varor övrigt;1275,6;2022-09-19;2022-09-19;41213;Ortopedavd Övik;67326
21654314;Adlibris AB / Svea Bank AB;76700;Böcker;319,27;2022-09-19;2022-09-19;15007;BUP mott Hsand;67335
21654314;Adlibris AB / Svea Bank AB;76700;Böcker;319,27;2022-09-19;2022-09-19;15007;BUP mott Hsand;67335
21654315;Adlibris AB / Svea Bank AB;76700;Böcker;1759,6;2022-09-19;2022-09-19;81831;Medicinska bibliotek Sundsvall;67338
21654315;Adlibris AB / Svea Bank AB;76700;Böcker;1759,6;2022-09-19;2022-09-19;81831;Medicinska bibliotek Sundsvall;67338
21660082;Adlibris AB / Svea Bank AB;57700;Undervisningsmaterial;115,43;2022-09-28;2022-09-28;70381;Övik Verksamhetsbidrag;67414
21660081;Adlibris AB / Svea Bank AB;57990;Material/varor övrigt;351,92;2022-09-28;2022-09-28;78302;RPK Pedagogisk verksamhet;67438
21660081;Adlibris AB / Svea Bank AB;57990;Material/varor övrigt;351,92;2022-09-28;2022-09-28;78302;RPK Pedagogisk verksamhet;67438
21655490;Adlibris AB / Svea Bank AB;76700;Böcker;908,31;2022-09-20;2022-09-20;86254;Psykolog, Matfors;67734
21655490;Adlibris AB / Svea Bank AB;76700;Böcker;908,31;2022-09-20;2022-09-20;86254;Psykolog, Matfors;67734
21655902;Adlibris AB / Svea Bank AB;57990;Material/varor övrigt;467,35;2022-09-21;2022-09-21;78302;RPK Pedagogisk verksamhet;67923
21655902;Adlibris AB / Svea Bank AB;57990;Material/varor övrigt;467,35;2022-09-21;2022-09-21;78302;RPK Pedagogisk verksamhet;67923
21655903;Adlibris AB / Svea Bank AB;57990;Material/varor övrigt;1457,5;2022-09-21;2022-09-21;70053;Språkutbildning;67925
21655903;Adlibris AB / Svea Bank AB;57990;Material/varor övrigt;1457,5;2022-09-21;2022-09-21;70053;Språkutbildning;67925
21655903;Adlibris AB / Svea Bank AB;57990;Material/varor övrigt;1457,5;2022-09-21;2022-09-21;70053;Språkutbildning;67925
21656051;Adlibris AB / Svea Bank AB;57990;Material/varor övrigt;909,01;2022-09-21;2022-09-21;12108;Kir avd KAVA;67974
21656125;Adlibris AB / Svea Bank AB;57990;Material/varor övrigt;357,77;2022-09-21;2022-09-21;81250;Kvalitet och patientsäkerhet;67987
21656125;Adlibris AB / Svea Bank AB;57990;Material/varor övrigt;357,77;2022-09-21;2022-09-21;81250;Kvalitet och patientsäkerhet;67987
21656126;Adlibris AB / Svea Bank AB;57700;Undervisningsmaterial;234,15;2022-09-21;2022-09-21;70321;Hola Verksamhetsbidrag;67992
21656126;Adlibris AB / Svea Bank AB;57700;Undervisningsmaterial;234,15;2022-09-21;2022-09-21;70321;Hola Verksamhetsbidrag;67992
21656160;Adlibris AB / Svea Bank AB;57990;Material/varor övrigt;710,09;2022-09-21;2022-09-21;86383;Gemensamma kostnader, Centrum;68043
21656160;Adlibris AB / Svea Bank AB;57990;Material/varor övrigt;710,09;2022-09-21;2022-09-21;86383;Gemensamma kostnader, Centrum;68043
21656186;Adlibris AB / Svea Bank AB;57990;Material/varor övrigt;710,09;2022-09-21;2022-09-21;86227;Socionom, Stöde;68052
21656186;Adlibris AB / Svea Bank AB;57990;Material/varor övrigt;710,09;2022-09-21;2022-09-21;86227;Socionom, Stöde;68052
21656234;Adlibris AB / Svea Bank AB;57700;Undervisningsmaterial;8825,45;2022-09-21;2022-09-21;70381;Övik Verksamhetsbidrag;68105
21656234;Adlibris AB / Svea Bank AB;57700;Undervisningsmaterial;8825,45;2022-09-21;2022-09-21;70381;Övik Verksamhetsbidrag;68105
21656234;Adlibris AB / Svea Bank AB;57700;Undervisningsmaterial;8825,45;2022-09-21;2022-09-21;70381;Övik Verksamhetsbidrag;68105
21656234;Adlibris AB / Svea Bank AB;57700;Undervisningsmaterial;8825,45;2022-09-21;2022-09-21;70381;Övik Verksamhetsbidrag;68105
21656234;Adlibris AB / Svea Bank AB;57700;Undervisningsmaterial;8825,45;2022-09-21;2022-09-21;70381;Övik Verksamhetsbidrag;68105
21656234;Adlibris AB / Svea Bank AB;57700;Undervisningsmaterial;8825,45;2022-09-21;2022-09-21;70381;Övik Verksamhetsbidrag;68105
21656470;Adlibris AB / Svea Bank AB;57990;Material/varor övrigt;705,67;2022-09-22;2022-09-22;15124;Psykosmott Svall;68115
21656470;Adlibris AB / Svea Bank AB;57990;Material/varor övrigt;705,67;2022-09-22;2022-09-22;15124;Psykosmott Svall;68115
21656506;Adlibris AB / Svea Bank AB;76700;Böcker;4395,96;2022-09-22;2022-09-22;81831;Medicinska bibliotek Sundsvall;68129
21656506;Adlibris AB / Svea Bank AB;76700;Böcker;4395,96;2022-09-22;2022-09-22;81831;Medicinska bibliotek Sundsvall;68129
21656506;Adlibris AB / Svea Bank AB;76700;Böcker;4395,96;2022-09-22;2022-09-22;81831;Medicinska bibliotek Sundsvall;68129
21656506;Adlibris AB / Svea Bank AB;76700;Böcker;4395,96;2022-09-22;2022-09-22;81831;Medicinska bibliotek Sundsvall;68129
21656506;Adlibris AB / Svea Bank AB;76700;Böcker;4395,96;2022-09-22;2022-09-22;81833;Medicinska bibliotek Sollefteå;68129
21656506;Adlibris AB / Svea Bank AB;76700;Böcker;4395,96;2022-09-22;2022-09-22;81834;Medicinska bibliotek Ö-vik;68129
21656506;Adlibris AB / Svea Bank AB;76700;Böcker;4395,96;2022-09-22;2022-09-22;81831;Medicinska bibliotek Sundsvall;68129
21656506;Adlibris AB / Svea Bank AB;76700;Böcker;4395,96;2022-09-22;2022-09-22;81834;Medicinska bibliotek Ö-vik;68129
21656506;Adlibris AB / Svea Bank AB;76700;Böcker;4395,96;2022-09-22;2022-09-22;81831;Medicinska bibliotek Sundsvall;68129
21656506;Adlibris AB / Svea Bank AB;76700;Böcker;4395,96;2022-09-22;2022-09-22;81831;Medicinska bibliotek Sundsvall;68129
21656506;Adlibris AB / Svea Bank AB;76700;Böcker;4395,96;2022-09-22;2022-09-22;81831;Medicinska bibliotek Sundsvall;68129
21656865;Adlibris AB / Svea Bank AB;57990;Material/varor övrigt;986,58;2022-09-22;2022-09-22;86123;Gemensamma kostnader, Ånge;68349
21656865;Adlibris AB / Svea Bank AB;57990;Material/varor övrigt;986,58;2022-09-22;2022-09-22;86123;Gemensamma kostnader, Ånge;68349
21657277;Adlibris AB / Svea Bank AB;76700;Böcker;879,8;2022-09-23;2022-09-23;81834;Medicinska bibliotek Ö-vik;68454
21657388;Adlibris AB / Svea Bank AB;76700;Böcker;116,6;2022-09-23;2022-09-23;70320;Hola Organisationsbidrag;68586
21657435;Adlibris AB / Svea Bank AB;57990;Material/varor övrigt;655,29;2022-09-23;2022-09-23;86961;Psykologer mhv bhv;68690
21657435;Adlibris AB / Svea Bank AB;57990;Material/varor övrigt;655,29;2022-09-23;2022-09-23;86961;Psykologer mhv bhv;68690
21657979;Adlibris AB / Svea Bank AB;57990;Material/varor övrigt;3031,6;2022-09-26;2022-09-26;41302;BUM mott Övik;69122
21658236;Adlibris AB / Svea Bank AB;76700;Böcker;834;2022-09-26;2022-09-26;48010;AT-Läkarutbildning Övik;69416
21658258;Adlibris AB / Svea Bank AB;57990;Material/varor övrigt;591,17;2022-09-26;2022-09-26;86975;Ungdomsmott, Sundsvall;69511
21658481;Adlibris AB / Svea Bank AB;57700;Undervisningsmaterial;-69,96;2022-09-27;2022-09-27;70053;Språkutbildning;69627
21658490;Adlibris AB / Svea Bank AB;76700;Böcker;798,92;2022-09-27;2022-09-27;81831;Medicinska bibliotek Sundsvall;69646
21658490;Adlibris AB / Svea Bank AB;76700;Böcker;798,92;2022-09-27;2022-09-27;81831;Medicinska bibliotek Sundsvall;69646
21658768;Adlibris AB / Svea Bank AB;57990;Material/varor övrigt;258,64;2022-09-27;2022-09-27;68950;Regionsarkivet;69933
21658768;Adlibris AB / Svea Bank AB;57990;Material/varor övrigt;258,64;2022-09-27;2022-09-27;68950;Regionsarkivet;69933
21660597;Adlibris AB / Svea Bank AB;57990;Material/varor övrigt;750,9;2022-09-29;2022-09-29;70361;Ålsta Fränsta Verksamhets bidr;70475
21661477;Adlibris AB / Svea Bank AB;76700;Böcker;2915;2022-09-30;2022-09-30;70616;Barn och unga;74881
21656577;ADMedical;65200;Matr akut underh med tekn utr;748;2022-09-21;2022-09-21;67140;MTA Örnsköldsviks sjukhus;101337
21652915;ADR Holding Sverige 21 AB;60100;Lokalhyra;5741;2022-09-16;2022-09-09;86603;Sjuksköterskev. Liden;1002015892
21651449;Adven Energilösningar AB;63700;Fjärrvärme;4213,13;2022-09-15;2022-09-05;63330;Timrå tandklinik;100229686
21651448;Adven Energilösningar AB;63700;Fjärrvärme;188428,11;2022-09-15;2022-09-05;63601;Sollefteå sjukhus;100229687
21651448;Adven Energilösningar AB;63700;Fjärrvärme;188428,11;2022-09-15;2022-09-05;63603;Vårdhem 1 Slå;100229687
21650976;AFF Service AB;46110;Utbildningsavgift;2500;2022-09-14;2022-09-14;69201;Upphandlare;8130
21659780;AFF Service AB;64210;Hyra IT-program /Licenser;1875;2022-09-27;2022-09-27;69201;Upphandlare;8162
21649405;Aftonbladet Hierta AB;76710;Tidningar/tidskrifter;3159;2022-09-13;2022-09-05;69632;Cafe Ett Sollefteå;83-3334747
21647406;Agila Doctor AB;55510;Inhyrda läkare;75715;2022-09-08;2022-09-08;30119;Läkarenhet Ögon Slå;48616
21647405;Agila Doctor AB;55510;Inhyrda läkare;55821,35;2022-09-08;2022-09-08;87301;Allmänläkarvård, Sollefteå HC;48619
21647408;Agila Doctor AB;55510;Inhyrda läkare;84700;2022-09-08;2022-09-08;31028;Läkarenh Psykiatri Slå;48620
21647429;Agila Doctor AB;55510;Inhyrda läkare;84700;2022-09-08;2022-09-08;15119;Läkarenh Psykiatri Svall;48640
21647432;Agila Doctor AB;55510;Inhyrda läkare;81632,73;2022-09-08;2022-09-08;12719;Läkarenhet Ögon Svall;48648
21647436;Agila Doctor AB;55510;Inhyrda läkare;74005;2022-09-08;2022-09-08;17109;Läkarenh Klinisk fysiologi Sva;48654
21649160;Agila Doctor AB;55510;Inhyrda läkare;78518;2022-09-12;2022-09-12;11019;Läkarenh Medicin Svall;48684
21649165;Agila Doctor AB;55510;Inhyrda läkare;84700;2022-09-12;2022-09-12;41510;Läkarenh Psykiatri Övik;48691
21649483;Agila Doctor AB;55510;Inhyrda läkare;-2708;2022-09-12;2022-09-12;17189;Läkarenh Röntgen Svall;48701
21650822;Agila Doctor AB;55510;Inhyrda läkare;61565;2022-09-14;2022-09-14;87301;Allmänläkarvård, Sollefteå HC;48707
21651061;Agila Doctor AB;55510;Inhyrda läkare;80209;2022-09-14;2022-09-14;14119;Läkarenh BUM Svall;48733
21651162;Agila Doctor AB;55510;Inhyrda läkare;47621;2022-09-14;2022-09-14;86461;Läkare Gilleberget HC;48741
21655930;Agila Doctor AB;55510;Inhyrda läkare;63495;2022-09-21;2022-09-21;86461;Läkare Gilleberget HC;48795
21656278;Agila Doctor AB;55510;Inhyrda läkare;60279;2022-09-21;2022-09-21;87301;Allmänläkarvård, Sollefteå HC;48811
21656332;Agila Doctor AB;55510;Inhyrda läkare;79700;2022-09-21;2022-09-21;12719;Läkarenhet Ögon Svall;48815
21656748;Agila Doctor AB;55510;Inhyrda läkare;72200;2022-09-22;2022-09-22;11019;Läkarenh Medicin Svall;48829
21659849;Agila Doctor AB;55510;Inhyrda läkare;72200;2022-09-28;2022-09-28;31006;Läkarenh Medicin Slå;48875
21660141;Agila Doctor AB;55510;Inhyrda läkare;93648;2022-09-28;2022-09-28;86601;Läkare Liden HC;48920
21660423;Agila Doctor AB;55510;Inhyrda läkare;191250;2022-09-29;2022-09-29;41202;Läkarenh Ögon Övik;48943
21660498;Agila Doctor AB;55510;Inhyrda läkare;58351;2022-09-29;2022-09-29;87301;Allmänläkarvård, Sollefteå HC;48948
21660564;Agila Doctor AB;55510;Inhyrda läkare;207575;2022-09-29;2022-09-29;11019;Läkarenh Medicin Svall;48950
21643320;Agila Nurse AB;55520;Inhyrda sjuksköterskor;284607;2022-09-02;2022-09-02;14305;BB Förlossning Gynavd Svall;31807
21643319;Agila Nurse AB;55520;Inhyrda sjuksköterskor;66030;2022-09-02;2022-09-02;12403;Ortopedavd 14 Svall;31808
21646962;Agila Nurse AB;55520;Inhyrda sjuksköterskor;62109;2022-09-07;2022-09-06;11802;Rehabiliteringsavd 26B Svall;31870
21647259;Agila Nurse AB;55520;Inhyrda sjuksköterskor;12821;2022-09-07;2022-09-07;31008;Stroke, rehabavd 17 Slå;31884
21646960;Agila Nurse AB;55520;Inhyrda sjuksköterskor;47690;2022-09-07;2022-09-07;12403;Ortopedavd 14 Svall;31885
21646961;Agila Nurse AB;55520;Inhyrda sjuksköterskor;142858;2022-09-07;2022-09-07;12108;Kir avd KAVA;31956
21649193;Agila Nurse AB;55520;Inhyrda sjuksköterskor;215334;2022-09-12;2022-09-12;17030;Akutmott Svall;31974
21649194;Agila Nurse AB;55520;Inhyrda sjuksköterskor;233606;2022-09-12;2022-09-12;17030;Akutmott Svall;31975
21651186;Agila Nurse AB;55520;Inhyrda sjuksköterskor;299945;2022-09-14;2022-09-14;41303;BUM avd Övik;32015
21655290;Agila Nurse AB;55520;Inhyrda sjuksköterskor;53806;2022-09-20;2022-09-20;11802;Rehabiliteringsavd 26B Svall;32068
21655789;Agila Nurse AB;55520;Inhyrda sjuksköterskor;132109;2022-09-21;2022-09-20;14305;BB Förlossning Gynavd Svall;32075
21659822;Agila Nurse AB;55520;Inhyrda sjuksköterskor;52319;2022-09-28;2022-09-22;37010;Operationsavd Slå;32161
21659827;Agila Nurse AB;55520;Inhyrda sjuksköterskor;198686;2022-09-28;2022-09-22;31008;Stroke, rehabavd 17 Slå;32162
21659826;Agila Nurse AB;55520;Inhyrda sjuksköterskor;154125;2022-09-28;2022-09-22;31008;Stroke, rehabavd 17 Slå;32163
21659817;Agila Nurse AB;55520;Inhyrda sjuksköterskor;144410;2022-09-28;2022-09-22;17030;Akutmott Svall;32165
21659818;Agila Nurse AB;55520;Inhyrda sjuksköterskor;106486;2022-09-28;2022-09-27;17030;Akutmott Svall;32201
21661029;Agila Nurse AB;55520;Inhyrda sjuksköterskor;375981;2022-09-29;2022-09-29;11004;Kardiologi avd Svall;32283
21663787;Agila Nurse AB;55520;Inhyrda sjuksköterskor;82807;2022-09-30;2022-09-30;37000;Akutmott Slå;32297
21661901;Agila Nurse AB;55520;Inhyrda sjuksköterskor;57163;2022-09-30;2022-09-30;12403;Ortopedavd 14 Svall;32298
21645228;Agio System och Kompetens AB;75420;IT-tjänst utveckling;71188;2022-09-05;2022-09-05;82570;Ärende och dokumenthantering;22531
21645227;Agio System och Kompetens AB;75420;IT-tjänst utveckling;32938;2022-09-05;2022-09-05;82570;Ärende och dokumenthantering;22541
21647592;Agito Sverige AB;55520;Inhyrda sjuksköterskor;-23986,89;2022-09-08;2022-09-08;12003;Intensivvårdsavd Svall;18166
21651974;Agito Sverige AB;55520;Inhyrda sjuksköterskor;11806,28;2022-09-15;2022-09-15;12003;Intensivvårdsavd Svall;18169
21651958;Agito Sverige AB;55510;Inhyrda läkare;178920;2022-09-15;2022-09-15;86801;Läkare, Södra sundet HC;18175
21654217;Agito Sverige AB;55520;Inhyrda sjuksköterskor;75137,09;2022-09-19;2022-09-15;14305;BB Förlossning Gynavd Svall;18234
21654236;Agito Sverige AB;55520;Inhyrda sjuksköterskor;108087,61;2022-09-19;2022-09-15;14305;BB Förlossning Gynavd Svall;18237
21654237;Agito Sverige AB;55520;Inhyrda sjuksköterskor;27979,28;2022-09-19;2022-09-15;12003;Intensivvårdsavd Svall;18241
21654227;Agito Sverige AB;55520;Inhyrda sjuksköterskor;117712,15;2022-09-19;2022-09-15;11202;Infektionsavd 1 Svall;18245
21654313;Agito Sverige AB;55510;Inhyrda läkare;29820;2022-09-19;2022-09-15;86801;Läkare, Södra sundet HC;18265
21668042;Agito Sverige AB;55520;Inhyrda sjuksköterskor;90425,88;2022-10-05;2022-09-30;14305;BB Förlossning Gynavd Svall;18380
21668029;Agito Sverige AB;55520;Inhyrda sjuksköterskor;55408,54;2022-10-05;2022-09-30;12003;Intensivvårdsavd Svall;18382
21667709;Agito Sverige AB;55520;Inhyrda sjuksköterskor;104807,58;2022-10-05;2022-09-30;11202;Infektionsavd 1 Svall;18383
21668041;Agito Sverige AB;55520;Inhyrda sjuksköterskor;110933;2022-10-05;2022-09-30;14305;BB Förlossning Gynavd Svall;18387
21668142;Agito Sverige AB;55520;Inhyrda sjuksköterskor;18107,85;2022-10-06;2022-09-30;41108;Kardiologi avd 1 Övik;18390
21655676;AGMA Forntid o Äventyr AB;46600;Fritids/friskvårdskostnad;1450;2022-09-21;2022-09-12;87271;Gemensamt Nyland HC;2022139
21642817;Ahlsell Sverige AB;60701;Material akutunderhåll;9593;2022-09-02;2022-09-01;63200;Sundsvalls sjukhus;1749043608
21642817;Ahlsell Sverige AB;60701;Material akutunderhåll;9593;2022-09-02;2022-09-01;63801;Sundsvall ombyggnad verksamhet;1749043608
21642818;Ahlsell Sverige AB;60740;Nytillv hyresgäst/kund;3894;2022-09-02;2022-09-01;63801;Sundsvall ombyggnad verksamhet;1749059802
21642819;Ahlsell Sverige AB;73200;Självrisk fastighetsskada;662;2022-09-02;2022-09-01;63700;Örnsköldsviks sjukhus;1749146708
21642865;Ahlsell Sverige AB;64600;Förbrmatr ej städ/kontor/IT;147;2022-09-02;2022-09-01;84120;Laboratoriemedicin Sundsvall;1749578900
21642866;Ahlsell Sverige AB;60740;Nytillv hyresgäst/kund;3894;2022-09-02;2022-09-01;63801;Sundsvall ombyggnad verksamhet;1749590509
21644390;Ahlsell Sverige AB;60740;Nytillv hyresgäst/kund;7788;2022-09-03;2022-09-02;63801;Sundsvall ombyggnad verksamhet;1752316107
21644391;Ahlsell Sverige AB;60740;Nytillv hyresgäst/kund;187;2022-09-03;2022-09-02;63803;Ö-vik ombyggnad verksamhet;1752555001
21644392;Ahlsell Sverige AB;64180;Verktyg <48,3 tkr;2243;2022-09-03;2022-09-02;63080;Ö-vik driftområde;1752756906
21644393;Ahlsell Sverige AB;64190;Inventarier <48,3 tkr övr;216;2022-09-03;2022-09-02;63080;Ö-vik driftområde;1753292406
21645234;Ahlsell Sverige AB;60740;Nytillv hyresgäst/kund;117;2022-09-06;2022-09-05;63803;Ö-vik ombyggnad verksamhet;1756053201
21645233;Ahlsell Sverige AB;60700;Felavhjälpande underhåll;392;2022-09-06;2022-09-05;63700;Örnsköldsviks sjukhus;1756055602
21645238;Ahlsell Sverige AB;60720;Planerat underhåll;440;2022-09-06;2022-09-05;63700;Örnsköldsviks sjukhus;1756091904
21645235;Ahlsell Sverige AB;60701;Material akutunderhåll;911;2022-09-06;2022-09-05;63803;Ö-vik ombyggnad verksamhet;1756256101
21645236;Ahlsell Sverige AB;60700;Felavhjälpande underhåll;9519;2022-09-06;2022-09-05;63702;Wemer Övik;1756726301
21645237;Ahlsell Sverige AB;64190;Inventarier <48,3 tkr övr;1005;2022-09-06;2022-09-05;63060;Sundsvalls driftområde;1756819304
21645237;Ahlsell Sverige AB;60701;Material akutunderhåll;1005;2022-09-06;2022-09-05;63801;Sundsvall ombyggnad verksamhet;1756819304
21646468;Ahlsell Sverige AB;64600;Förbrmatr ej städ/kontor/IT;1048;2022-09-07;2022-09-06;84120;Laboratoriemedicin Sundsvall;1758826604
21647181;Ahlsell Sverige AB;60740;Nytillv hyresgäst/kund;322;2022-09-08;2022-09-07;63803;Ö-vik ombyggnad verksamhet;1762150009
21647186;Ahlsell Sverige AB;60701;Material akutunderhåll;6335;2022-09-08;2022-09-07;63803;Ö-vik ombyggnad verksamhet;1762980702
21647192;Ahlsell Sverige AB;64600;Förbrmatr ej städ/kontor/IT;4369;2022-09-08;2022-09-07;84120;Laboratoriemedicin Sundsvall;1763359609
21647958;Ahlsell Sverige AB;60701;Material akutunderhåll;740;2022-09-09;2022-09-08;63803;Ö-vik ombyggnad verksamhet;1765717903
21647971;Ahlsell Sverige AB;64800;Arbets/skyddskläd/skyddsmat;3083;2022-09-09;2022-09-08;63080;Ö-vik driftområde;1766367104
21647973;Ahlsell Sverige AB;60700;Felavhjälpande underhåll;10029;2022-09-09;2022-09-08;63060;Sundsvalls driftområde;1766546004
21647973;Ahlsell Sverige AB;60700;Felavhjälpande underhåll;10029;2022-09-09;2022-09-08;63060;Sundsvalls driftområde;1766546004
21647975;Ahlsell Sverige AB;60740;Nytillv hyresgäst/kund;7788;2022-09-09;2022-09-08;63801;Sundsvall ombyggnad verksamhet;1766674202
21648016;Ahlsell Sverige AB;64190;Inventarier <48,3 tkr övr;172;2022-09-09;2022-09-08;63070;Härnösand/ Sollefteå driftområ;1767032202
21648685;Ahlsell Sverige AB;64190;Inventarier <48,3 tkr övr;1051;2022-09-10;2022-09-09;63060;Sundsvalls driftområde;1769073006
21648688;Ahlsell Sverige AB;60740;Nytillv hyresgäst/kund;1418;2022-09-10;2022-09-09;63803;Ö-vik ombyggnad verksamhet;1770111506
21648689;Ahlsell Sverige AB;60701;Material akutunderhåll;429;2022-09-10;2022-09-09;63803;Ö-vik ombyggnad verksamhet;1770118006
21648690;Ahlsell Sverige AB;60700;Felavhjälpande underhåll;-712;2022-09-10;2022-09-09;63700;Örnsköldsviks sjukhus;1770275103
21648697;Ahlsell Sverige AB;60700;Felavhjälpande underhåll;253;2022-09-10;2022-09-09;63700;Örnsköldsviks sjukhus;1771527502
21648696;Ahlsell Sverige AB;64800;Arbets/skyddskläd/skyddsmat;830;2022-09-10;2022-09-09;63080;Ö-vik driftområde;1771528906
21648696;Ahlsell Sverige AB;64500;Kontorsmaterial;830;2022-09-10;2022-09-09;63080;Ö-vik driftområde;1771528906
21649450;Ahlsell Sverige AB;64180;Verktyg <48,3 tkr;618;2022-09-13;2022-09-12;63080;Ö-vik driftområde;1773138001
21649451;Ahlsell Sverige AB;64800;Arbets/skyddskläd/skyddsmat;1965;2022-09-13;2022-09-12;63201;Snökyla;1773772908
21649451;Ahlsell Sverige AB;64500;Kontorsmaterial;1965;2022-09-13;2022-09-12;63201;Snökyla;1773772908
21649451;Ahlsell Sverige AB;64180;Verktyg <48,3 tkr;1965;2022-09-13;2022-09-12;63201;Snökyla;1773772908
21649458;Ahlsell Sverige AB;60701;Material akutunderhåll;465;2022-09-13;2022-09-12;63802;Hsand/Sollefteå ombyggn verksa;1774002909
21649452;Ahlsell Sverige AB;60700;Felavhjälpande underhåll;382;2022-09-13;2022-09-12;63700;Örnsköldsviks sjukhus;1774046609
21649453;Ahlsell Sverige AB;60700;Felavhjälpande underhåll;570;2022-09-13;2022-09-12;63703;Psyket Övik;1774207706
21649454;Ahlsell Sverige AB;64190;Inventarier <48,3 tkr övr;2414;2022-09-13;2022-09-12;63060;Sundsvalls driftområde;1774312605
21649454;Ahlsell Sverige AB;64180;Verktyg <48,3 tkr;2414;2022-09-13;2022-09-12;63060;Sundsvalls driftområde;1774312605
21649475;Ahlsell Sverige AB;64180;Verktyg <48,3 tkr;288;2022-09-13;2022-09-12;63080;Ö-vik driftområde;1775150509
21650653;Ahlsell Sverige AB;60720;Planerat underhåll;83891;2022-09-14;2022-09-13;63200;Sundsvalls sjukhus;1776651000
21650761;Ahlsell Sverige AB;60701;Material akutunderhåll;472;2022-09-14;2022-09-13;63802;Hsand/Sollefteå ombyggn verksa;1777253806
21650760;Ahlsell Sverige AB;60701;Material akutunderhåll;147;2022-09-14;2022-09-13;63802;Hsand/Sollefteå ombyggn verksa;1777352509
21650759;Ahlsell Sverige AB;64180;Verktyg <48,3 tkr;184;2022-09-14;2022-09-13;63070;Härnösand/ Sollefteå driftområ;1777521103
21650794;Ahlsell Sverige AB;60700;Felavhjälpande underhåll;1268;2022-09-14;2022-09-13;63704;Vårdskolan Övik;1777771203
21650795;Ahlsell Sverige AB;64180;Verktyg <48,3 tkr;4269;2022-09-14;2022-09-13;67110;MTA Länssjukhuset;1777781608
21650857;Ahlsell Sverige AB;60710;Förebyggande underhåll;130;2022-09-14;2022-09-13;63102;Ånge hälsocentral;1778412401
21650883;Ahlsell Sverige AB;57990;Material/varor övrigt;166;2022-09-14;2022-09-13;69610;Kostavdelning gem Sundsvall;1778790905
21651524;Ahlsell Sverige AB;60740;Nytillv hyresgäst/kund;5547;2022-09-15;2022-09-14;63803;Ö-vik ombyggnad verksamhet;1780280200
21651523;Ahlsell Sverige AB;64500;Kontorsmaterial;127;2022-09-15;2022-09-14;30103;BUM mott Slå;1780324305
21651525;Ahlsell Sverige AB;64500;Kontorsmaterial;1017;2022-09-15;2022-09-14;30103;BUM mott Slå;1780365902
21651526;Ahlsell Sverige AB;60700;Felavhjälpande underhåll;1780;2022-09-15;2022-09-14;63700;Örnsköldsviks sjukhus;1780388102
21651642;Ahlsell Sverige AB;60740;Nytillv hyresgäst/kund;3805;2022-09-15;2022-09-14;63801;Sundsvall ombyggnad verksamhet;1781325103
21651643;Ahlsell Sverige AB;60740;Nytillv hyresgäst/kund;126;2022-09-15;2022-09-14;63803;Ö-vik ombyggnad verksamhet;1781395809
21651646;Ahlsell Sverige AB;60740;Nytillv hyresgäst/kund;1466;2022-09-15;2022-09-14;63802;Hsand/Sollefteå ombyggn verksa;1781580202
21652825;Ahlsell Sverige AB;60701;Material akutunderhåll;1400;2022-09-16;2022-09-15;63200;Sundsvalls sjukhus;1784189001
21652845;Ahlsell Sverige AB;64180;Verktyg <48,3 tkr;680;2022-09-16;2022-09-15;63070;Härnösand/ Sollefteå driftområ;1784911404
21652844;Ahlsell Sverige AB;60700;Felavhjälpande underhåll;779;2022-09-16;2022-09-15;63601;Sollefteå sjukhus;1784920009
21652827;Ahlsell Sverige AB;64190;Inventarier <48,3 tkr övr;2755;2022-09-16;2022-09-15;63060;Sundsvalls driftområde;1784930404
21652827;Ahlsell Sverige AB;64190;Inventarier <48,3 tkr övr;2755;2022-09-16;2022-09-15;63060;Sundsvalls driftområde;1784930404
21652827;Ahlsell Sverige AB;64190;Inventarier <48,3 tkr övr;2755;2022-09-16;2022-09-15;63060;Sundsvalls driftområde;1784930404
21652827;Ahlsell Sverige AB;64190;Inventarier <48,3 tkr övr;2755;2022-09-16;2022-09-15;63060;Sundsvalls driftområde;1784930404
21652827;Ahlsell Sverige AB;64190;Inventarier <48,3 tkr övr;2755;2022-09-16;2022-09-15;63060;Sundsvalls driftområde;1784930404
21652827;Ahlsell Sverige AB;64190;Inventarier <48,3 tkr övr;2755;2022-09-16;2022-09-15;63060;Sundsvalls driftområde;1784930404
21652827;Ahlsell Sverige AB;64190;Inventarier <48,3 tkr övr;2755;2022-09-16;2022-09-15;63060;Sundsvalls driftområde;1784930404
21652827;Ahlsell Sverige AB;64190;Inventarier <48,3 tkr övr;2755;2022-09-16;2022-09-15;63060;Sundsvalls driftområde;1784930404
21652827;Ahlsell Sverige AB;64190;Inventarier <48,3 tkr övr;2755;2022-09-16;2022-09-15;63060;Sundsvalls driftområde;1784930404
21652827;Ahlsell Sverige AB;64190;Inventarier <48,3 tkr övr;2755;2022-09-16;2022-09-15;63060;Sundsvalls driftområde;1784930404
21652827;Ahlsell Sverige AB;64190;Inventarier <48,3 tkr övr;2755;2022-09-16;2022-09-15;63060;Sundsvalls driftområde;1784930404
21652827;Ahlsell Sverige AB;64190;Inventarier <48,3 tkr övr;2755;2022-09-16;2022-09-15;63060;Sundsvalls driftområde;1784930404
21652827;Ahlsell Sverige AB;64190;Inventarier <48,3 tkr övr;2755;2022-09-16;2022-09-15;63060;Sundsvalls driftområde;1784930404
21652827;Ahlsell Sverige AB;64190;Inventarier <48,3 tkr övr;2755;2022-09-16;2022-09-15;63060;Sundsvalls driftområde;1784930404
21652827;Ahlsell Sverige AB;64190;Inventarier <48,3 tkr övr;2755;2022-09-16;2022-09-15;63060;Sundsvalls driftområde;1784930404
21652828;Ahlsell Sverige AB;60700;Felavhjälpande underhåll;1577;2022-09-16;2022-09-15;63703;Psyket Övik;1784985804
21652829;Ahlsell Sverige AB;60700;Felavhjälpande underhåll;3174;2022-09-16;2022-09-15;63700;Örnsköldsviks sjukhus;1784995803
21652830;Ahlsell Sverige AB;60720;Planerat underhåll;36230;2022-09-16;2022-09-15;63200;Sundsvalls sjukhus;1785071208
21652864;Ahlsell Sverige AB;66100;Drivmedel/smörjolja bilar mm;637;2022-09-16;2022-09-15;70360;Ålsta Fränsta Org.bidrag;1785542604
21652865;Ahlsell Sverige AB;57310;Köks/serveringsmaterial;1074;2022-09-16;2022-09-15;86010;Vaccination Söder;1785548304
21652927;Ahlsell Sverige AB;60740;Nytillv hyresgäst/kund;59;2022-09-16;2022-09-15;63803;Ö-vik ombyggnad verksamhet;1787234101
21653915;Ahlsell Sverige AB;60740;Nytillv hyresgäst/kund;45;2022-09-17;2022-09-16;63803;Ö-vik ombyggnad verksamhet;1787865300
21653916;Ahlsell Sverige AB;60700;Felavhjälpande underhåll;1780;2022-09-17;2022-09-16;63700;Örnsköldsviks sjukhus;1788340501
21653970;Ahlsell Sverige AB;60701;Material akutunderhåll;332;2022-09-17;2022-09-16;63802;Hsand/Sollefteå ombyggn verksa;1788777009
21653917;Ahlsell Sverige AB;64190;Inventarier <48,3 tkr övr;5143;2022-09-17;2022-09-16;63060;Sundsvalls driftområde;1788793204
21653917;Ahlsell Sverige AB;60701;Material akutunderhåll;5143;2022-09-17;2022-09-16;63801;Sundsvall ombyggnad verksamhet;1788793204
21653918;Ahlsell Sverige AB;57990;Material/varor övrigt;395;2022-09-17;2022-09-16;70360;Ålsta Fränsta Org.bidrag;1788875704
21653919;Ahlsell Sverige AB;64600;Förbrmatr ej städ/kontor/IT;20569;2022-09-17;2022-09-16;84120;Laboratoriemedicin Sundsvall;1788982708
21653919;Ahlsell Sverige AB;64190;Inventarier <48,3 tkr övr;20569;2022-09-17;2022-09-16;84120;Laboratoriemedicin Sundsvall;1788982708
21653969;Ahlsell Sverige AB;64180;Verktyg <48,3 tkr;534;2022-09-17;2022-09-16;63070;Härnösand/ Sollefteå driftområ;1788998704
21653920;Ahlsell Sverige AB;60711;Matr förebygg underhåll;185;2022-09-17;2022-09-16;63060;Sundsvalls driftområde;1789054903
21653920;Ahlsell Sverige AB;60711;Matr förebygg underhåll;185;2022-09-17;2022-09-16;63060;Sundsvalls driftområde;1789054903
21653921;Ahlsell Sverige AB;60701;Material akutunderhåll;2413;2022-09-17;2022-09-16;63801;Sundsvall ombyggnad verksamhet;1789620901
21653921;Ahlsell Sverige AB;60701;Material akutunderhåll;2413;2022-09-17;2022-09-16;63200;Sundsvalls sjukhus;1789620901
21654505;Ahlsell Sverige AB;60700;Felavhjälpande underhåll;1126;2022-09-20;2022-09-19;63601;Sollefteå sjukhus;1791370107
21654491;Ahlsell Sverige AB;60701;Material akutunderhåll;191;2022-09-20;2022-09-19;63801;Sundsvall ombyggnad verksamhet;1792042101
21654492;Ahlsell Sverige AB;60711;Matr förebygg underhåll;1021;2022-09-20;2022-09-19;63060;Sundsvalls driftområde;1792727800
21654496;Ahlsell Sverige AB;57990;Material/varor övrigt;1950;2022-09-20;2022-09-19;69610;Kostavdelning gem Sundsvall;1794121804
21655734;Ahlsell Sverige AB;64190;Inventarier <48,3 tkr övr;622;2022-09-21;2022-09-20;63080;Ö-vik driftområde;1795651403
21655745;Ahlsell Sverige AB;60700;Felavhjälpande underhåll;1329;2022-09-21;2022-09-20;63601;Sollefteå sjukhus;1796109302
21655737;Ahlsell Sverige AB;60740;Nytillv hyresgäst/kund;150;2022-09-21;2022-09-20;63803;Ö-vik ombyggnad verksamhet;1796171005
21655736;Ahlsell Sverige AB;60711;Matr förebygg underhåll;145;2022-09-21;2022-09-20;63060;Sundsvalls driftområde;1796218905
21655736;Ahlsell Sverige AB;60711;Matr förebygg underhåll;145;2022-09-21;2022-09-20;63060;Sundsvalls driftområde;1796218905
21655746;Ahlsell Sverige AB;60740;Nytillv hyresgäst/kund;341;2022-09-21;2022-09-20;63803;Ö-vik ombyggnad verksamhet;1796461901
21655788;Ahlsell Sverige AB;60720;Planerat underhåll;30170;2022-09-21;2022-09-20;63702;Wemer Övik;1796582003
21655793;Ahlsell Sverige AB;57990;Material/varor övrigt;1074;2022-09-21;2022-09-20;86040;Vaccination Norr;1796751004
21655794;Ahlsell Sverige AB;56390;Sjukvårdsartiklar övriga;1363;2022-09-21;2022-09-20;37061;Röntgenmott Slå;1796758108
21656563;Ahlsell Sverige AB;60700;Felavhjälpande underhåll;700;2022-09-22;2022-09-21;63601;Sollefteå sjukhus;1799979107
21656462;Ahlsell Sverige AB;60701;Material akutunderhåll;2177;2022-09-22;2022-09-21;63803;Ö-vik ombyggnad verksamhet;1800061606
21656463;Ahlsell Sverige AB;60740;Nytillv hyresgäst/kund;890;2022-09-22;2022-09-21;63803;Ö-vik ombyggnad verksamhet;1800174607
21656464;Ahlsell Sverige AB;65500;Underhåll/material inventarier;4885;2022-09-22;2022-09-21;15107;Psykiatrisk avd 51 Svall;1800253401
21656464;Ahlsell Sverige AB;65500;Underhåll/material inventarier;4885;2022-09-22;2022-09-21;15107;Psykiatrisk avd 51 Svall;1800253401
21656464;Ahlsell Sverige AB;65500;Underhåll/material inventarier;4885;2022-09-22;2022-09-21;15107;Psykiatrisk avd 51 Svall;1800253401
21656562;Ahlsell Sverige AB;60701;Material akutunderhåll;1287;2022-09-22;2022-09-21;63802;Hsand/Sollefteå ombyggn verksa;1800291005
21656465;Ahlsell Sverige AB;64600;Förbrmatr ej städ/kontor/IT;1778;2022-09-22;2022-09-21;17151;Pat Cyto Histopato enh Svall;1800542209
21656465;Ahlsell Sverige AB;64600;Förbrmatr ej städ/kontor/IT;1778;2022-09-22;2022-09-21;17151;Pat Cyto Histopato enh Svall;1800542209
21656466;Ahlsell Sverige AB;57300;Städ/tvätt/rengöringsmat;1266;2022-09-22;2022-09-21;30320;Gynekologisk mott Slå;1800582106
21657227;Ahlsell Sverige AB;60720;Planerat underhåll;35953;2022-09-23;2022-09-22;63200;Sundsvalls sjukhus;1802913408
21657246;Ahlsell Sverige AB;60700;Felavhjälpande underhåll;475;2022-09-23;2022-09-22;63601;Sollefteå sjukhus;1803412301
21657245;Ahlsell Sverige AB;60700;Felavhjälpande underhåll;5934;2022-09-23;2022-09-22;63601;Sollefteå sjukhus;1803794500
21657230;Ahlsell Sverige AB;60740;Nytillv hyresgäst/kund;759;2022-09-23;2022-09-22;63803;Ö-vik ombyggnad verksamhet;1803825007
21657240;Ahlsell Sverige AB;60720;Planerat underhåll;114;2022-09-23;2022-09-22;63700;Örnsköldsviks sjukhus;1804082608
21657241;Ahlsell Sverige AB;56390;Sjukvårdsartiklar övriga;732;2022-09-23;2022-09-22;17410;Ambulansen Svall;1804103206
21657242;Ahlsell Sverige AB;57300;Städ/tvätt/rengöringsmat;618;2022-09-23;2022-09-22;69751;Städ team 1 Sundsvall;1804107504
21657243;Ahlsell Sverige AB;60740;Nytillv hyresgäst/kund;149;2022-09-23;2022-09-22;63803;Ö-vik ombyggnad verksamhet;1804191003
21657854;Ahlsell Sverige AB;60990;Övriga lokalkostnader;294;2022-09-24;2022-09-23;17340;Logopedmott Svall Hsand;1806400907
21657857;Ahlsell Sverige AB;64180;Verktyg <48,3 tkr;1244;2022-09-24;2022-09-23;63042;Enhetschef Hsand/Sollefteå;1807226509
21657906;Ahlsell Sverige AB;64180;Verktyg <48,3 tkr;980;2022-09-24;2022-09-23;63070;Härnösand/ Sollefteå driftområ;1807452303
21657905;Ahlsell Sverige AB;60701;Material akutunderhåll;211;2022-09-24;2022-09-23;63601;Sollefteå sjukhus;1807459704
21657858;Ahlsell Sverige AB;64180;Verktyg <48,3 tkr;219;2022-09-24;2022-09-23;63060;Sundsvalls driftområde;1807462005
21657858;Ahlsell Sverige AB;64180;Verktyg <48,3 tkr;219;2022-09-24;2022-09-23;63060;Sundsvalls driftområde;1807462005
21657858;Ahlsell Sverige AB;64180;Verktyg <48,3 tkr;219;2022-09-24;2022-09-23;63060;Sundsvalls driftområde;1807462005
21657855;Ahlsell Sverige AB;60701;Material akutunderhåll;432;2022-09-24;2022-09-23;63801;Sundsvall ombyggnad verksamhet;1807462302
21657856;Ahlsell Sverige AB;60700;Felavhjälpande underhåll;921;2022-09-24;2022-09-23;63060;Sundsvalls driftområde;1807463706
21657860;Ahlsell Sverige AB;60720;Planerat underhåll;39052;2022-09-24;2022-09-23;63200;Sundsvalls sjukhus;1807513708
21657859;Ahlsell Sverige AB;64180;Verktyg <48,3 tkr;5941;2022-09-24;2022-09-23;63060;Sundsvalls driftområde;1807633803
21657904;Ahlsell Sverige AB;60701;Material akutunderhåll;1393;2022-09-24;2022-09-23;63802;Hsand/Sollefteå ombyggn verksa;1807698707
21658453;Ahlsell Sverige AB;60701;Material akutunderhåll;2696;2022-09-27;2022-09-26;63200;Sundsvalls sjukhus;1810103604
21658456;Ahlsell Sverige AB;60701;Material akutunderhåll;544;2022-09-27;2022-09-26;63801;Sundsvall ombyggnad verksamhet;1810469104
21658458;Ahlsell Sverige AB;60701;Material akutunderhåll;17763;2022-09-27;2022-09-26;63060;Sundsvalls driftområde;1810484103
21658458;Ahlsell Sverige AB;60701;Material akutunderhåll;17763;2022-09-27;2022-09-26;63060;Sundsvalls driftområde;1810484103
21658459;Ahlsell Sverige AB;60700;Felavhjälpande underhåll;2032;2022-09-27;2022-09-26;63400;Närvård Härnösand;1811232303
21658460;Ahlsell Sverige AB;60740;Nytillv hyresgäst/kund;880;2022-09-27;2022-09-26;63802;Hsand/Sollefteå ombyggn verksa;1811233806
21658461;Ahlsell Sverige AB;60740;Nytillv hyresgäst/kund;149;2022-09-27;2022-09-26;63803;Ö-vik ombyggnad verksamhet;1811541109
21658462;Ahlsell Sverige AB;60740;Nytillv hyresgäst/kund;364;2022-09-27;2022-09-26;63801;Sundsvall ombyggnad verksamhet;1813255203
21659742;Ahlsell Sverige AB;64800;Arbets/skyddskläd/skyddsmat;1308;2022-09-28;2022-09-27;63070;Härnösand/ Sollefteå driftområ;1814352405
21659741;Ahlsell Sverige AB;46390;Personalens Kaffe/Te/frukt;895;2022-09-28;2022-09-27;12403;Ortopedavd 14 Svall;1814668503
21659741;Ahlsell Sverige AB;46390;Personalens Kaffe/Te/frukt;895;2022-09-28;2022-09-27;12403;Ortopedavd 14 Svall;1814668503
21659740;Ahlsell Sverige AB;64180;Verktyg <48,3 tkr;229;2022-09-28;2022-09-27;63060;Sundsvalls driftområde;1814704209
21659750;Ahlsell Sverige AB;64180;Verktyg <48,3 tkr;253;2022-09-28;2022-09-27;63080;Ö-vik driftområde;1814924302
21659751;Ahlsell Sverige AB;60701;Material akutunderhåll;9968;2022-09-28;2022-09-27;63801;Sundsvall ombyggnad verksamhet;1814949200
21659751;Ahlsell Sverige AB;64180;Verktyg <48,3 tkr;9968;2022-09-28;2022-09-27;63060;Sundsvalls driftområde;1814949200
21659775;Ahlsell Sverige AB;64180;Verktyg <48,3 tkr;3477;2022-09-28;2022-09-27;63060;Sundsvalls driftområde;1815154701
21659845;Ahlsell Sverige AB;60701;Material akutunderhåll;2177;2022-09-28;2022-09-27;63801;Sundsvall ombyggnad verksamhet;1815399207
21659888;Ahlsell Sverige AB;64180;Verktyg <48,3 tkr;370;2022-09-28;2022-09-27;63070;Härnösand/ Sollefteå driftområ;1815529100
21659850;Ahlsell Sverige AB;64190;Inventarier <48,3 tkr övr;1074;2022-09-28;2022-09-27;86030;Vaccination Väster;1815552102
21659983;Ahlsell Sverige AB;60701;Material akutunderhåll;659;2022-09-28;2022-09-27;63200;Sundsvalls sjukhus;1816812109
21660473;Ahlsell Sverige AB;60740;Nytillv hyresgäst/kund;108;2022-09-29;2022-09-28;63803;Ö-vik ombyggnad verksamhet;1819036607
21660489;Ahlsell Sverige AB;57300;Städ/tvätt/rengöringsmat;136;2022-09-29;2022-09-28;63070;Härnösand/ Sollefteå driftområ;1819099407
21660489;Ahlsell Sverige AB;57300;Städ/tvätt/rengöringsmat;136;2022-09-29;2022-09-28;63070;Härnösand/ Sollefteå driftområ;1819099407
21660489;Ahlsell Sverige AB;57300;Städ/tvätt/rengöringsmat;136;2022-09-29;2022-09-28;63070;Härnösand/ Sollefteå driftområ;1819099407
21660489;Ahlsell Sverige AB;57300;Städ/tvätt/rengöringsmat;136;2022-09-29;2022-09-28;63070;Härnösand/ Sollefteå driftområ;1819099407
21660489;Ahlsell Sverige AB;57300;Städ/tvätt/rengöringsmat;136;2022-09-29;2022-09-28;63070;Härnösand/ Sollefteå driftområ;1819099407
21660501;Ahlsell Sverige AB;60700;Felavhjälpande underhåll;253;2022-09-29;2022-09-28;63601;Sollefteå sjukhus;1819127307
21660504;Ahlsell Sverige AB;60740;Nytillv hyresgäst/kund;7150;2022-09-29;2022-09-28;63803;Ö-vik ombyggnad verksamhet;1819612704
21660503;Ahlsell Sverige AB;60700;Felavhjälpande underhåll;1800;2022-09-29;2022-09-28;63702;Wemer Övik;1819624402
21660505;Ahlsell Sverige AB;60700;Felavhjälpande underhåll;1756;2022-09-29;2022-09-28;63700;Örnsköldsviks sjukhus;1819683309
21661314;Ahlsell Sverige AB;64500;Kontorsmaterial;135;2022-09-30;2022-09-29;31009;Ortopeden avd 15 Sollefteå;1822696702
21661315;Ahlsell Sverige AB;64500;Kontorsmaterial;135;2022-09-30;2022-09-29;30101;Specialistvårdsmott Slå;1822698104
21661321;Ahlsell Sverige AB;60701;Material akutunderhåll;283;2022-09-30;2022-09-29;63200;Sundsvalls sjukhus;1822944003
21661373;Ahlsell Sverige AB;60700;Felavhjälpande underhåll;2513;2022-09-30;2022-09-29;63601;Sollefteå sjukhus;1823041908
21661374;Ahlsell Sverige AB;64180;Verktyg <48,3 tkr;386;2022-09-30;2022-09-29;63070;Härnösand/ Sollefteå driftområ;1823300502
21663218;Ahlsell Sverige AB;60720;Planerat underhåll;1442;2022-10-01;2022-09-30;63102;Ånge hälsocentral;1827084706
21663218;Ahlsell Sverige AB;64180;Verktyg <48,3 tkr;1442;2022-10-01;2022-09-30;63060;Sundsvalls driftområde;1827084706
21662913;Ahlsell Sverige AB;60720;Planerat underhåll;1216;2022-10-01;2022-09-30;63102;Ånge hälsocentral;1827381409
21662918;Ahlsell Sverige AB;65500;Underhåll/material inventarier;403;2022-10-01;2022-09-30;12403;Ortopedavd 14 Svall;1827442904
21662915;Ahlsell Sverige AB;60701;Material akutunderhåll;2715;2022-10-01;2022-09-30;63160;Ålsta folkhögskola;1827452507
21662917;Ahlsell Sverige AB;64500;Kontorsmaterial;135;2022-10-01;2022-09-30;87301;Allmänläkarvård, Sollefteå HC;1827483304
21662914;Ahlsell Sverige AB;60740;Nytillv hyresgäst/kund;137;2022-10-01;2022-09-30;63802;Hsand/Sollefteå ombyggn verksa;1827484104
21662916;Ahlsell Sverige AB;60740;Nytillv hyresgäst/kund;3894;2022-10-01;2022-09-30;63801;Sundsvall ombyggnad verksamhet;1827494004
21662919;Ahlsell Sverige AB;60701;Material akutunderhåll;5430;2022-10-01;2022-09-30;63801;Sundsvall ombyggnad verksamhet;1827497908
21662920;Ahlsell Sverige AB;60720;Planerat underhåll;11240;2022-10-01;2022-09-30;63200;Sundsvalls sjukhus;1827671403
21662921;Ahlsell Sverige AB;64800;Arbets/skyddskläd/skyddsmat;4281;2022-10-01;2022-09-30;63060;Sundsvalls driftområde;1827694009
21662921;Ahlsell Sverige AB;64800;Arbets/skyddskläd/skyddsmat;4281;2022-10-01;2022-09-30;63060;Sundsvalls driftområde;1827694009
21662921;Ahlsell Sverige AB;64180;Verktyg <48,3 tkr;4281;2022-10-01;2022-09-30;63060;Sundsvalls driftområde;1827694009
21662921;Ahlsell Sverige AB;64180;Verktyg <48,3 tkr;4281;2022-10-01;2022-09-30;63060;Sundsvalls driftområde;1827694009
21645241;Aidian Oy;65210;Ext tjänst akut underh medtekn;4375;2022-09-06;2022-09-06;67140;MTA Örnsköldsviks sjukhus;1421029512
21655825;Aidian Oy;65210;Ext tjänst akut underh medtekn;4375;2022-09-21;2022-09-21;67140;MTA Örnsköldsviks sjukhus;1421029736
21656603;Aidian Oy;56390;Sjukvårdsartiklar övriga;75750;2022-09-22;2022-09-22;84123;Hematologi;1421029749
21656131;AIM Italy Srl;46100;Kurs/konferensavgift;675;2022-09-21;2022-09-16;11019;Läkarenh Medicin Svall;LUPU22 RVN Kinga Zsuzsa Mezei 20220919160724
21668877;Air Control Norr AB;46100;Kurs/konferensavgift;10500;2022-10-07;2022-09-26;63042;Enhetschef Hsand/Sollefteå;3845
21645131;Air Liquide Gas AB;56300;Medicinska gaser;9752,51;2022-09-06;2022-09-05;13101;Fastigheter Svall;1030572561
21645132;Air Liquide Gas AB;56300;Medicinska gaser;1168,57;2022-09-06;2022-09-05;13103;Fastigheter Slå;1030572717
21645133;Air Liquide Gas AB;56300;Medicinska gaser;1403,96;2022-09-06;2022-09-05;13104;Fastigheter Övik;1030572723
21647126;Air Liquide Gas AB;56300;Medicinska gaser;-198,55;2022-09-08;2022-09-07;13101;Fastigheter Svall;1030573832
21647127;Air Liquide Gas AB;56300;Medicinska gaser;-198,55;2022-09-08;2022-09-07;13101;Fastigheter Svall;1030573833
21647128;Air Liquide Gas AB;56300;Medicinska gaser;-198,55;2022-09-08;2022-09-07;13101;Fastigheter Svall;1030573835
21647129;Air Liquide Gas AB;56300;Medicinska gaser;-355,11;2022-09-08;2022-09-07;13101;Fastigheter Svall;1030573838
21647824;Air Liquide Gas AB;56300;Medicinska gaser;-397,1;2022-09-09;2022-09-08;13101;Fastigheter Svall;1030574154
21647825;Air Liquide Gas AB;56300;Medicinska gaser;1308,16;2022-09-09;2022-09-08;13103;Fastigheter Slå;1030574165
21647823;Air Liquide Gas AB;56300;Medicinska gaser;4582,8;2022-09-09;2022-09-08;13104;Fastigheter Övik;1030574198
21649359;Air Liquide Gas AB;60710;Förebyggande underhåll;5139,35;2022-09-13;2022-09-12;63200;Sundsvalls sjukhus;1030574796
21649359;Air Liquide Gas AB;56300;Medicinska gaser;5139,35;2022-09-13;2022-09-12;13101;Fastigheter Svall;1030574796
21652781;Air Liquide Gas AB;56300;Medicinska gaser;10410,24;2022-09-16;2022-09-15;13101;Fastigheter Svall;1030575909
21652781;Air Liquide Gas AB;60740;Nytillv hyresgäst/kund;10410,24;2022-09-16;2022-09-15;63801;Sundsvall ombyggnad verksamhet;1030575909
21652782;Air Liquide Gas AB;60710;Förebyggande underhåll;595,63;2022-09-16;2022-09-15;63220;Norrliden;1030576003
21653928;Air Liquide Gas AB;56300;Medicinska gaser;1271,79;2022-09-17;2022-09-16;13103;Fastigheter Slå;1030576214
21654450;Air Liquide Gas AB;56300;Medicinska gaser;17200,93;2022-09-20;2022-09-19;13101;Fastigheter Svall;1030576573
21654450;Air Liquide Gas AB;60740;Nytillv hyresgäst/kund;17200,93;2022-09-20;2022-09-19;63801;Sundsvall ombyggnad verksamhet;1030576573
21657756;Air Liquide Gas AB;56300;Medicinska gaser;4460,87;2022-09-24;2022-09-23;13104;Fastigheter Övik;1030577945
21657755;Air Liquide Gas AB;56300;Medicinska gaser;744,25;2022-09-24;2022-09-23;13103;Fastigheter Slå;1030577967
21657757;Air Liquide Gas AB;60710;Förebyggande underhåll;1489,06;2022-09-24;2022-09-23;63102;Ånge hälsocentral;1030577998
21657968;Air Liquide Gas AB;60677;Löpande byggnad invändigt;1191,23;2022-09-24;2022-09-23;63410;Rehabcentrum Härnösand;1030578040
21658413;Air Liquide Gas AB;56300;Medicinska gaser;16037,18;2022-09-27;2022-09-26;13101;Fastigheter Svall;1030578371
21664381;Air Liquide Gas AB;56300;Medicinska gaser;3185,16;2022-10-04;2022-09-30;13104;Fastigheter Övik;1030582370
21664382;Air Liquide Gas AB;56300;Medicinska gaser;2090,42;2022-10-04;2022-09-30;13103;Fastigheter Slå;1030582664
21690509;Airgarden Live Musik;46100;Kurs/konferensavgift;5000;2022-11-05;2022-09-27;11220;Infektionsmott Svall;45
21663583;AirSonett AB;62200;Hyra medicinteknisk apparatur;3313;2022-10-03;2022-09-30;14100;Sekreterarenh BUM Svall;14293
21663688;AirSonett AB;57100;Tekniska hjälpmedel;3313;2022-10-03;2022-09-30;11320;Lungmott Svall;14323
21663681;AirSonett AB;57100;Tekniska hjälpmedel;3313;2022-10-03;2022-09-30;11320;Lungmott Svall;14324
21663634;AirSonett AB;57100;Tekniska hjälpmedel;3313;2022-10-03;2022-09-30;11320;Lungmott Svall;14332
21663875;AirSonett AB;62200;Hyra medicinteknisk apparatur;3313;2022-10-03;2022-09-30;30103;BUM mott Slå;14398
21663925;AirSonett AB;62200;Hyra medicinteknisk apparatur;3313;2022-10-03;2022-09-30;41302;BUM mott Övik;14422
21663922;AirSonett AB;62200;Hyra medicinteknisk apparatur;3313;2022-10-03;2022-09-30;41302;BUM mott Övik;14426
21663786;AirSonett AB;62200;Hyra medicinteknisk apparatur;3313;2022-10-03;2022-09-30;41302;BUM mott Övik;14448
21663832;AirSonett AB;62200;Hyra medicinteknisk apparatur;3313;2022-10-03;2022-09-30;41302;BUM mott Övik;14470
21663923;AirSonett AB;62200;Hyra medicinteknisk apparatur;3313;2022-10-03;2022-09-30;30103;BUM mott Slå;14471
21663834;AirSonett AB;57100;Tekniska hjälpmedel;3313;2022-10-03;2022-09-30;11320;Lungmott Svall;14496
21655493;Aj Medical;56309;Medicinskt material övrigt;2738;2022-09-20;2022-09-20;41530;Habiliteringsmott Övik;43215
21660998;Aj Medical;65200;Matr akut underh med tekn utr;381;2022-09-29;2022-09-29;67140;MTA Örnsköldsviks sjukhus;43334
21661658;Aj Medical;65210;Ext tjänst akut underh medtekn;2358;2022-09-30;2022-09-30;67110;MTA Länssjukhuset;43339
21644355;AJ Produkter i Hyltebruk AB;57300;Städ/tvätt/rengöringsmat;3144;2022-09-03;2022-09-02;41110;Ger, stroke och rehabavd 3 Övi;1003156
21644355;AJ Produkter i Hyltebruk AB;57300;Städ/tvätt/rengöringsmat;3144;2022-09-03;2022-09-02;41110;Ger, stroke och rehabavd 3 Övi;1003156
21644355;AJ Produkter i Hyltebruk AB;57300;Städ/tvätt/rengöringsmat;3144;2022-09-03;2022-09-02;41110;Ger, stroke och rehabavd 3 Övi;1003156
21644355;AJ Produkter i Hyltebruk AB;57300;Städ/tvätt/rengöringsmat;3144;2022-09-03;2022-09-02;41110;Ger, stroke och rehabavd 3 Övi;1003156
21644355;AJ Produkter i Hyltebruk AB;57300;Städ/tvätt/rengöringsmat;3144;2022-09-03;2022-09-02;41110;Ger, stroke och rehabavd 3 Övi;1003156
21644355;AJ Produkter i Hyltebruk AB;57300;Städ/tvätt/rengöringsmat;3144;2022-09-03;2022-09-02;41110;Ger, stroke och rehabavd 3 Övi;1003156
21645994;AJ Produkter i Hyltebruk AB;57990;Material/varor övrigt;843;2022-09-06;2022-09-06;12001;Operationsavd A Svall;1004003
21645994;AJ Produkter i Hyltebruk AB;57300;Städ/tvätt/rengöringsmat;843;2022-09-06;2022-09-06;12001;Operationsavd A Svall;1004003
21646988;AJ Produkter i Hyltebruk AB;57780;Ljus/ljudmaterial;5725;2022-09-07;2022-09-07;30103;BUM mott Slå;1004492
21646987;AJ Produkter i Hyltebruk AB;57990;Material/varor övrigt;2709;2022-09-07;2022-09-07;78302;RPK Pedagogisk verksamhet;1004652
21646987;AJ Produkter i Hyltebruk AB;75099;Övriga tjänster;2709;2022-09-07;2022-09-07;78302;RPK Pedagogisk verksamhet;1004652
21647649;AJ Produkter i Hyltebruk AB;64190;Inventarier <48,3 tkr övr;30412;2022-09-08;2022-09-08;70370;Ålsta Svall Org.bidrag;1005011
21647649;AJ Produkter i Hyltebruk AB;64190;Inventarier <48,3 tkr övr;30412;2022-09-08;2022-09-08;70370;Ålsta Svall Org.bidrag;1005011
21647649;AJ Produkter i Hyltebruk AB;64190;Inventarier <48,3 tkr övr;30412;2022-09-08;2022-09-08;70370;Ålsta Svall Org.bidrag;1005011
21647649;AJ Produkter i Hyltebruk AB;67900;Transporter/frakter övr ej pat;30412;2022-09-08;2022-09-08;70370;Ålsta Svall Org.bidrag;1005011
21648544;AJ Produkter i Hyltebruk AB;60720;Planerat underhåll;51041;2022-09-09;2022-09-09;24400;Psykiatri hab gem poster;1005611
21648544;AJ Produkter i Hyltebruk AB;60720;Planerat underhåll;51041;2022-09-09;2022-09-09;24400;Psykiatri hab gem poster;1005611
21648543;AJ Produkter i Hyltebruk AB;64500;Kontorsmaterial;661;2022-09-09;2022-09-09;84120;Laboratoriemedicin Sundsvall;1005670
21651280;AJ Produkter i Hyltebruk AB;64190;Inventarier <48,3 tkr övr;1428;2022-09-14;2022-09-14;70370;Ålsta Svall Org.bidrag;1007146
21652089;AJ Produkter i Hyltebruk AB;60610;Sophämtning;904;2022-09-15;2022-09-15;41110;Ger, stroke och rehabavd 3 Övi;1007782
21652089;AJ Produkter i Hyltebruk AB;67900;Transporter/frakter övr ej pat;904;2022-09-15;2022-09-15;41110;Ger, stroke och rehabavd 3 Övi;1007782
21652090;AJ Produkter i Hyltebruk AB;60610;Sophämtning;904;2022-09-15;2022-09-15;41110;Ger, stroke och rehabavd 3 Övi;1007783
21652090;AJ Produkter i Hyltebruk AB;67900;Transporter/frakter övr ej pat;904;2022-09-15;2022-09-15;41110;Ger, stroke och rehabavd 3 Övi;1007783
21655549;AJ Produkter i Hyltebruk AB;57990;Material/varor övrigt;3444;2022-09-20;2022-09-20;69511;Logistik Hjälpmedel;1009267
21655549;AJ Produkter i Hyltebruk AB;67900;Transporter/frakter övr ej pat;3444;2022-09-20;2022-09-20;69511;Logistik Hjälpmedel;1009267
21657008;AJ Produkter i Hyltebruk AB;56309;Medicinskt material övrigt;1105;2022-09-22;2022-09-22;15103;Psykiatrisk akutmott Svall;1010260
21657008;AJ Produkter i Hyltebruk AB;56309;Medicinskt material övrigt;1105;2022-09-22;2022-09-22;15103;Psykiatrisk akutmott Svall;1010260
21657008;AJ Produkter i Hyltebruk AB;67900;Transporter/frakter övr ej pat;1105;2022-09-22;2022-09-22;15103;Psykiatrisk akutmott Svall;1010260
21657667;AJ Produkter i Hyltebruk AB;64190;Inventarier <48,3 tkr övr;22316;2022-09-23;2022-09-23;70321;Hola Verksamhetsbidrag;1010835
21657667;AJ Produkter i Hyltebruk AB;67900;Transporter/frakter övr ej pat;22316;2022-09-23;2022-09-23;70321;Hola Verksamhetsbidrag;1010835
21661033;AJ Produkter i Hyltebruk AB;30800;Avgifter övriga;4767;2022-09-29;2022-09-29;11803;Sekreterarenhet GNR Svall;1012941
21661033;AJ Produkter i Hyltebruk AB;64190;Inventarier <48,3 tkr övr;4767;2022-09-29;2022-09-29;11803;Sekreterarenhet GNR Svall;1012941
21661906;AJ Produkter i Hyltebruk AB;64500;Kontorsmaterial;661;2022-09-30;2022-09-30;84120;Laboratoriemedicin Sundsvall;1013603
21661906;AJ Produkter i Hyltebruk AB;67900;Transporter/frakter övr ej pat;661;2022-09-30;2022-09-30;84120;Laboratoriemedicin Sundsvall;1013603
21661907;AJ Produkter i Hyltebruk AB;55400;Sjukvårdstjänster övriga;1094;2022-09-30;2022-09-30;12102;Kir avd 15;1014012
21661907;AJ Produkter i Hyltebruk AB;55400;Sjukvårdstjänster övriga;1094;2022-09-30;2022-09-30;12102;Kir avd 15;1014012
21661907;AJ Produkter i Hyltebruk AB;67900;Transporter/frakter övr ej pat;1094;2022-09-30;2022-09-30;12102;Kir avd 15;1014012
21648740;AJ Produkter i Hyltebruk AB;64190;Inventarier <48,3 tkr övr;-1428;2022-09-09;2022-09-09;70370;Ålsta Svall Org.bidrag;58061
21654035;AJ Produkter i Hyltebruk AB;64500;Kontorsmaterial;-938;2022-09-16;2022-09-16;41110;Ger, stroke och rehabavd 3 Övi;58267
21649103;AKAB Utbildning AB;46100;Kurs/konferensavgift;3750;2022-09-12;2022-09-12;41314;BB Förlossning Gynavd Övik;5176
21653634;AKAB Utbildning AB;46100;Kurs/konferensavgift;45000;2022-09-16;2022-09-16;41314;BB Förlossning Gynavd Övik;5188
21647688;Akademikonferens;46100;Kurs/konferensavgift;2975;2022-09-08;2022-09-08;41100;Läkarenh Medicin Övik;9,30113E+12
21650376;Akademikonferens;46100;Kurs/konferensavgift;2975;2022-09-13;2022-09-12;12119;Läkarenhet Kirurgi Svall;9,30113E+12
21652104;Akademikonferens;46100;Kurs/konferensavgift;625;2022-09-15;2022-09-14;37023;Dialysmott Slå;9,30113E+12
21652105;Akademikonferens;46100;Kurs/konferensavgift;625;2022-09-15;2022-09-14;37023;Dialysmott Slå;9,30113E+12
21646014;Akademikonferens;68300;Hotell/logi Sverige personal;3393;2022-09-06;2022-09-05;12719;Läkarenhet Ögon Svall;9,30114E+12
21646015;Akademikonferens;68300;Hotell/logi Sverige personal;1696;2022-09-06;2022-09-05;12719;Läkarenhet Ögon Svall;9,30114E+12
21659515;Akademikonferens;46110;Utbildningsavgift;1875;2022-09-27;2022-09-27;82292;Civilt försvar;9,30127E+12
21659516;Akademikonferens;46100;Kurs/konferensavgift;1875;2022-09-27;2022-09-27;82291;Risk- och sårbarhetsanalys;9,30127E+12
21668492;Aktiebolaget Vårdkuriren;55510;Inhyrda läkare;34980;2022-10-06;2022-09-30;86801;Läkare, Södra sundet HC;6303
21669966;Aktiebolaget Vårdkuriren;55510;Inhyrda läkare;22823;2022-10-10;2022-09-30;86461;Läkare Gilleberget HC;6316
21649748;Aktivera Incentive i S-vall AB;17210;Upplupna intäkter;2055;2022-09-13;2022-09-12;70007;Ramprojekt Utveckling och omst;Företagsstöd
21641741;Akustik Entreprenader BoIng AB;60700;Felavhjälpande underhåll;11164;2022-09-01;2022-09-01;63700;Örnsköldsviks sjukhus;13887
21658242;Akvarieservice i Sverige AB;65500;Underhåll/material inventarier;3000;2022-09-26;2022-09-26;15104;Psykiatrisk avd 52 A Svall;3062
21658241;Akvarieservice i Sverige AB;28830;Gåvor på tillgångskonto;4313;2022-09-26;2022-09-26;12200;Onkologi Gem Svall;3063
21658245;Akvarieservice i Sverige AB;28830;Gåvor på tillgångskonto;3488;2022-09-26;2022-09-26;12200;Onkologi Gem Svall;3064
21658248;Akvarieservice i Sverige AB;60770;Verksamhetsanknutet underhåll;4444;2022-09-26;2022-09-26;14103;BUM avd 44 Svall;3065
21658251;Akvarieservice i Sverige AB;75990;Främmande tjänster övriga;4088;2022-09-26;2022-09-26;18180;Vårdhotell Reception Svall;3066
21648890;Akzo Nobel Decorative Coatings AB;60710;Förebyggande underhåll;1533,65;2022-09-11;2022-09-10;63220;Norrliden;IN01077413
21654098;Akzo Nobel Decorative Coatings AB;60710;Förebyggande underhåll;1533,65;2022-09-18;2022-09-17;63220;Norrliden;IN01081021
21653935;Akzo Nobel Decorative Coatings AB;60710;Förebyggande underhåll;3067,3;2022-09-18;2022-09-17;63200;Sundsvalls sjukhus;IN01081359
21657913;Akzo Nobel Decorative Coatings AB;60677;Löpande byggnad invändigt;4146,63;2022-09-25;2022-09-24;63410;Rehabcentrum Härnösand;IN01085027
21657914;Akzo Nobel Decorative Coatings AB;60710;Förebyggande underhåll;1533,65;2022-09-25;2022-09-24;63220;Norrliden;IN01085441
21663207;Akzo Nobel Decorative Coatings AB;60710;Förebyggande underhåll;1533,65;2022-10-01;2022-09-30;63220;Norrliden;IN01089711
21644735;Alcon Nordic Sweden Filial;56390;Sjukvårdsartiklar övriga;3739,5;2022-09-02;2022-09-02;12720;Ögonmott Svall;9101620288
21644728;Alcon Nordic Sweden Filial;56330;Instrument (sjukvård/tandvård);34875;2022-09-02;2022-09-02;12720;Ögonmott Svall;9101620793
21652860;Alcon Nordic Sweden Filial;56390;Sjukvårdsartiklar övriga;3739,5;2022-09-16;2022-09-05;30102;Ögonmott Slå;9101622846
21652859;Alcon Nordic Sweden Filial;56330;Instrument (sjukvård/tandvård);14850;2022-09-16;2022-09-05;30102;Ögonmott Slå;9101623302
21646499;Alcon Nordic Sweden Filial;56390;Sjukvårdsartiklar övriga;9547,2;2022-09-06;2022-09-06;12720;Ögonmott Svall;9101625489
21656574;Alcon Nordic Sweden Filial;56330;Instrument (sjukvård/tandvård);9854,7;2022-09-22;2022-09-09;30102;Ögonmott Slå;9101633017
21657314;Alcon Nordic Sweden Filial;56390;Sjukvårdsartiklar övriga;17700;2022-09-23;2022-09-13;30102;Ögonmott Slå;9101637444
21652836;Alcon Nordic Sweden Filial;56390;Sjukvårdsartiklar övriga;5708,1;2022-09-15;2022-09-15;12720;Ögonmott Svall;9101643017
21661410;Alcon Nordic Sweden Filial;56390;Sjukvårdsartiklar övriga;21439,5;2022-09-30;2022-09-19;30102;Ögonmott Slå;9101646602
21661409;Alcon Nordic Sweden Filial;56390;Sjukvårdsartiklar övriga;34875;2022-09-30;2022-09-19;30102;Ögonmott Slå;9101647235
21657895;Alcon Nordic Sweden Filial;56350;Sjukvårdsimplantat;-7250;2022-09-23;2022-09-19;12720;Ögonmott Svall;9101656061
21669657;Alcon Nordic Sweden Filial;56350;Sjukvårdsimplantat;881,25;2022-10-08;2022-09-26;30102;Ögonmott Slå;9101658234
21660043;Alcon Nordic Sweden Filial;56390;Sjukvårdsartiklar övriga;17473,48;2022-09-27;2022-09-27;12720;Ögonmott Svall;9101660614
21660043;Alcon Nordic Sweden Filial;56390;Sjukvårdsartiklar övriga;17473,48;2022-09-27;2022-09-27;12720;Ögonmott Svall;9101660614
21660043;Alcon Nordic Sweden Filial;56390;Sjukvårdsartiklar övriga;17473,48;2022-09-27;2022-09-27;12720;Ögonmott Svall;9101660614
21661313;Alcon Nordic Sweden Filial;56350;Sjukvårdsimplantat;3335,4;2022-09-29;2022-09-29;12720;Ögonmott Svall;9101665878
21671638;Alcon Nordic Sweden Filial;56350;Sjukvårdsimplantat;4335;2022-10-12;2022-09-29;30102;Ögonmott Slå;9101665880
21663096;Alcon Nordic Sweden Filial;56330;Instrument (sjukvård/tandvård);3739,5;2022-09-30;2022-09-30;12720;Ögonmott Svall;9101667712
21663096;Alcon Nordic Sweden Filial;56390;Sjukvårdsartiklar övriga;3739,5;2022-09-30;2022-09-30;12720;Ögonmott Svall;9101667712
21663090;Alcon Nordic Sweden Filial;56330;Instrument (sjukvård/tandvård);34875;2022-09-30;2022-09-30;12720;Ögonmott Svall;9101668165
21663090;Alcon Nordic Sweden Filial;56390;Sjukvårdsartiklar övriga;34875;2022-09-30;2022-09-30;12720;Ögonmott Svall;9101668165
21651282;Alere AB;57310;Köks/serveringsmaterial;11627,5;2022-09-14;2022-09-14;41112;Geriatrikmott Övik;90857254
21660046;Alere AB;56390;Sjukvårdsartiklar övriga;980;2022-09-28;2022-09-20;84123;Hematologi;90858058
21656240;Alere AB;65200;Matr akut underh med tekn utr;4916,25;2022-09-21;2022-09-21;67110;MTA Länssjukhuset;90858129
21656239;Alere AB;56309;Medicinskt material övrigt;7411,25;2022-09-21;2022-09-21;15103;Psykiatrisk akutmott Svall;90858144
21661034;Alere AB;64190;Inventarier <48,3 tkr övr;1640,8;2022-09-29;2022-09-29;37000;Akutmott Slå;90859738
21661911;Alere AB;64130;Med tekn utrustn < 48,3 tkr;9962,5;2022-09-30;2022-09-30;17030;Akutmott Svall;90859804
21661910;Alere AB;64190;Inventarier <48,3 tkr övr;14822,5;2022-09-30;2022-09-30;37000;Akutmott Slå;90859807
21663772;Aleris Diagnostik AB;55350;Röntgenundersökningar;7851;2022-09-30;2022-09-30;86101;Läkare, Ånge HC;10022741
21661990;Aleris Diagnostik AB;50400;Köpt konsulttjänst vård;314795;2022-09-30;2022-09-30;41600;Läkarenh Röntgen Övik;10022742
21661989;Aleris Diagnostik AB;50400;Köpt konsulttjänst vård;397101;2022-09-30;2022-09-30;17181;Röntgenmott Svall;10022743
21661989;Aleris Diagnostik AB;50400;Köpt konsulttjänst vård;397101;2022-09-30;2022-09-30;41620;Röntgenmott Övik;10022743
21660484;Alf Näslunds Eltjänst AB;60720;Planerat underhåll;51241;2022-09-28;2022-09-28;63700;Örnsköldsviks sjukhus;33649
21660466;Alf Näslunds Eltjänst AB;60720;Planerat underhåll;18341;2022-09-28;2022-09-28;63700;Örnsköldsviks sjukhus;33650
21664061;Alfa Kommun och Landsting AB;75410;IT-tjänst förvaltn/underh;21923;2022-10-03;2022-09-30;53350;Folktandvård gem Ek;118960
21667079;AlfaCare Danmark ApS;28920;Avräkning Sesam;5270;2022-10-05;2022-09-26;69510;Hjälpmedel gem Sundsvall;2013461
21695821;Align Technology BV;46100;Kurs/konferensavgift;40462,5;2022-11-14;2022-09-29;53350;Folktandvård gem Ek;7001726820
21678562;Align Technology BV;46100;Kurs/konferensavgift;32370;2022-10-20;2022-09-29;53350;Folktandvård gem Ek;7001726847
21695814;Align Technology BV;46100;Kurs/konferensavgift;32370;2022-11-14;2022-09-29;53350;Folktandvård gem Ek;7001748045
21695812;Align Technology BV;46100;Kurs/konferensavgift;32370;2022-11-14;2022-09-29;53350;Folktandvård gem Ek;7001748048
21695822;Align Technology BV;46100;Kurs/konferensavgift;32370;2022-11-14;2022-09-29;53350;Folktandvård gem Ek;7001748050
21642894;AllOffice Nordic AB;64500;Kontorsmaterial;79;2022-09-02;2022-09-01;87221;Gemensamt Höga Kusten HC;8018989601
21642906;AllOffice Nordic AB;64500;Kontorsmaterial;123;2022-09-02;2022-09-01;23100;Lung Infektion Hud Gem;8018990203
21642893;AllOffice Nordic AB;56390;Sjukvårdsartiklar övriga;974;2022-09-02;2022-09-01;11004;Kardiologi avd Svall;8018994007
21642872;AllOffice Nordic AB;57300;Städ/tvätt/rengöringsmat;323;2022-09-02;2022-09-01;86010;Vaccination Söder;8019003907
21642889;AllOffice Nordic AB;64500;Kontorsmaterial;720;2022-09-02;2022-09-01;81874;KTC Sundsvall;8019007205
21642897;AllOffice Nordic AB;64500;Kontorsmaterial;95;2022-09-02;2022-09-01;12403;Ortopedavd 14 Svall;8019014508
21642874;AllOffice Nordic AB;64500;Kontorsmaterial;803;2022-09-02;2022-09-01;15121;Psykiatrisk mottagning B;8019016206
21642874;AllOffice Nordic AB;64500;Kontorsmaterial;803;2022-09-02;2022-09-01;15121;Psykiatrisk mottagning B;8019016206
21642874;AllOffice Nordic AB;64500;Kontorsmaterial;803;2022-09-02;2022-09-01;15121;Psykiatrisk mottagning B;8019016206
21642874;AllOffice Nordic AB;64500;Kontorsmaterial;803;2022-09-02;2022-09-01;15121;Psykiatrisk mottagning B;8019016206
21642874;AllOffice Nordic AB;64500;Kontorsmaterial;803;2022-09-02;2022-09-01;15121;Psykiatrisk mottagning B;8019016206
21642874;AllOffice Nordic AB;64500;Kontorsmaterial;803;2022-09-02;2022-09-01;15121;Psykiatrisk mottagning B;8019016206
21642885;AllOffice Nordic AB;64500;Kontorsmaterial;58;2022-09-02;2022-09-01;82560;IT- Övergripande;8019018202
21642909;AllOffice Nordic AB;64500;Kontorsmaterial;40;2022-09-02;2022-09-01;12203;Strålbehandlingsmott Svall;8019020703
21642895;AllOffice Nordic AB;64500;Kontorsmaterial;84;2022-09-02;2022-09-01;41511;Psykiatrisk mott Övik;8019020802
21642904;AllOffice Nordic AB;64500;Kontorsmaterial;353;2022-09-02;2022-09-01;86030;Vaccination Väster;8019022006
21642899;AllOffice Nordic AB;64500;Kontorsmaterial;87;2022-09-02;2022-09-01;15013;NP-Mottagning Sundsvall;8019024507
21642891;AllOffice Nordic AB;64500;Kontorsmaterial;264;2022-09-02;2022-09-01;66100;Sterilteknik Sundsvall;8019024606
21642878;AllOffice Nordic AB;64500;Kontorsmaterial;669;2022-09-02;2022-09-01;25120;Psykiatrisk mott Hsand;8019024705
21642878;AllOffice Nordic AB;64500;Kontorsmaterial;669;2022-09-02;2022-09-01;25120;Psykiatrisk mott Hsand;8019024705
21642878;AllOffice Nordic AB;57310;Köks/serveringsmaterial;669;2022-09-02;2022-09-01;25120;Psykiatrisk mott Hsand;8019024705
21642912;AllOffice Nordic AB;64190;Inventarier <48,3 tkr övr;463;2022-09-02;2022-09-01;13100;Specialistvården Gem;8019024804
21642912;AllOffice Nordic AB;64500;Kontorsmaterial;463;2022-09-02;2022-09-01;13100;Specialistvården Gem;8019024804
21642888;AllOffice Nordic AB;64500;Kontorsmaterial;3068;2022-09-02;2022-09-01;41208;Kirurgisk mott Övik;8019028607
21642888;AllOffice Nordic AB;64500;Kontorsmaterial;3068;2022-09-02;2022-09-01;41208;Kirurgisk mott Övik;8019028607
21642888;AllOffice Nordic AB;64500;Kontorsmaterial;3068;2022-09-02;2022-09-01;41208;Kirurgisk mott Övik;8019028607
21642888;AllOffice Nordic AB;64500;Kontorsmaterial;3068;2022-09-02;2022-09-01;41208;Kirurgisk mott Övik;8019028607
21642888;AllOffice Nordic AB;64500;Kontorsmaterial;3068;2022-09-02;2022-09-01;41208;Kirurgisk mott Övik;8019028607
21642888;AllOffice Nordic AB;64500;Kontorsmaterial;3068;2022-09-02;2022-09-01;41208;Kirurgisk mott Övik;8019028607
21642888;AllOffice Nordic AB;64500;Kontorsmaterial;3068;2022-09-02;2022-09-01;41208;Kirurgisk mott Övik;8019028607
21642888;AllOffice Nordic AB;64500;Kontorsmaterial;3068;2022-09-02;2022-09-01;41208;Kirurgisk mott Övik;8019028607
21642888;AllOffice Nordic AB;64500;Kontorsmaterial;3068;2022-09-02;2022-09-01;41208;Kirurgisk mott Övik;8019028607
21642887;AllOffice Nordic AB;64500;Kontorsmaterial;433;2022-09-02;2022-09-01;14321;SpecMVC Ultraljudsmott Svall;8019030702
21642887;AllOffice Nordic AB;64500;Kontorsmaterial;433;2022-09-02;2022-09-01;14321;SpecMVC Ultraljudsmott Svall;8019030702
21642884;AllOffice Nordic AB;64500;Kontorsmaterial;828;2022-09-02;2022-09-01;69726;Tryckeri Regionen;8019030801
21642884;AllOffice Nordic AB;64500;Kontorsmaterial;828;2022-09-02;2022-09-01;69726;Tryckeri Regionen;8019030801
21642884;AllOffice Nordic AB;64500;Kontorsmaterial;828;2022-09-02;2022-09-01;69726;Tryckeri Regionen;8019030801
21642880;AllOffice Nordic AB;64500;Kontorsmaterial;108;2022-09-02;2022-09-01;87553;Gem kostnader Bjästa HC;8019034209
21642880;AllOffice Nordic AB;64500;Kontorsmaterial;108;2022-09-02;2022-09-01;87553;Gem kostnader Bjästa HC;8019034209
21642880;AllOffice Nordic AB;64500;Kontorsmaterial;108;2022-09-02;2022-09-01;87553;Gem kostnader Bjästa HC;8019034209
21642886;AllOffice Nordic AB;64600;Förbrmatr ej städ/kontor/IT;79;2022-09-02;2022-09-01;11202;Infektionsavd 1 Svall;8019037806
21642875;AllOffice Nordic AB;64500;Kontorsmaterial;1609;2022-09-02;2022-09-01;41126;Sekreterarenh Medicin Övik;8019038705
21642873;AllOffice Nordic AB;64600;Förbrmatr ej städ/kontor/IT;487;2022-09-02;2022-09-01;17100;Klinisk fysiologimott Svall;8019043002
21642873;AllOffice Nordic AB;64500;Kontorsmaterial;487;2022-09-02;2022-09-01;17100;Klinisk fysiologimott Svall;8019043002
21642873;AllOffice Nordic AB;57310;Köks/serveringsmaterial;487;2022-09-02;2022-09-01;17100;Klinisk fysiologimott Svall;8019043002
21642905;AllOffice Nordic AB;64500;Kontorsmaterial;234;2022-09-02;2022-09-01;15103;Psykiatrisk akutmott Svall;8019043101
21642905;AllOffice Nordic AB;64500;Kontorsmaterial;234;2022-09-02;2022-09-01;15103;Psykiatrisk akutmott Svall;8019043101
21642905;AllOffice Nordic AB;64500;Kontorsmaterial;234;2022-09-02;2022-09-01;15103;Psykiatrisk akutmott Svall;8019043101
21642879;AllOffice Nordic AB;64500;Kontorsmaterial;4308;2022-09-02;2022-09-01;69726;Tryckeri Regionen;8019044802
21642879;AllOffice Nordic AB;64500;Kontorsmaterial;4308;2022-09-02;2022-09-01;69726;Tryckeri Regionen;8019044802
21642879;AllOffice Nordic AB;64500;Kontorsmaterial;4308;2022-09-02;2022-09-01;69726;Tryckeri Regionen;8019044802
21642907;AllOffice Nordic AB;64500;Kontorsmaterial;1460;2022-09-02;2022-09-01;69711;Transport team 1 Sundsvall;8019045908
21642907;AllOffice Nordic AB;64500;Kontorsmaterial;1460;2022-09-02;2022-09-01;69711;Transport team 1 Sundsvall;8019045908
21642907;AllOffice Nordic AB;64500;Kontorsmaterial;1460;2022-09-02;2022-09-01;69711;Transport team 1 Sundsvall;8019045908
21642908;AllOffice Nordic AB;64600;Förbrmatr ej städ/kontor/IT;1096;2022-09-02;2022-09-01;87173;Gemensamt Kramfors HC;8019048704
21642908;AllOffice Nordic AB;64600;Förbrmatr ej städ/kontor/IT;1096;2022-09-02;2022-09-01;87173;Gemensamt Kramfors HC;8019048704
21642908;AllOffice Nordic AB;64500;Kontorsmaterial;1096;2022-09-02;2022-09-01;87173;Gemensamt Kramfors HC;8019048704
21642908;AllOffice Nordic AB;64500;Kontorsmaterial;1096;2022-09-02;2022-09-01;87173;Gemensamt Kramfors HC;8019048704
21642908;AllOffice Nordic AB;64500;Kontorsmaterial;1096;2022-09-02;2022-09-01;87173;Gemensamt Kramfors HC;8019048704
21642913;AllOffice Nordic AB;64600;Förbrmatr ej städ/kontor/IT;148;2022-09-02;2022-09-01;87173;Gemensamt Kramfors HC;8019048803
21642913;AllOffice Nordic AB;64600;Förbrmatr ej städ/kontor/IT;148;2022-09-02;2022-09-01;87173;Gemensamt Kramfors HC;8019048803
21642896;AllOffice Nordic AB;64600;Förbrmatr ej städ/kontor/IT;376;2022-09-02;2022-09-01;70360;Ålsta Fränsta Org.bidrag;8019051807
21642896;AllOffice Nordic AB;64500;Kontorsmaterial;376;2022-09-02;2022-09-01;70060;Ålsta Fränsta Adm/Gem/IT;8019051807
21642881;AllOffice Nordic AB;64500;Kontorsmaterial;471;2022-09-02;2022-09-01;11020;Medicinmott Svall;8019053704
21642881;AllOffice Nordic AB;64500;Kontorsmaterial;471;2022-09-02;2022-09-01;11020;Medicinmott Svall;8019053704
21642881;AllOffice Nordic AB;64500;Kontorsmaterial;471;2022-09-02;2022-09-01;11020;Medicinmott Svall;8019053704
21642892;AllOffice Nordic AB;64500;Kontorsmaterial;56;2022-09-02;2022-09-01;86223;Gemensamma kostnader, Stöde;8019053803
21642892;AllOffice Nordic AB;64500;Kontorsmaterial;56;2022-09-02;2022-09-01;86223;Gemensamma kostnader, Stöde;8019053803
21642914;AllOffice Nordic AB;64500;Kontorsmaterial;629;2022-09-02;2022-09-01;12001;Operationsavd A Svall;8019054702
21642914;AllOffice Nordic AB;64500;Kontorsmaterial;629;2022-09-02;2022-09-01;12001;Operationsavd A Svall;8019054702
21642901;AllOffice Nordic AB;64500;Kontorsmaterial;132;2022-09-02;2022-09-01;82510;Regionfullmäktige möten;8019055105
21642901;AllOffice Nordic AB;64500;Kontorsmaterial;132;2022-09-02;2022-09-01;82510;Regionfullmäktige möten;8019055105
21642901;AllOffice Nordic AB;64500;Kontorsmaterial;132;2022-09-02;2022-09-01;82510;Regionfullmäktige möten;8019055105
21642901;AllOffice Nordic AB;64500;Kontorsmaterial;132;2022-09-02;2022-09-01;82510;Regionfullmäktige möten;8019055105
21642903;AllOffice Nordic AB;64500;Kontorsmaterial;941;2022-09-02;2022-09-01;12108;Kir avd KAVA;8019058406
21642890;AllOffice Nordic AB;64500;Kontorsmaterial;-3445;2022-09-02;2022-09-01;11020;Medicinmott Svall;8019060709
21642876;AllOffice Nordic AB;64500;Kontorsmaterial;198;2022-09-02;2022-09-01;11022;Självdialys Svall;8019061400
21642876;AllOffice Nordic AB;64500;Kontorsmaterial;198;2022-09-02;2022-09-01;11022;Självdialys Svall;8019061400
21642902;AllOffice Nordic AB;64500;Kontorsmaterial;336;2022-09-02;2022-09-01;17181;Röntgenmott Svall;8019063406
21642911;AllOffice Nordic AB;56390;Sjukvårdsartiklar övriga;74;2022-09-02;2022-09-01;11320;Lungmott Svall;8019065302
21642900;AllOffice Nordic AB;64500;Kontorsmaterial;7;2022-09-02;2022-09-01;11321;Somatisk dagsjv Svall;8019069809
21642898;AllOffice Nordic AB;64500;Kontorsmaterial;402;2022-09-02;2022-09-01;68950;Regionsarkivet;8019082901
21642898;AllOffice Nordic AB;64500;Kontorsmaterial;402;2022-09-02;2022-09-01;68950;Regionsarkivet;8019082901
21642882;AllOffice Nordic AB;64500;Kontorsmaterial;421;2022-09-02;2022-09-01;30101;Specialistvårdsmott Slå;8019086704
21642882;AllOffice Nordic AB;64500;Kontorsmaterial;421;2022-09-02;2022-09-01;30101;Specialistvårdsmott Slå;8019086704
21642882;AllOffice Nordic AB;64500;Kontorsmaterial;421;2022-09-02;2022-09-01;30101;Specialistvårdsmott Slå;8019086704
21642877;AllOffice Nordic AB;57990;Material/varor övrigt;583;2022-09-02;2022-09-01;70370;Ålsta Svall Org.bidrag;8019096802
21642910;AllOffice Nordic AB;57990;Material/varor övrigt;96;2022-09-02;2022-09-01;78304;RPK Avd 94;8019103103
21642883;AllOffice Nordic AB;64500;Kontorsmaterial;915;2022-09-02;2022-09-01;14320;Gynekologisk mott Svall;8019114605
21644486;AllOffice Nordic AB;64500;Kontorsmaterial;846;2022-09-05;2022-09-02;68950;Regionsarkivet;8019175804
21644485;AllOffice Nordic AB;64500;Kontorsmaterial;129;2022-09-05;2022-09-02;54054;Pedodonti;8019179301
21644475;AllOffice Nordic AB;64500;Kontorsmaterial;914;2022-09-05;2022-09-02;17300;Arbetsterapimott Svall Hsand;8019182602
21644482;AllOffice Nordic AB;56390;Sjukvårdsartiklar övriga;2937;2022-09-05;2022-09-02;63060;Sundsvalls driftområde;8019191009
21644494;AllOffice Nordic AB;64500;Kontorsmaterial;111;2022-09-05;2022-09-02;37100;NO Norra gem;8019192601
21644494;AllOffice Nordic AB;64500;Kontorsmaterial;111;2022-09-05;2022-09-02;37100;NO Norra gem;8019192601
21644478;AllOffice Nordic AB;64600;Förbrmatr ej städ/kontor/IT;212;2022-09-05;2022-09-02;12204;Onkologmott Svall;8019193302
21644478;AllOffice Nordic AB;64600;Förbrmatr ej städ/kontor/IT;212;2022-09-05;2022-09-02;12204;Onkologmott Svall;8019193302
21644478;AllOffice Nordic AB;64500;Kontorsmaterial;212;2022-09-05;2022-09-02;12204;Onkologmott Svall;8019193302
21644478;AllOffice Nordic AB;64500;Kontorsmaterial;212;2022-09-05;2022-09-02;12204;Onkologmott Svall;8019193302
21644478;AllOffice Nordic AB;64500;Kontorsmaterial;212;2022-09-05;2022-09-02;12204;Onkologmott Svall;8019193302
21644478;AllOffice Nordic AB;64500;Kontorsmaterial;212;2022-09-05;2022-09-02;12204;Onkologmott Svall;8019193302
21644470;AllOffice Nordic AB;64500;Kontorsmaterial;1066;2022-09-05;2022-09-02;15130;LARO mottagning Svall;8019194201
21644470;AllOffice Nordic AB;64500;Kontorsmaterial;1066;2022-09-05;2022-09-02;15130;LARO mottagning Svall;8019194201
21644470;AllOffice Nordic AB;64500;Kontorsmaterial;1066;2022-09-05;2022-09-02;15130;LARO mottagning Svall;8019194201
21644470;AllOffice Nordic AB;64500;Kontorsmaterial;1066;2022-09-05;2022-09-02;15130;LARO mottagning Svall;8019194201
21644470;AllOffice Nordic AB;64500;Kontorsmaterial;1066;2022-09-05;2022-09-02;15130;LARO mottagning Svall;8019194201
21644470;AllOffice Nordic AB;64500;Kontorsmaterial;1066;2022-09-05;2022-09-02;15130;LARO mottagning Svall;8019194201
21644470;AllOffice Nordic AB;64500;Kontorsmaterial;1066;2022-09-05;2022-09-02;15130;LARO mottagning Svall;8019194201
21644469;AllOffice Nordic AB;64500;Kontorsmaterial;748;2022-09-05;2022-09-02;18100;SPV Kansli Svall;8019197402
21644469;AllOffice Nordic AB;64500;Kontorsmaterial;748;2022-09-05;2022-09-02;18100;SPV Kansli Svall;8019197402
21644469;AllOffice Nordic AB;64500;Kontorsmaterial;748;2022-09-05;2022-09-02;18100;SPV Kansli Svall;8019197402
21644469;AllOffice Nordic AB;64500;Kontorsmaterial;748;2022-09-05;2022-09-02;18100;SPV Kansli Svall;8019197402
21644469;AllOffice Nordic AB;64500;Kontorsmaterial;748;2022-09-05;2022-09-02;18100;SPV Kansli Svall;8019197402
21644469;AllOffice Nordic AB;64500;Kontorsmaterial;748;2022-09-05;2022-09-02;18100;SPV Kansli Svall;8019197402
21644469;AllOffice Nordic AB;64500;Kontorsmaterial;748;2022-09-05;2022-09-02;18100;SPV Kansli Svall;8019197402
21644488;AllOffice Nordic AB;64500;Kontorsmaterial;510;2022-09-05;2022-09-02;81850;Umeå univers läkarutbildning;8019200107
21644488;AllOffice Nordic AB;64500;Kontorsmaterial;510;2022-09-05;2022-09-02;81850;Umeå univers läkarutbildning;8019200107
21644488;AllOffice Nordic AB;64500;Kontorsmaterial;510;2022-09-05;2022-09-02;81850;Umeå univers läkarutbildning;8019200107
21644488;AllOffice Nordic AB;64500;Kontorsmaterial;510;2022-09-05;2022-09-02;81850;Umeå univers läkarutbildning;8019200107
21644488;AllOffice Nordic AB;64500;Kontorsmaterial;510;2022-09-05;2022-09-02;81850;Umeå univers läkarutbildning;8019200107
21644488;AllOffice Nordic AB;64500;Kontorsmaterial;510;2022-09-05;2022-09-02;81850;Umeå univers läkarutbildning;8019200107
21644488;AllOffice Nordic AB;64500;Kontorsmaterial;510;2022-09-05;2022-09-02;81850;Umeå univers läkarutbildning;8019200107
21644465;AllOffice Nordic AB;64500;Kontorsmaterial;122;2022-09-05;2022-09-02;41126;Sekreterarenh Medicin Övik;8019200206
21644465;AllOffice Nordic AB;64500;Kontorsmaterial;122;2022-09-05;2022-09-02;41126;Sekreterarenh Medicin Övik;8019200206
21644465;AllOffice Nordic AB;64500;Kontorsmaterial;122;2022-09-05;2022-09-02;41126;Sekreterarenh Medicin Övik;8019200206
21644490;AllOffice Nordic AB;64500;Kontorsmaterial;2241;2022-09-05;2022-09-02;41511;Psykiatrisk mott Övik;8019201402
21644490;AllOffice Nordic AB;64500;Kontorsmaterial;2241;2022-09-05;2022-09-02;41511;Psykiatrisk mott Övik;8019201402
21644467;AllOffice Nordic AB;64500;Kontorsmaterial;396;2022-09-05;2022-09-02;41511;Psykiatrisk mott Övik;8019201501
21644467;AllOffice Nordic AB;64500;Kontorsmaterial;396;2022-09-05;2022-09-02;41511;Psykiatrisk mott Övik;8019201501
21644467;AllOffice Nordic AB;64500;Kontorsmaterial;396;2022-09-05;2022-09-02;41511;Psykiatrisk mott Övik;8019201501
21644467;AllOffice Nordic AB;64500;Kontorsmaterial;396;2022-09-05;2022-09-02;41511;Psykiatrisk mott Övik;8019201501
21644467;AllOffice Nordic AB;64500;Kontorsmaterial;396;2022-09-05;2022-09-02;41511;Psykiatrisk mott Övik;8019201501
21644480;AllOffice Nordic AB;64500;Kontorsmaterial;247;2022-09-05;2022-09-02;70371;Ålsta Svall Verksamhets bidrag;8019202004
21644471;AllOffice Nordic AB;64500;Kontorsmaterial;111;2022-09-05;2022-09-02;14320;Gynekologisk mott Svall;8019202608
21644466;AllOffice Nordic AB;57310;Köks/serveringsmaterial;1004;2022-09-05;2022-09-02;41112;Geriatrikmott Övik;8019203309
21644466;AllOffice Nordic AB;57310;Köks/serveringsmaterial;1004;2022-09-05;2022-09-02;41112;Geriatrikmott Övik;8019203309
21644466;AllOffice Nordic AB;57310;Köks/serveringsmaterial;1004;2022-09-05;2022-09-02;41112;Geriatrikmott Övik;8019203309
21644466;AllOffice Nordic AB;57310;Köks/serveringsmaterial;1004;2022-09-05;2022-09-02;41112;Geriatrikmott Övik;8019203309
21644466;AllOffice Nordic AB;57310;Köks/serveringsmaterial;1004;2022-09-05;2022-09-02;41112;Geriatrikmott Övik;8019203309
21644483;AllOffice Nordic AB;64500;Kontorsmaterial;164;2022-09-05;2022-09-02;11007;Kardiologi mott Svall;8019203408
21644479;AllOffice Nordic AB;56390;Sjukvårdsartiklar övriga;880;2022-09-05;2022-09-02;11323;Sömnmottagning;8019204802
21644492;AllOffice Nordic AB;57100;Tekniska hjälpmedel;571;2022-09-05;2022-09-02;11323;Sömnmottagning;8019205205
21644472;AllOffice Nordic AB;64500;Kontorsmaterial;185;2022-09-05;2022-09-02;55400;Tandteknik Ftv Örnsköldsvik;8019207805
21644468;AllOffice Nordic AB;64800;Arbets/skyddskläd/skyddsmat;22;2022-09-05;2022-09-02;41208;Kirurgisk mott Övik;8019212300
21644487;AllOffice Nordic AB;64500;Kontorsmaterial;54;2022-09-05;2022-09-02;12421;Sekreterenh Ortopedi Svall;8019213506
21644495;AllOffice Nordic AB;64500;Kontorsmaterial;423;2022-09-05;2022-09-02;41210;Ögonmott Övik;8019215204
21644495;AllOffice Nordic AB;64500;Kontorsmaterial;423;2022-09-05;2022-09-02;41210;Ögonmott Övik;8019215204
21644495;AllOffice Nordic AB;64500;Kontorsmaterial;423;2022-09-05;2022-09-02;41210;Ögonmott Övik;8019215204
21644495;AllOffice Nordic AB;64500;Kontorsmaterial;423;2022-09-05;2022-09-02;41210;Ögonmott Övik;8019215204
21644495;AllOffice Nordic AB;64500;Kontorsmaterial;423;2022-09-05;2022-09-02;41210;Ögonmott Övik;8019215204
21644484;AllOffice Nordic AB;64600;Förbrmatr ej städ/kontor/IT;222;2022-09-05;2022-09-02;81871;Kliniskt träningscentr Slå;8019215303
21644489;AllOffice Nordic AB;64500;Kontorsmaterial;4;2022-09-05;2022-09-02;86963;MVC Ö-vik;8019216400
21644464;AllOffice Nordic AB;64500;Kontorsmaterial;2;2022-09-05;2022-09-02;86040;Vaccination Norr;8019216509
21644477;AllOffice Nordic AB;64500;Kontorsmaterial;32;2022-09-05;2022-09-02;41105;Dialysmott Övik;8019216608
21644477;AllOffice Nordic AB;64500;Kontorsmaterial;32;2022-09-05;2022-09-02;41105;Dialysmott Övik;8019216608
21644474;AllOffice Nordic AB;64500;Kontorsmaterial;419;2022-09-05;2022-09-02;12700;Ögon Gem Svall;8019218505
21644476;AllOffice Nordic AB;64500;Kontorsmaterial;57;2022-09-05;2022-09-02;17320;Sjukgymn, fysioterapimott Sval;8019218604
21644481;AllOffice Nordic AB;64114;IT-utrustning övrig < 48,3 tkr;77;2022-09-05;2022-09-02;15014;Mellanvård Sundsvall;8019218703
21644473;AllOffice Nordic AB;64500;Kontorsmaterial;124;2022-09-05;2022-09-02;52010;Ftv Härnösand;8019220907
21644473;AllOffice Nordic AB;64500;Kontorsmaterial;124;2022-09-05;2022-09-02;52010;Ftv Härnösand;8019220907
21644493;AllOffice Nordic AB;64500;Kontorsmaterial;171;2022-09-05;2022-09-02;69731;Transport Sollefteå;8019223604
21644491;AllOffice Nordic AB;64500;Kontorsmaterial;205;2022-09-05;2022-09-02;31026;SPOT;8019226003
21644491;AllOffice Nordic AB;64500;Kontorsmaterial;205;2022-09-05;2022-09-02;31026;SPOT;8019226003
21644491;AllOffice Nordic AB;64500;Kontorsmaterial;205;2022-09-05;2022-09-02;31026;SPOT;8019226003
21645252;AllOffice Nordic AB;64500;Kontorsmaterial;221;2022-09-06;2022-09-05;15013;NP-Mottagning Sundsvall;8019322604
21645259;AllOffice Nordic AB;64500;Kontorsmaterial;77;2022-09-06;2022-09-05;87173;Gemensamt Kramfors HC;8019324402
21645263;AllOffice Nordic AB;64500;Kontorsmaterial;1244;2022-09-06;2022-09-05;70381;Övik Verksamhetsbidrag;8019334203
21645263;AllOffice Nordic AB;64500;Kontorsmaterial;1244;2022-09-06;2022-09-05;70381;Övik Verksamhetsbidrag;8019334203
21645263;AllOffice Nordic AB;64500;Kontorsmaterial;1244;2022-09-06;2022-09-05;70381;Övik Verksamhetsbidrag;8019334203
21645263;AllOffice Nordic AB;64500;Kontorsmaterial;1244;2022-09-06;2022-09-05;70381;Övik Verksamhetsbidrag;8019334203
21645263;AllOffice Nordic AB;64500;Kontorsmaterial;1244;2022-09-06;2022-09-05;70381;Övik Verksamhetsbidrag;8019334203
21645263;AllOffice Nordic AB;64500;Kontorsmaterial;1244;2022-09-06;2022-09-05;70381;Övik Verksamhetsbidrag;8019334203
21645277;AllOffice Nordic AB;64500;Kontorsmaterial;70;2022-09-06;2022-09-05;63001;Fastigheter Stab;8019336505
21645277;AllOffice Nordic AB;64500;Kontorsmaterial;70;2022-09-06;2022-09-05;63001;Fastigheter Stab;8019336505
21645254;AllOffice Nordic AB;64500;Kontorsmaterial;3689;2022-09-06;2022-09-05;87673;Gemensamma kostn Domsjö HC;8019343303
21645254;AllOffice Nordic AB;64500;Kontorsmaterial;3689;2022-09-06;2022-09-05;87673;Gemensamma kostn Domsjö HC;8019343303
21645254;AllOffice Nordic AB;64500;Kontorsmaterial;3689;2022-09-06;2022-09-05;87673;Gemensamma kostn Domsjö HC;8019343303
21645254;AllOffice Nordic AB;64500;Kontorsmaterial;3689;2022-09-06;2022-09-05;87673;Gemensamma kostn Domsjö HC;8019343303
21645254;AllOffice Nordic AB;64500;Kontorsmaterial;3689;2022-09-06;2022-09-05;87673;Gemensamma kostn Domsjö HC;8019343303
21645254;AllOffice Nordic AB;64500;Kontorsmaterial;3689;2022-09-06;2022-09-05;87673;Gemensamma kostn Domsjö HC;8019343303
21645254;AllOffice Nordic AB;64500;Kontorsmaterial;3689;2022-09-06;2022-09-05;87673;Gemensamma kostn Domsjö HC;8019343303
21645254;AllOffice Nordic AB;64500;Kontorsmaterial;3689;2022-09-06;2022-09-05;87673;Gemensamma kostn Domsjö HC;8019343303
21645256;AllOffice Nordic AB;64500;Kontorsmaterial;44;2022-09-06;2022-09-05;41314;BB Förlossning Gynavd Övik;8019350209
21645273;AllOffice Nordic AB;64500;Kontorsmaterial;270;2022-09-06;2022-09-05;41420;Operationsavd Övik;8019350308
21645279;AllOffice Nordic AB;64800;Arbets/skyddskläd/skyddsmat;346;2022-09-06;2022-09-05;12722;Ögonrehabiliteringsmott Gem;8019350407
21645279;AllOffice Nordic AB;64800;Arbets/skyddskläd/skyddsmat;346;2022-09-06;2022-09-05;12722;Ögonrehabiliteringsmott Gem;8019350407
21645279;AllOffice Nordic AB;64500;Kontorsmaterial;346;2022-09-06;2022-09-05;12722;Ögonrehabiliteringsmott Gem;8019350407
21645279;AllOffice Nordic AB;64500;Kontorsmaterial;346;2022-09-06;2022-09-05;12722;Ögonrehabiliteringsmott Gem;8019350407
21645251;AllOffice Nordic AB;64500;Kontorsmaterial;172;2022-09-06;2022-09-05;87643;Gemensamma kostn Själevad;8019353302
21645251;AllOffice Nordic AB;64500;Kontorsmaterial;172;2022-09-06;2022-09-05;87643;Gemensamma kostn Själevad;8019353302
21645251;AllOffice Nordic AB;64500;Kontorsmaterial;172;2022-09-06;2022-09-05;87643;Gemensamma kostn Själevad;8019353302
21645275;AllOffice Nordic AB;64500;Kontorsmaterial;4454;2022-09-06;2022-09-05;11008;Medicinavd 24 Svall;8019354102
21645276;AllOffice Nordic AB;64500;Kontorsmaterial;89;2022-09-06;2022-09-05;41114;Sjukgymnastikmott Övik;8019355901
21645276;AllOffice Nordic AB;64500;Kontorsmaterial;89;2022-09-06;2022-09-05;41114;Sjukgymnastikmott Övik;8019355901
21645276;AllOffice Nordic AB;64500;Kontorsmaterial;89;2022-09-06;2022-09-05;41114;Sjukgymnastikmott Övik;8019355901
21645276;AllOffice Nordic AB;64500;Kontorsmaterial;89;2022-09-06;2022-09-05;41114;Sjukgymnastikmott Övik;8019355901
21645276;AllOffice Nordic AB;64500;Kontorsmaterial;89;2022-09-06;2022-09-05;41114;Sjukgymnastikmott Övik;8019355901
21645268;AllOffice Nordic AB;64600;Förbrmatr ej städ/kontor/IT;268;2022-09-06;2022-09-05;84120;Laboratoriemedicin Sundsvall;8019360307
21645268;AllOffice Nordic AB;64600;Förbrmatr ej städ/kontor/IT;268;2022-09-06;2022-09-05;84120;Laboratoriemedicin Sundsvall;8019360307
21645271;AllOffice Nordic AB;64500;Kontorsmaterial;656;2022-09-06;2022-09-05;69741;Transport Örnsköldsvik;8019361107
21645266;AllOffice Nordic AB;64500;Kontorsmaterial;1630;2022-09-06;2022-09-05;12120;Kirurgisk mott Svall;8019367005
21645266;AllOffice Nordic AB;64500;Kontorsmaterial;1630;2022-09-06;2022-09-05;12120;Kirurgisk mott Svall;8019367005
21645266;AllOffice Nordic AB;64500;Kontorsmaterial;1630;2022-09-06;2022-09-05;12120;Kirurgisk mott Svall;8019367005
21645266;AllOffice Nordic AB;64500;Kontorsmaterial;1630;2022-09-06;2022-09-05;12120;Kirurgisk mott Svall;8019367005
21645266;AllOffice Nordic AB;64500;Kontorsmaterial;1630;2022-09-06;2022-09-05;12120;Kirurgisk mott Svall;8019367005
21645255;AllOffice Nordic AB;64500;Kontorsmaterial;578;2022-09-06;2022-09-05;69510;Hjälpmedel gem Sundsvall;8019367104
21645278;AllOffice Nordic AB;64500;Kontorsmaterial;266;2022-09-06;2022-09-05;15011;Mottagning 1 Sundsvall;8019367203
21645265;AllOffice Nordic AB;64500;Kontorsmaterial;502;2022-09-06;2022-09-05;86975;Ungdomsmott, Sundsvall;8019370702
21645270;AllOffice Nordic AB;64500;Kontorsmaterial;273;2022-09-06;2022-09-05;17181;Röntgenmott Svall;8019372609
21645270;AllOffice Nordic AB;64500;Kontorsmaterial;273;2022-09-06;2022-09-05;17181;Röntgenmott Svall;8019372609
21645258;AllOffice Nordic AB;64500;Kontorsmaterial;273;2022-09-06;2022-09-05;30103;BUM mott Slå;8019377103
21645258;AllOffice Nordic AB;64500;Kontorsmaterial;273;2022-09-06;2022-09-05;30103;BUM mott Slå;8019377103
21645253;AllOffice Nordic AB;64600;Förbrmatr ej städ/kontor/IT;133;2022-09-06;2022-09-05;78306;RPK Avd 96;8019377202
21645267;AllOffice Nordic AB;64500;Kontorsmaterial;127;2022-09-06;2022-09-05;11802;Rehabiliteringsavd 26B Svall;8019382103
21645257;AllOffice Nordic AB;64500;Kontorsmaterial;380;2022-09-06;2022-09-05;11802;Rehabiliteringsavd 26B Svall;8019382202
21645257;AllOffice Nordic AB;64500;Kontorsmaterial;380;2022-09-06;2022-09-05;11802;Rehabiliteringsavd 26B Svall;8019382202
21645257;AllOffice Nordic AB;64500;Kontorsmaterial;380;2022-09-06;2022-09-05;11802;Rehabiliteringsavd 26B Svall;8019382202
21645257;AllOffice Nordic AB;64500;Kontorsmaterial;380;2022-09-06;2022-09-05;11802;Rehabiliteringsavd 26B Svall;8019382202
21645257;AllOffice Nordic AB;64500;Kontorsmaterial;380;2022-09-06;2022-09-05;11802;Rehabiliteringsavd 26B Svall;8019382202
21645260;AllOffice Nordic AB;64500;Kontorsmaterial;320;2022-09-06;2022-09-05;15130;LARO mottagning Svall;8019385908
21645274;AllOffice Nordic AB;64500;Kontorsmaterial;86;2022-09-06;2022-09-05;78305;RPK Avd 95;8019386005
21645272;AllOffice Nordic AB;64500;Kontorsmaterial;149;2022-09-06;2022-09-05;30320;Gynekologisk mott Slå;8019394702
21645272;AllOffice Nordic AB;64500;Kontorsmaterial;149;2022-09-06;2022-09-05;30320;Gynekologisk mott Slå;8019394702
21645272;AllOffice Nordic AB;64500;Kontorsmaterial;149;2022-09-06;2022-09-05;30320;Gynekologisk mott Slå;8019394702
21645280;AllOffice Nordic AB;64600;Förbrmatr ej städ/kontor/IT;870;2022-09-06;2022-09-05;31010;Kardiologi avd 16 Slå;8019403404
21645280;AllOffice Nordic AB;64500;Kontorsmaterial;870;2022-09-06;2022-09-05;31010;Kardiologi avd 16 Slå;8019403404
21645280;AllOffice Nordic AB;64500;Kontorsmaterial;870;2022-09-06;2022-09-05;31010;Kardiologi avd 16 Slå;8019403404
21645280;AllOffice Nordic AB;64500;Kontorsmaterial;870;2022-09-06;2022-09-05;31010;Kardiologi avd 16 Slå;8019403404
21645280;AllOffice Nordic AB;64500;Kontorsmaterial;870;2022-09-06;2022-09-05;31010;Kardiologi avd 16 Slå;8019403404
21645280;AllOffice Nordic AB;64500;Kontorsmaterial;870;2022-09-06;2022-09-05;31010;Kardiologi avd 16 Slå;8019403404
21645280;AllOffice Nordic AB;64500;Kontorsmaterial;870;2022-09-06;2022-09-05;31010;Kardiologi avd 16 Slå;8019403404
21645264;AllOffice Nordic AB;64500;Kontorsmaterial;391;2022-09-06;2022-09-05;63001;Fastigheter Stab;8019405409
21645262;AllOffice Nordic AB;57990;Material/varor övrigt;975;2022-09-06;2022-09-05;78303;RPK Avd 93;8019408106
21645261;AllOffice Nordic AB;64500;Kontorsmaterial;43;2022-09-06;2022-09-05;17430;Ambulansen Hsand;8019408809
21645269;AllOffice Nordic AB;64500;Kontorsmaterial;1326;2022-09-06;2022-09-05;70370;Ålsta Svall Org.bidrag;8019426207
21646647;AllOffice Nordic AB;64500;Kontorsmaterial;38;2022-09-07;2022-09-06;14305;BB Förlossning Gynavd Svall;8019480600
21646651;AllOffice Nordic AB;57310;Köks/serveringsmaterial;216;2022-09-07;2022-09-06;78306;RPK Avd 96;8019483505
21646669;AllOffice Nordic AB;64500;Kontorsmaterial;240;2022-09-07;2022-09-06;86823;Gemensamma kostn, Södra sundet;8019483604
21646655;AllOffice Nordic AB;64500;Kontorsmaterial;80;2022-09-07;2022-09-06;86101;Läkare, Ånge HC;8019484503
21646654;AllOffice Nordic AB;64600;Förbrmatr ej städ/kontor/IT;493;2022-09-07;2022-09-06;65010;Regionhälsan;8019499204
21646654;AllOffice Nordic AB;64600;Förbrmatr ej städ/kontor/IT;493;2022-09-07;2022-09-06;81641;HR närstöd;8019499204
21646654;AllOffice Nordic AB;64500;Kontorsmaterial;493;2022-09-07;2022-09-06;65010;Regionhälsan;8019499204
21646654;AllOffice Nordic AB;64500;Kontorsmaterial;493;2022-09-07;2022-09-06;81641;HR närstöd;8019499204
21646654;AllOffice Nordic AB;64500;Kontorsmaterial;493;2022-09-07;2022-09-06;65010;Regionhälsan;8019499204
21646654;AllOffice Nordic AB;64500;Kontorsmaterial;493;2022-09-07;2022-09-06;81641;HR närstöd;8019499204
21646641;AllOffice Nordic AB;64500;Kontorsmaterial;973;2022-09-07;2022-09-06;17030;Akutmott Svall;8019499303
21646641;AllOffice Nordic AB;64500;Kontorsmaterial;973;2022-09-07;2022-09-06;17030;Akutmott Svall;8019499303
21646641;AllOffice Nordic AB;64500;Kontorsmaterial;973;2022-09-07;2022-09-06;17030;Akutmott Svall;8019499303
21646639;AllOffice Nordic AB;57310;Köks/serveringsmaterial;318;2022-09-07;2022-09-06;12120;Kirurgisk mott Svall;8019500308
21646636;AllOffice Nordic AB;64500;Kontorsmaterial;193;2022-09-07;2022-09-06;17030;Akutmott Svall;8019501306
21646659;AllOffice Nordic AB;64500;Kontorsmaterial;1813;2022-09-07;2022-09-06;81872;Kliniskt träningscentr Övik;8019502908
21646659;AllOffice Nordic AB;64500;Kontorsmaterial;1813;2022-09-07;2022-09-06;81872;Kliniskt träningscentr Övik;8019502908
21646659;AllOffice Nordic AB;64500;Kontorsmaterial;1813;2022-09-07;2022-09-06;81872;Kliniskt träningscentr Övik;8019502908
21646659;AllOffice Nordic AB;64500;Kontorsmaterial;1813;2022-09-07;2022-09-06;81872;Kliniskt träningscentr Övik;8019502908
21646659;AllOffice Nordic AB;64500;Kontorsmaterial;1813;2022-09-07;2022-09-06;81872;Kliniskt träningscentr Övik;8019502908
21646659;AllOffice Nordic AB;64500;Kontorsmaterial;1813;2022-09-07;2022-09-06;81872;Kliniskt träningscentr Övik;8019502908
21646659;AllOffice Nordic AB;64500;Kontorsmaterial;1813;2022-09-07;2022-09-06;81872;Kliniskt träningscentr Övik;8019502908
21646656;AllOffice Nordic AB;64190;Inventarier <48,3 tkr övr;482;2022-09-07;2022-09-06;12202;Onkologavd 13 Svall;8019503807
21646662;AllOffice Nordic AB;64500;Kontorsmaterial;148;2022-09-07;2022-09-06;41314;BB Förlossning Gynavd Övik;8019507808
21646650;AllOffice Nordic AB;64190;Inventarier <48,3 tkr övr;660;2022-09-07;2022-09-06;70321;Hola Verksamhetsbidrag;8019509903
21646650;AllOffice Nordic AB;64500;Kontorsmaterial;660;2022-09-07;2022-09-06;70321;Hola Verksamhetsbidrag;8019509903
21646644;AllOffice Nordic AB;64190;Inventarier <48,3 tkr övr;1574;2022-09-07;2022-09-06;70320;Hola Organisationsbidrag;8019510000
21646644;AllOffice Nordic AB;64500;Kontorsmaterial;1574;2022-09-07;2022-09-06;70320;Hola Organisationsbidrag;8019510000
21646644;AllOffice Nordic AB;64500;Kontorsmaterial;1574;2022-09-07;2022-09-06;70320;Hola Organisationsbidrag;8019510000
21646644;AllOffice Nordic AB;64500;Kontorsmaterial;1574;2022-09-07;2022-09-06;70320;Hola Organisationsbidrag;8019510000
21646644;AllOffice Nordic AB;64500;Kontorsmaterial;1574;2022-09-07;2022-09-06;70320;Hola Organisationsbidrag;8019510000
21646644;AllOffice Nordic AB;64500;Kontorsmaterial;1574;2022-09-07;2022-09-06;70320;Hola Organisationsbidrag;8019510000
21646644;AllOffice Nordic AB;64500;Kontorsmaterial;1574;2022-09-07;2022-09-06;70320;Hola Organisationsbidrag;8019510000
21646644;AllOffice Nordic AB;64500;Kontorsmaterial;1574;2022-09-07;2022-09-06;70320;Hola Organisationsbidrag;8019510000
21646644;AllOffice Nordic AB;64500;Kontorsmaterial;1574;2022-09-07;2022-09-06;70320;Hola Organisationsbidrag;8019510000
21646644;AllOffice Nordic AB;64500;Kontorsmaterial;1574;2022-09-07;2022-09-06;70320;Hola Organisationsbidrag;8019510000
21646644;AllOffice Nordic AB;64500;Kontorsmaterial;1574;2022-09-07;2022-09-06;70320;Hola Organisationsbidrag;8019510000
21646644;AllOffice Nordic AB;64500;Kontorsmaterial;1574;2022-09-07;2022-09-06;70320;Hola Organisationsbidrag;8019510000
21646644;AllOffice Nordic AB;64500;Kontorsmaterial;1574;2022-09-07;2022-09-06;70320;Hola Organisationsbidrag;8019510000
21646644;AllOffice Nordic AB;64500;Kontorsmaterial;1574;2022-09-07;2022-09-06;70320;Hola Organisationsbidrag;8019510000
21646648;AllOffice Nordic AB;64500;Kontorsmaterial;71;2022-09-07;2022-09-06;17200;Mammografimott Svall;8019511305
21646668;AllOffice Nordic AB;64500;Kontorsmaterial;745;2022-09-07;2022-09-06;11007;Kardiologi mott Svall;8019513509
21646668;AllOffice Nordic AB;64500;Kontorsmaterial;745;2022-09-07;2022-09-06;11007;Kardiologi mott Svall;8019513509
21646638;AllOffice Nordic AB;64500;Kontorsmaterial;48;2022-09-07;2022-09-06;41114;Sjukgymnastikmott Övik;8019517203
21646645;AllOffice Nordic AB;64500;Kontorsmaterial;774;2022-09-07;2022-09-06;41411;Akutmott Övik;8019517302
21646645;AllOffice Nordic AB;64500;Kontorsmaterial;774;2022-09-07;2022-09-06;41411;Akutmott Övik;8019517302
21646645;AllOffice Nordic AB;64500;Kontorsmaterial;774;2022-09-07;2022-09-06;41411;Akutmott Övik;8019517302
21646637;AllOffice Nordic AB;64500;Kontorsmaterial;381;2022-09-07;2022-09-06;78312;RPK Avd 99;8019521007
21646637;AllOffice Nordic AB;64500;Kontorsmaterial;381;2022-09-07;2022-09-06;78312;RPK Avd 99;8019521007
21646637;AllOffice Nordic AB;64500;Kontorsmaterial;381;2022-09-07;2022-09-06;78312;RPK Avd 99;8019521007
21646637;AllOffice Nordic AB;64500;Kontorsmaterial;381;2022-09-07;2022-09-06;78312;RPK Avd 99;8019521007
21646653;AllOffice Nordic AB;64500;Kontorsmaterial;303;2022-09-07;2022-09-06;14121;SSIH barn;8019527202
21646653;AllOffice Nordic AB;64500;Kontorsmaterial;303;2022-09-07;2022-09-06;14121;SSIH barn;8019527202
21646643;AllOffice Nordic AB;64500;Kontorsmaterial;2529;2022-09-07;2022-09-06;70370;Ålsta Svall Org.bidrag;8019528507
21646643;AllOffice Nordic AB;64500;Kontorsmaterial;2529;2022-09-07;2022-09-06;70370;Ålsta Svall Org.bidrag;8019528507
21646649;AllOffice Nordic AB;64500;Kontorsmaterial;46;2022-09-07;2022-09-06;41113;Hudmottagning Övik;8019530107
21646649;AllOffice Nordic AB;64500;Kontorsmaterial;46;2022-09-07;2022-09-06;41113;Hudmottagning Övik;8019530107
21646649;AllOffice Nordic AB;64500;Kontorsmaterial;46;2022-09-07;2022-09-06;41113;Hudmottagning Övik;8019530107
21646649;AllOffice Nordic AB;64500;Kontorsmaterial;46;2022-09-07;2022-09-06;41113;Hudmottagning Övik;8019530107
21646649;AllOffice Nordic AB;64500;Kontorsmaterial;46;2022-09-07;2022-09-06;41113;Hudmottagning Övik;8019530107
21646642;AllOffice Nordic AB;64500;Kontorsmaterial;455;2022-09-07;2022-09-06;15130;LARO mottagning Svall;8019530206
21646642;AllOffice Nordic AB;64500;Kontorsmaterial;455;2022-09-07;2022-09-06;15130;LARO mottagning Svall;8019530206
21646642;AllOffice Nordic AB;64500;Kontorsmaterial;455;2022-09-07;2022-09-06;15130;LARO mottagning Svall;8019530206
21646642;AllOffice Nordic AB;64500;Kontorsmaterial;455;2022-09-07;2022-09-06;15130;LARO mottagning Svall;8019530206
21646642;AllOffice Nordic AB;64500;Kontorsmaterial;455;2022-09-07;2022-09-06;15130;LARO mottagning Svall;8019530206
21646642;AllOffice Nordic AB;64500;Kontorsmaterial;455;2022-09-07;2022-09-06;15130;LARO mottagning Svall;8019530206
21646674;AllOffice Nordic AB;64500;Kontorsmaterial;207;2022-09-07;2022-09-06;31009;Ortopeden avd 15 Sollefteå;8019530305
21646674;AllOffice Nordic AB;64500;Kontorsmaterial;207;2022-09-07;2022-09-06;31009;Ortopeden avd 15 Sollefteå;8019530305
21646674;AllOffice Nordic AB;64500;Kontorsmaterial;207;2022-09-07;2022-09-06;31009;Ortopeden avd 15 Sollefteå;8019530305
21646667;AllOffice Nordic AB;57990;Material/varor övrigt;1258;2022-09-07;2022-09-06;30320;Gynekologisk mott Slå;8019533002
21646661;AllOffice Nordic AB;64500;Kontorsmaterial;25;2022-09-07;2022-09-06;11802;Rehabiliteringsavd 26B Svall;8019533101
21646640;AllOffice Nordic AB;64500;Kontorsmaterial;2070;2022-09-07;2022-09-06;41411;Akutmott Övik;8019533309
21646664;AllOffice Nordic AB;64500;Kontorsmaterial;5302;2022-09-07;2022-09-06;17150;Patologi- och cytenh Gem Svall;8019535007
21646672;AllOffice Nordic AB;64500;Kontorsmaterial;56;2022-09-07;2022-09-06;11020;Medicinmott Svall;8019536302
21646646;AllOffice Nordic AB;64500;Kontorsmaterial;1913;2022-09-07;2022-09-06;41210;Ögonmott Övik;8019541104
21646652;AllOffice Nordic AB;64500;Kontorsmaterial;202;2022-09-07;2022-09-06;86975;Ungdomsmott, Sundsvall;8019544108
21646652;AllOffice Nordic AB;64500;Kontorsmaterial;202;2022-09-07;2022-09-06;86975;Ungdomsmott, Sundsvall;8019544108
21646673;AllOffice Nordic AB;64500;Kontorsmaterial;348;2022-09-07;2022-09-06;84410;Laboratoriemedicin Ö-vik;8019544603
21646673;AllOffice Nordic AB;64500;Kontorsmaterial;348;2022-09-07;2022-09-06;84410;Laboratoriemedicin Ö-vik;8019544603
21646671;AllOffice Nordic AB;57310;Köks/serveringsmaterial;344;2022-09-07;2022-09-06;41213;Ortopedavd Övik;8019549008
21646658;AllOffice Nordic AB;64500;Kontorsmaterial;290;2022-09-07;2022-09-06;41208;Kirurgisk mott Övik;8019552002
21646670;AllOffice Nordic AB;56390;Sjukvårdsartiklar övriga;853;2022-09-07;2022-09-06;12102;Kir avd 15;8019556904
21646657;AllOffice Nordic AB;64500;Kontorsmaterial;1275;2022-09-07;2022-09-06;15106;Psykiatrisk avd 50 Svall;8019560807
21646657;AllOffice Nordic AB;64500;Kontorsmaterial;1275;2022-09-07;2022-09-06;15106;Psykiatrisk avd 50 Svall;8019560807
21646657;AllOffice Nordic AB;64500;Kontorsmaterial;1275;2022-09-07;2022-09-06;15106;Psykiatrisk avd 50 Svall;8019560807
21646657;AllOffice Nordic AB;64500;Kontorsmaterial;1275;2022-09-07;2022-09-06;15106;Psykiatrisk avd 50 Svall;8019560807
21646657;AllOffice Nordic AB;64500;Kontorsmaterial;1275;2022-09-07;2022-09-06;15106;Psykiatrisk avd 50 Svall;8019560807
21646657;AllOffice Nordic AB;64500;Kontorsmaterial;1275;2022-09-07;2022-09-06;15106;Psykiatrisk avd 50 Svall;8019560807
21646663;AllOffice Nordic AB;64600;Förbrmatr ej städ/kontor/IT;1035;2022-09-07;2022-09-06;84120;Laboratoriemedicin Sundsvall;8019562704
21646663;AllOffice Nordic AB;64600;Förbrmatr ej städ/kontor/IT;1035;2022-09-07;2022-09-06;84120;Laboratoriemedicin Sundsvall;8019562704
21646663;AllOffice Nordic AB;64600;Förbrmatr ej städ/kontor/IT;1035;2022-09-07;2022-09-06;84120;Laboratoriemedicin Sundsvall;8019562704
21646663;AllOffice Nordic AB;64600;Förbrmatr ej städ/kontor/IT;1035;2022-09-07;2022-09-06;84120;Laboratoriemedicin Sundsvall;8019562704
21646663;AllOffice Nordic AB;64600;Förbrmatr ej städ/kontor/IT;1035;2022-09-07;2022-09-06;84120;Laboratoriemedicin Sundsvall;8019562704
21646663;AllOffice Nordic AB;64600;Förbrmatr ej städ/kontor/IT;1035;2022-09-07;2022-09-06;84120;Laboratoriemedicin Sundsvall;8019562704
21646666;AllOffice Nordic AB;64500;Kontorsmaterial;905;2022-09-07;2022-09-06;84120;Laboratoriemedicin Sundsvall;8019564007
21646660;AllOffice Nordic AB;64600;Förbrmatr ej städ/kontor/IT;268;2022-09-07;2022-09-06;87301;Allmänläkarvård, Sollefteå HC;8019570905
21646660;AllOffice Nordic AB;64114;IT-utrustning övrig < 48,3 tkr;268;2022-09-07;2022-09-06;87301;Allmänläkarvård, Sollefteå HC;8019570905
21646660;AllOffice Nordic AB;64500;Kontorsmaterial;268;2022-09-07;2022-09-06;87301;Allmänläkarvård, Sollefteå HC;8019570905
21646660;AllOffice Nordic AB;64500;Kontorsmaterial;268;2022-09-07;2022-09-06;87301;Allmänläkarvård, Sollefteå HC;8019570905
21646660;AllOffice Nordic AB;64500;Kontorsmaterial;268;2022-09-07;2022-09-06;87301;Allmänläkarvård, Sollefteå HC;8019570905
21646665;AllOffice Nordic AB;64500;Kontorsmaterial;381;2022-09-07;2022-09-06;17460;Ambulansen Övik;8019577801
21646675;AllOffice Nordic AB;64500;Kontorsmaterial;77;2022-09-07;2022-09-06;14121;SSIH barn;8019590903
21647341;AllOffice Nordic AB;64500;Kontorsmaterial;501;2022-09-08;2022-09-07;41422;Dagsjukvård operation Övik;8019643207
21647333;AllOffice Nordic AB;57990;Material/varor övrigt;69;2022-09-08;2022-09-07;15119;Läkarenh Psykiatri Svall;8019646101
21647345;AllOffice Nordic AB;64500;Kontorsmaterial;1319;2022-09-08;2022-09-07;19452;Hörcentral Härnösand;8019646507
21647364;AllOffice Nordic AB;64500;Kontorsmaterial;601;2022-09-08;2022-09-07;11021;Dialysmott Svall;8019646903
21647353;AllOffice Nordic AB;64500;Kontorsmaterial;1142;2022-09-08;2022-09-07;17340;Logopedmott Svall Hsand;8019647109
21647338;AllOffice Nordic AB;64500;Kontorsmaterial;92;2022-09-08;2022-09-07;87643;Gemensamma kostn Själevad;8019668303
21647330;AllOffice Nordic AB;64500;Kontorsmaterial;42;2022-09-08;2022-09-07;12720;Ögonmott Svall;8019671208
21647334;AllOffice Nordic AB;64500;Kontorsmaterial;83;2022-09-08;2022-09-07;41312;Gynekologisk mott Övik;8019672008
21647334;AllOffice Nordic AB;64500;Kontorsmaterial;83;2022-09-08;2022-09-07;41312;Gynekologisk mott Övik;8019672008
21647334;AllOffice Nordic AB;64500;Kontorsmaterial;83;2022-09-08;2022-09-07;41312;Gynekologisk mott Övik;8019672008
21647343;AllOffice Nordic AB;64114;IT-utrustning övrig < 48,3 tkr;145;2022-09-08;2022-09-07;41312;Gynekologisk mott Övik;8019672107
21647343;AllOffice Nordic AB;64500;Kontorsmaterial;145;2022-09-08;2022-09-07;41312;Gynekologisk mott Övik;8019672107
21647332;AllOffice Nordic AB;64500;Kontorsmaterial;42;2022-09-08;2022-09-07;41411;Akutmott Övik;8019675704
21647331;AllOffice Nordic AB;64500;Kontorsmaterial;150;2022-09-08;2022-09-07;15102;Psykiatrisk avd 7 Svall;8019681900
21647331;AllOffice Nordic AB;64500;Kontorsmaterial;150;2022-09-08;2022-09-07;15102;Psykiatrisk avd 7 Svall;8019681900
21647354;AllOffice Nordic AB;64500;Kontorsmaterial;1073;2022-09-08;2022-09-07;70000;RU:s kansli;8019682809
21647354;AllOffice Nordic AB;64500;Kontorsmaterial;1073;2022-09-08;2022-09-07;70000;RU:s kansli;8019682809
21647354;AllOffice Nordic AB;64500;Kontorsmaterial;1073;2022-09-08;2022-09-07;70000;RU:s kansli;8019682809
21647354;AllOffice Nordic AB;64500;Kontorsmaterial;1073;2022-09-08;2022-09-07;70000;RU:s kansli;8019682809
21647354;AllOffice Nordic AB;64500;Kontorsmaterial;1073;2022-09-08;2022-09-07;70000;RU:s kansli;8019682809
21647354;AllOffice Nordic AB;64500;Kontorsmaterial;1073;2022-09-08;2022-09-07;70000;RU:s kansli;8019682809
21647354;AllOffice Nordic AB;64500;Kontorsmaterial;1073;2022-09-08;2022-09-07;70000;RU:s kansli;8019682809
21647337;AllOffice Nordic AB;64500;Kontorsmaterial;1918;2022-09-08;2022-09-07;17450;Ambulansen Slå;8019683500
21647337;AllOffice Nordic AB;64500;Kontorsmaterial;1918;2022-09-08;2022-09-07;17450;Ambulansen Slå;8019683500
21647337;AllOffice Nordic AB;64500;Kontorsmaterial;1918;2022-09-08;2022-09-07;17450;Ambulansen Slå;8019683500
21647337;AllOffice Nordic AB;64500;Kontorsmaterial;1918;2022-09-08;2022-09-07;17450;Ambulansen Slå;8019683500
21647337;AllOffice Nordic AB;64500;Kontorsmaterial;1918;2022-09-08;2022-09-07;17450;Ambulansen Slå;8019683500
21647363;AllOffice Nordic AB;64500;Kontorsmaterial;428;2022-09-08;2022-09-07;41213;Ortopedavd Övik;8019685307
21647363;AllOffice Nordic AB;64500;Kontorsmaterial;428;2022-09-08;2022-09-07;41213;Ortopedavd Övik;8019685307
21647363;AllOffice Nordic AB;64500;Kontorsmaterial;428;2022-09-08;2022-09-07;41213;Ortopedavd Övik;8019685307
21647363;AllOffice Nordic AB;64500;Kontorsmaterial;428;2022-09-08;2022-09-07;41213;Ortopedavd Övik;8019685307
21647342;AllOffice Nordic AB;64190;Inventarier <48,3 tkr övr;199;2022-09-08;2022-09-07;35100;NO Södra gem;8019687303
21647342;AllOffice Nordic AB;64500;Kontorsmaterial;199;2022-09-08;2022-09-07;35100;NO Södra gem;8019687303
21647342;AllOffice Nordic AB;64500;Kontorsmaterial;199;2022-09-08;2022-09-07;35100;NO Södra gem;8019687303
21647342;AllOffice Nordic AB;64500;Kontorsmaterial;199;2022-09-08;2022-09-07;35100;NO Södra gem;8019687303
21647342;AllOffice Nordic AB;64500;Kontorsmaterial;199;2022-09-08;2022-09-07;35100;NO Södra gem;8019687303
21647342;AllOffice Nordic AB;64500;Kontorsmaterial;199;2022-09-08;2022-09-07;35100;NO Södra gem;8019687303
21647359;AllOffice Nordic AB;64500;Kontorsmaterial;149;2022-09-08;2022-09-07;67920;Löneservice Ö-vik;8019688004
21647350;AllOffice Nordic AB;57990;Material/varor övrigt;431;2022-09-08;2022-09-07;41212;Kirurgisk avd Övik;8019688301
21647336;AllOffice Nordic AB;64500;Kontorsmaterial;250;2022-09-08;2022-09-07;19454;Hörcentral Örnsköldsvik;8019688707
21647362;AllOffice Nordic AB;64600;Förbrmatr ej städ/kontor/IT;1769;2022-09-08;2022-09-07;30106;Psykiatrisk mott Slå;8019689408
21647362;AllOffice Nordic AB;64600;Förbrmatr ej städ/kontor/IT;1769;2022-09-08;2022-09-07;30107;BUP mott Slå;8019689408
21647362;AllOffice Nordic AB;64500;Kontorsmaterial;1769;2022-09-08;2022-09-07;30106;Psykiatrisk mott Slå;8019689408
21647362;AllOffice Nordic AB;64500;Kontorsmaterial;1769;2022-09-08;2022-09-07;30107;BUP mott Slå;8019689408
21647362;AllOffice Nordic AB;64500;Kontorsmaterial;1769;2022-09-08;2022-09-07;30106;Psykiatrisk mott Slå;8019689408
21647362;AllOffice Nordic AB;64500;Kontorsmaterial;1769;2022-09-08;2022-09-07;30107;BUP mott Slå;8019689408
21647362;AllOffice Nordic AB;64500;Kontorsmaterial;1769;2022-09-08;2022-09-07;30106;Psykiatrisk mott Slå;8019689408
21647362;AllOffice Nordic AB;64500;Kontorsmaterial;1769;2022-09-08;2022-09-07;30107;BUP mott Slå;8019689408
21647362;AllOffice Nordic AB;64500;Kontorsmaterial;1769;2022-09-08;2022-09-07;30106;Psykiatrisk mott Slå;8019689408
21647362;AllOffice Nordic AB;64500;Kontorsmaterial;1769;2022-09-08;2022-09-07;30107;BUP mott Slå;8019689408
21647362;AllOffice Nordic AB;64500;Kontorsmaterial;1769;2022-09-08;2022-09-07;30106;Psykiatrisk mott Slå;8019689408
21647362;AllOffice Nordic AB;64500;Kontorsmaterial;1769;2022-09-08;2022-09-07;30107;BUP mott Slå;8019689408
21647362;AllOffice Nordic AB;64500;Kontorsmaterial;1769;2022-09-08;2022-09-07;30106;Psykiatrisk mott Slå;8019689408
21647362;AllOffice Nordic AB;64500;Kontorsmaterial;1769;2022-09-08;2022-09-07;30107;BUP mott Slå;8019689408
21647362;AllOffice Nordic AB;64500;Kontorsmaterial;1769;2022-09-08;2022-09-07;30106;Psykiatrisk mott Slå;8019689408
21647362;AllOffice Nordic AB;64500;Kontorsmaterial;1769;2022-09-08;2022-09-07;30107;BUP mott Slå;8019689408
21647362;AllOffice Nordic AB;64500;Kontorsmaterial;1769;2022-09-08;2022-09-07;30106;Psykiatrisk mott Slå;8019689408
21647362;AllOffice Nordic AB;64500;Kontorsmaterial;1769;2022-09-08;2022-09-07;30107;BUP mott Slå;8019689408
21647362;AllOffice Nordic AB;64500;Kontorsmaterial;1769;2022-09-08;2022-09-07;30106;Psykiatrisk mott Slå;8019689408
21647362;AllOffice Nordic AB;64500;Kontorsmaterial;1769;2022-09-08;2022-09-07;30107;BUP mott Slå;8019689408
21647362;AllOffice Nordic AB;64500;Kontorsmaterial;1769;2022-09-08;2022-09-07;30106;Psykiatrisk mott Slå;8019689408
21647362;AllOffice Nordic AB;64500;Kontorsmaterial;1769;2022-09-08;2022-09-07;30107;BUP mott Slå;8019689408
21647362;AllOffice Nordic AB;64500;Kontorsmaterial;1769;2022-09-08;2022-09-07;30106;Psykiatrisk mott Slå;8019689408
21647362;AllOffice Nordic AB;64500;Kontorsmaterial;1769;2022-09-08;2022-09-07;30107;BUP mott Slå;8019689408
21647362;AllOffice Nordic AB;64500;Kontorsmaterial;1769;2022-09-08;2022-09-07;30106;Psykiatrisk mott Slå;8019689408
21647362;AllOffice Nordic AB;64500;Kontorsmaterial;1769;2022-09-08;2022-09-07;30107;BUP mott Slå;8019689408
21647362;AllOffice Nordic AB;64500;Kontorsmaterial;1769;2022-09-08;2022-09-07;30106;Psykiatrisk mott Slå;8019689408
21647362;AllOffice Nordic AB;64500;Kontorsmaterial;1769;2022-09-08;2022-09-07;30107;BUP mott Slå;8019689408
21647362;AllOffice Nordic AB;64500;Kontorsmaterial;1769;2022-09-08;2022-09-07;30106;Psykiatrisk mott Slå;8019689408
21647362;AllOffice Nordic AB;64500;Kontorsmaterial;1769;2022-09-08;2022-09-07;30107;BUP mott Slå;8019689408
21647362;AllOffice Nordic AB;64500;Kontorsmaterial;1769;2022-09-08;2022-09-07;30106;Psykiatrisk mott Slå;8019689408
21647362;AllOffice Nordic AB;64500;Kontorsmaterial;1769;2022-09-08;2022-09-07;30107;BUP mott Slå;8019689408
21647362;AllOffice Nordic AB;64500;Kontorsmaterial;1769;2022-09-08;2022-09-07;30106;Psykiatrisk mott Slå;8019689408
21647362;AllOffice Nordic AB;64500;Kontorsmaterial;1769;2022-09-08;2022-09-07;30107;BUP mott Slå;8019689408
21647365;AllOffice Nordic AB;64500;Kontorsmaterial;138;2022-09-08;2022-09-07;69751;Städ team 1 Sundsvall;8019691503
21647348;AllOffice Nordic AB;64500;Kontorsmaterial;1016;2022-09-08;2022-09-07;78300;RPK gemensamt;8019693400
21647348;AllOffice Nordic AB;64500;Kontorsmaterial;1016;2022-09-08;2022-09-07;78300;RPK gemensamt;8019693400
21647348;AllOffice Nordic AB;64500;Kontorsmaterial;1016;2022-09-08;2022-09-07;78300;RPK gemensamt;8019693400
21647348;AllOffice Nordic AB;64500;Kontorsmaterial;1016;2022-09-08;2022-09-07;78300;RPK gemensamt;8019693400
21647349;AllOffice Nordic AB;64500;Kontorsmaterial;51;2022-09-08;2022-09-07;11021;Dialysmott Svall;8019696007
21647349;AllOffice Nordic AB;64500;Kontorsmaterial;51;2022-09-08;2022-09-07;11021;Dialysmott Svall;8019696007
21647352;AllOffice Nordic AB;64114;IT-utrustning övrig < 48,3 tkr;1074;2022-09-08;2022-09-07;17340;Logopedmott Svall Hsand;8019696106
21647357;AllOffice Nordic AB;64500;Kontorsmaterial;86;2022-09-08;2022-09-07;84310;Laboratoriemedicin Sollefteå;8019697401
21647346;AllOffice Nordic AB;64500;Kontorsmaterial;221;2022-09-08;2022-09-07;53010;Ftv Sollefteå;8019700601
21647344;AllOffice Nordic AB;64500;Kontorsmaterial;338;2022-09-08;2022-09-07;70002;Stöd och finansiering;8019703407
21647356;AllOffice Nordic AB;64500;Kontorsmaterial;585;2022-09-08;2022-09-07;41126;Sekreterarenh Medicin Övik;8019703704
21647356;AllOffice Nordic AB;64500;Kontorsmaterial;585;2022-09-08;2022-09-07;41126;Sekreterarenh Medicin Övik;8019703704
21647356;AllOffice Nordic AB;64500;Kontorsmaterial;585;2022-09-08;2022-09-07;41126;Sekreterarenh Medicin Övik;8019703704
21647356;AllOffice Nordic AB;64500;Kontorsmaterial;585;2022-09-08;2022-09-07;41126;Sekreterarenh Medicin Övik;8019703704
21647340;AllOffice Nordic AB;64500;Kontorsmaterial;96;2022-09-08;2022-09-07;41126;Sekreterarenh Medicin Övik;8019706202
21647347;AllOffice Nordic AB;64190;Inventarier <48,3 tkr övr;730;2022-09-08;2022-09-07;41511;Psykiatrisk mott Övik;8019706301
21647335;AllOffice Nordic AB;64500;Kontorsmaterial;787;2022-09-08;2022-09-07;87553;Gem kostnader Bjästa HC;8019709008
21647335;AllOffice Nordic AB;64500;Kontorsmaterial;787;2022-09-08;2022-09-07;87553;Gem kostnader Bjästa HC;8019709008
21647351;AllOffice Nordic AB;64500;Kontorsmaterial;723;2022-09-08;2022-09-07;51010;Ftv Ånge;8019709107
21647351;AllOffice Nordic AB;64500;Kontorsmaterial;723;2022-09-08;2022-09-07;51010;Ftv Ånge;8019709107
21647351;AllOffice Nordic AB;64500;Kontorsmaterial;723;2022-09-08;2022-09-07;51010;Ftv Ånge;8019709107
21647351;AllOffice Nordic AB;64500;Kontorsmaterial;723;2022-09-08;2022-09-07;51010;Ftv Ånge;8019709107
21647355;AllOffice Nordic AB;64500;Kontorsmaterial;188;2022-09-08;2022-09-07;41303;BUM avd Övik;8019710105
21647361;AllOffice Nordic AB;64500;Kontorsmaterial;204;2022-09-08;2022-09-07;14104;BUM avd 45 Svall;8019715203
21647361;AllOffice Nordic AB;64500;Kontorsmaterial;204;2022-09-08;2022-09-07;14104;BUM avd 45 Svall;8019715203
21647358;AllOffice Nordic AB;64500;Kontorsmaterial;739;2022-09-08;2022-09-07;69651;Kostproduktion S-lå;8019718603
21647360;AllOffice Nordic AB;64500;Kontorsmaterial;215;2022-09-08;2022-09-07;70321;Hola Verksamhetsbidrag;8019721805
21647339;AllOffice Nordic AB;64600;Förbrmatr ej städ/kontor/IT;79;2022-09-08;2022-09-07;70320;Hola Organisationsbidrag;8019721904
21648182;AllOffice Nordic AB;64500;Kontorsmaterial;113;2022-09-09;2022-09-08;17330;Kuratorsmott Svall Hsand;8019830606
21648182;AllOffice Nordic AB;64500;Kontorsmaterial;113;2022-09-09;2022-09-08;17330;Kuratorsmott Svall Hsand;8019830606
21648168;AllOffice Nordic AB;64190;Inventarier <48,3 tkr övr;120;2022-09-09;2022-09-08;86101;Läkare, Ånge HC;8019830705
21648165;AllOffice Nordic AB;64500;Kontorsmaterial;1215;2022-09-09;2022-09-08;84120;Laboratoriemedicin Sundsvall;8019830903
21648165;AllOffice Nordic AB;64500;Kontorsmaterial;1215;2022-09-09;2022-09-08;84120;Laboratoriemedicin Sundsvall;8019830903
21648165;AllOffice Nordic AB;64500;Kontorsmaterial;1215;2022-09-09;2022-09-08;84120;Laboratoriemedicin Sundsvall;8019830903
21648188;AllOffice Nordic AB;64190;Inventarier <48,3 tkr övr;558;2022-09-09;2022-09-08;70381;Övik Verksamhetsbidrag;8019832800
21648188;AllOffice Nordic AB;64500;Kontorsmaterial;558;2022-09-09;2022-09-08;70381;Övik Verksamhetsbidrag;8019832800
21648188;AllOffice Nordic AB;64500;Kontorsmaterial;558;2022-09-09;2022-09-08;70381;Övik Verksamhetsbidrag;8019832800
21648188;AllOffice Nordic AB;64500;Kontorsmaterial;558;2022-09-09;2022-09-08;70381;Övik Verksamhetsbidrag;8019832800
21648188;AllOffice Nordic AB;64500;Kontorsmaterial;558;2022-09-09;2022-09-08;70381;Övik Verksamhetsbidrag;8019832800
21648188;AllOffice Nordic AB;64500;Kontorsmaterial;558;2022-09-09;2022-09-08;70381;Övik Verksamhetsbidrag;8019832800
21648176;AllOffice Nordic AB;64500;Kontorsmaterial;945;2022-09-09;2022-09-08;41126;Sekreterarenh Medicin Övik;8019839102
21648176;AllOffice Nordic AB;64500;Kontorsmaterial;945;2022-09-09;2022-09-08;41126;Sekreterarenh Medicin Övik;8019839102
21648170;AllOffice Nordic AB;64500;Kontorsmaterial;232;2022-09-09;2022-09-08;81801;Kliniskt Forskningscentrum;8019842908
21648170;AllOffice Nordic AB;64500;Kontorsmaterial;232;2022-09-09;2022-09-08;81801;Kliniskt Forskningscentrum;8019842908
21648167;AllOffice Nordic AB;64600;Förbrmatr ej städ/kontor/IT;235;2022-09-09;2022-09-08;14305;BB Förlossning Gynavd Svall;8019843005
21648167;AllOffice Nordic AB;64500;Kontorsmaterial;235;2022-09-09;2022-09-08;14305;BB Förlossning Gynavd Svall;8019843005
21648169;AllOffice Nordic AB;64500;Kontorsmaterial;231;2022-09-09;2022-09-08;86601;Läkare Liden HC;8019843500
21648169;AllOffice Nordic AB;64500;Kontorsmaterial;231;2022-09-09;2022-09-08;86601;Läkare Liden HC;8019843500
21648169;AllOffice Nordic AB;64500;Kontorsmaterial;231;2022-09-09;2022-09-08;86601;Läkare Liden HC;8019843500
21648169;AllOffice Nordic AB;64500;Kontorsmaterial;231;2022-09-09;2022-09-08;86601;Läkare Liden HC;8019843500
21648166;AllOffice Nordic AB;64500;Kontorsmaterial;1377;2022-09-09;2022-09-08;41423;Intensivvårdsavd Övik;8019844706
21648166;AllOffice Nordic AB;64500;Kontorsmaterial;1377;2022-09-09;2022-09-08;41423;Intensivvårdsavd Övik;8019844706
21648166;AllOffice Nordic AB;57310;Köks/serveringsmaterial;1377;2022-09-09;2022-09-08;41423;Intensivvårdsavd Övik;8019844706
21648166;AllOffice Nordic AB;57310;Köks/serveringsmaterial;1377;2022-09-09;2022-09-08;41423;Intensivvårdsavd Övik;8019844706
21648166;AllOffice Nordic AB;57310;Köks/serveringsmaterial;1377;2022-09-09;2022-09-08;41423;Intensivvårdsavd Övik;8019844706
21648166;AllOffice Nordic AB;57310;Köks/serveringsmaterial;1377;2022-09-09;2022-09-08;41423;Intensivvårdsavd Övik;8019844706
21648166;AllOffice Nordic AB;57310;Köks/serveringsmaterial;1377;2022-09-09;2022-09-08;41423;Intensivvårdsavd Övik;8019844706
21648166;AllOffice Nordic AB;57310;Köks/serveringsmaterial;1377;2022-09-09;2022-09-08;41423;Intensivvårdsavd Övik;8019844706
21648174;AllOffice Nordic AB;64500;Kontorsmaterial;351;2022-09-09;2022-09-08;41110;Ger, stroke och rehabavd 3 Övi;8019844805
21648174;AllOffice Nordic AB;64500;Kontorsmaterial;351;2022-09-09;2022-09-08;41110;Ger, stroke och rehabavd 3 Övi;8019844805
21648174;AllOffice Nordic AB;57310;Köks/serveringsmaterial;351;2022-09-09;2022-09-08;41110;Ger, stroke och rehabavd 3 Övi;8019844805
21648175;AllOffice Nordic AB;64500;Kontorsmaterial;6894;2022-09-09;2022-09-08;41102;Medicinavd 2 Övik;8019846800
21648180;AllOffice Nordic AB;64500;Kontorsmaterial;623;2022-09-09;2022-09-08;41118;Dietistmott Övik;8019852907
21648180;AllOffice Nordic AB;64500;Kontorsmaterial;623;2022-09-09;2022-09-08;41118;Dietistmott Övik;8019852907
21648180;AllOffice Nordic AB;64500;Kontorsmaterial;623;2022-09-09;2022-09-08;41118;Dietistmott Övik;8019852907
21648180;AllOffice Nordic AB;64500;Kontorsmaterial;623;2022-09-09;2022-09-08;41118;Dietistmott Övik;8019852907
21648181;AllOffice Nordic AB;64500;Kontorsmaterial;1254;2022-09-09;2022-09-08;17030;Akutmott Svall;8019862104
21648181;AllOffice Nordic AB;64500;Kontorsmaterial;1254;2022-09-09;2022-09-08;17030;Akutmott Svall;8019862104
21648187;AllOffice Nordic AB;64500;Kontorsmaterial;203;2022-09-09;2022-09-08;51090;ROK;8019865305
21648187;AllOffice Nordic AB;64500;Kontorsmaterial;203;2022-09-09;2022-09-08;51090;ROK;8019865305
21648187;AllOffice Nordic AB;64500;Kontorsmaterial;203;2022-09-09;2022-09-08;51090;ROK;8019865305
21648187;AllOffice Nordic AB;64500;Kontorsmaterial;203;2022-09-09;2022-09-08;51090;ROK;8019865305
21648173;AllOffice Nordic AB;64500;Kontorsmaterial;63;2022-09-09;2022-09-08;12722;Ögonrehabiliteringsmott Gem;8019870305
21648183;AllOffice Nordic AB;64600;Förbrmatr ej städ/kontor/IT;172;2022-09-09;2022-09-08;86961;Psykologer mhv bhv;8019870404
21648183;AllOffice Nordic AB;64500;Kontorsmaterial;172;2022-09-09;2022-09-08;86961;Psykologer mhv bhv;8019870404
21648189;AllOffice Nordic AB;64500;Kontorsmaterial;110;2022-09-09;2022-09-08;11020;Medicinmott Svall;8019870503
